Workbook

Sheet 病院
A1: <病院（保健所別） R5.4.1現在>
A2: 所管 保健所 | B2: 病院名称 | C2: 開設許可年月日 | D2: 開設 年月日 | E2: 郵便番号 | F2: 所在地 | G2: 開設者コード | H2: 開 設 者 | I2: 管 理 者 | J2: 許可病床数（使用許可ベース） | P2: 標ぼう診療科目 | Q2: 救急告示 | R2: 電話番号
J3: 総 数 | K3: 一 般 | L3: 療 養 | M3: 精 神 | N3: 結核 | O3: 感染
A4: 市立函館 | B4: 市立函館南茅部病院 | C4: 1960-04-22 | D4: 1960-10-01 | E4: 041-1612 | F4: 函館市安浦町92番地 | G4: 9 | H4: 函館市 | I4: 加藤 輝夫 | J4: =SUM(K4:O4) -> 59 | K4: 37 | L4: 22 | P4: 内，小，外，整 | Q4: ○ | R4: 0138-25-3511
A5: 市立函館 | B5: 独立行政法人国立病院機構函館病院 | C5: 1947-04-01 | D5: 1947-04-01 | E5: 041-8512 | F5: 函館市川原町18番16号 | G5: 2 | H5: 独立行政法人国立病院機構 | I5: 岩代 望 | J5: =SUM(K5:O5) -> 360 | K5: 360 | P5: 内，呼吸器内科，消化器内科，循環器内科，小，外，消化器外科，整，呼外、心外，乳腺外科、眼，泌，リハ，放，麻，病理診断科，緩和ケア科，精，皮，歯外，婦，腫瘍内科, 放射線治療科，臨床検査科，形，脳 | Q5: ○ | R5: 0138-51-6281
A6: 市立函館 | B6: 市立函館恵山病院 | C6: 2002-01-10 | D6: 2002-12-26 | E6: 041-0525 | F6: 函館市日ノ浜町15番地1 | G6: 9 | H6: 函館市 | I6: 石川 聡 | J6: 60 | L6: 60 | P6: 内，小，外，リハ | Q6: ○ | R6: 0138-85-2001
A7: 市立函館 | B7: 函館赤十字病院 | C7: 1939-03-24 | D7: 1939-04-05 | E7: 040-0025 | F7: 函館市堀川町6番21号 | G7: 11 | H7: 日本赤十字社 | I7: 平田 康二 | J7: 150 | K7: 150 | P7: 内，消化器内科，循環器内科，血液・腫瘍内科，外，整，乳腺外科，腫瘍外科，皮，リハ，放，麻 | Q7: ○ | R7: 0138-51-5315
A8: 市立函館 | B8: 特定医療法人富田病院 | C8: 1951-10-30 | D8: 1951-11-02 | E8: 042-0935 | F8: 函館市駒場町9番18号 | G8: 20 | H8: 特定医療法人富田病院 | I8: 岩窪 昭文 | J8: 390 | K8: 45 | L8: 29 | M8: 316 | P8: 内，精，神内，呼吸器内科，消化器内科，循環器内科，リハ，放 | Q8: ○ | R8: 0138-52-1112
A9: 市立函館 | B9: 社会医療法人高橋病院 | C9: 1955-12-26 | D9: 1956-01-11 | E9: 040-0054 | F9: 函館市元町32番18号 | G9: 20 | H9: 社会医療法人高橋病院 | I9: 高橋 肇 | J9: 119 | K9: 59 | L9: 60 | P9: 内，呼吸器内科，消化器内科，循環器内科，糖尿病・代謝内科，内視鏡内科，整，リハ，呼吸器リハビリテーション科 | Q9: ○ | R9: 0138-23-7221
A10: 市立函館 | B10: 函館渡辺病院 | C10: 1954-04-06 | D10: 1954-04-06 | E10: 042-0932 | F10: 函館市湯川町1丁目31番1号 | G10: 20 | H10: 社会医療法人函館博栄会 | I10: 菅原 隆光 | J10: 527 | K10: 120 | M10: 407 | P10: 内，精，児童精神科，老年精神科，呼吸器内科，消化器内科，循環器内科，糖尿病内科，内視鏡内科，外，整，消化器外科，大腸外科，乳腺外科，皮，小児皮膚科，肛門外科，リハ，放，麻，内分泌内科 | Q10: ○ | R10: 0138-59-2221
A11: 市立函館 | B11: 函館中央病院 | C11: 1936-08-07 | D11: 1936-08-07 | E11: 040-8585 | F11: 函館市本町33番2号 | G11: 22 | H11: 社会福祉法人函館厚生院 | I11: 本橋 雅壽 | J11: 527 | K11: 527 | P11: 内，消化器内科，神内，循環器内科，小，外，消化器外科，乳腺外科，肛門外科，整，形，脳，心外，皮，泌，産婦，眼，耳，リハ，放，病理診断科、麻，歯外，腫瘍内科，精，糖尿病・内分泌内科 | Q11: ○ | R11: 0138-52-1231
A12: 市立函館 | B12: 函館五稜郭病院 | C12: 1950-02-16 | D12: 1950-02-16 | E12: 040-8611 | F12: 函館市五稜郭町38番3号 | G12: 22 | H12: 社会福祉法人函館厚生院 | I12: 中田 智明 | J12: 480 | K12: 480 | P12: 内，呼吸器内科，消化器内科，循環器内科，腎臓内科，小，外，消化器外科，整，形，小外，脳，心外，呼外，泌，産婦，眼，耳，リハ，放射線治療科，放射線診断科，病理診断科，緩和ケア内科，救急，麻，歯外，皮 | Q12: ○ | R12: 0138-51-2295
A13: 市立函館 | B13: 江口眼科病院 | C13: 2000-01-01 | D13: 2000-01-01 | E13: 040-0053 | F13: 函館市末広町7番13号 | G13: 20 | H13: 医療法人社団江山会 | I13: 江口 秀一郎 | J13: 49 | K13: 49 | P13: 眼 | R13: 0138-23-2272
A14: 市立函館 | B14: 医療法人同仁会函館記念病院 | C14: 1956-11-05 | D14: 1956-11-05 | E14: 041-0813 | F14: 函館市亀田本町36番1号 | G14: 20 | H14: 医療法人同仁会 | I14: 安東 直之 | J14: 199 | K14: 30 | L14: 87 | M14: 82 | P14: 内，精，神，呼，胃，循，外，整，リハ，放 | R14: 0138-42-0171
A15: 市立函館 | B15: 社会医療法人仁生会西堀病院 | C15: 1972-04-17 | D15: 1972-05-01 | E15: 041-8555 | F15: 函館市中道2丁目6番11号 | G15: 20 | H15: 社会医療法人仁生会 | I15: 金子 行宏 | J15: 168 | K15: 108 | L15: 60 | P15: 内，消化器内科，循環器内科，肛門内科，外，整，リハ， | Q15: ○ | R15: 0138-52-1531
A16: 市立函館 | B16: 道南勤医協函館稜北病院 | C16: 1981-07-17 | D16: 1981-08-01 | E16: 041-0853 | F16: 函館市中道2丁目51番1号 | G16: 20 | H16: 医療法人道南勤労者医療協会 | I16: 木田 史朗 | J16: 104 | K16: 56 | L16: 48 | P16: 内，呼吸器内科，消化器内科，循環器内科，整，リハ | Q16: ○ | R16: 0138-54-3113
A17: 市立函館 | B17: 医療法人敬仁会函館おしま病院 | C17: 1985-05-22 | D17: 1985-06-01 | E17: 040-0021 | F17: 函館市的場町19番6号 | G17: 20 | H17: 医療法人敬仁会 | I17: 小林 篤寿 | J17: 56 | K17: 20 | L17: 36 | P17: 内，緩和ケア内科 | R17: 0138-56-2308
A18: 市立函館 | B18: 函館市医師会病院 | C18: 1985-09-26 | D18: 1985-11-05 | E18: 041-0811 | F18: 函館市富岡町2丁目10番10号 | G18: 19 | H18: 公益社団法人函館市医師会 | I18: 鈴木 康弘 | J18: 199 | K18: 199 | P18: 内，呼，消，循，外，肛，放，麻，リハ，整，泌，糖尿病・代謝内科，脳神経内科，老年内科，胸部外科，呼吸器・乳腺外科 | Q18: ○ | R18: 0138-43-6000
A19: 市立函館 | B19: 医療法人社団玄心会吉田眼科病院 | C19: 2001-12-19 | D19: 2002-01-01 | E19: 041-0851 | F19: 函館市本通2丁目31番8号 | G19: 20 | H19: 医療法人社団玄心会吉田眼科病院 | I19: 吉田 玄雄 | J19: 40 | K19: 40 | P19: 眼 | R19: 0138-53-8311
A20: 市立函館 | B20: 亀田北病院 | C20: 1987-01-23 | D20: 1987-02-15 | E20: 041-0802 | F20: 函館市石川町191番地4 | G20: 20 | H20: 社会医療法人文珠会 | I20: 宮澤 仁朗 | J20: 400 | M20: 400 | P20: 内，心内，精，放，リハ | R20: 0138-46-4651
A21: 市立函館 | B21: 医療法人雄心会函館新都市病院 | C21: 1995-08-29 | D21: 1995-09-01 | E21: 041-0802 | F21: 函館市石川町331番地1 | G21: 20 | H21: 医療法人雄心会 | I21: 原口 浩一 | J21: 155 | K21: 155 | P21: 内，脳神経内科，循環器内科，整，脳，リハ，放，麻，小，歯，皮 | Q21: ○ | R21: 0138-46-1321
A22: 市立函館 | B22: 秋山記念病院 | C22: 2004-08-03 | D22: 2004-09-01 | E22: 041-0802 | F22: 函館市石川町41番地9 | G22: 20 | H22: 医療法人社団正寿会 | I22: 秋山 實男 | J22: 57 | K22: 57 | P22: 乳腺外科，産，婦，麻 | R22: 0138-46-6660
A23: 市立函館 | B23: 医療法人社団函館脳神経外科病院 | C23: 1990-01-16 | D23: 1990-02-01 | E23: 041-0832 | F23: 函館市神山1丁目4番12号 | G23: 20 | H23: 医療法人社団函館脳神経外科 | I23: 妹尾 誠 | J23: 128 | K23: 128 | P23: 循環器内科，脳，リハ，麻 | Q23: ○ | R23: 0138-53-6111
A24: 市立函館 | B24: 医療法人聖仁会森病院 | C24: 1995-08-02 | D24: 1996-09-01 | E24: 041-0801 | F24: 函館市桔梗町557番地 | G24: 20 | H24: 医療法人聖仁会 | I24: 森 久恒 | J24: 83 | K24: 35 | L24: 48 | P24: 内，消化器内科，循環器内科，リハ，緩和ケア内科 | R24: 0138-47-2222
A25: 市立函館 | B25: 市立函館病院 | C25: 1997-11-25 | D25: 2000-10-08 | E25: 041-8680 | F25: 函館市港町1丁目10番1号 | G25: 9 | H25: 函館市 | I25: 森下 清文 | J25: 648 | K25: 582 | M25: 50 | N25: 10 | O25: 6 | P25: 内，精，血液内科，神内，呼吸器内科，消化器内科，循環器内科，リウ，小，外，整，形，脳，呼外，消化器外科，心外，乳腺外科，皮，泌，産婦，眼，耳，リハ，放，麻，歯，矯歯，歯外，病理診断科，救急科 | Q25: ○ | R25: 0138-43-2000
A26: 市立函館 | B26: 社会福祉法人北海道社会事業協会函館病院 | C26: 2005-07-08 | D26: 2006-12-01 | E26: 042-0935 | F26: 函館市駒場町4番6号 | G26: 13 | H26: 社会福祉法人北海道社会事業協会 | I26: 山内 英敬 | J26: 286 | K26: 192 | L26: 94 | P26: 内，心内，消，循環器内科，外，整，皮，泌，耳，リハ，放，麻，歯，歯外 | Q26: ○ | R26: 0138-53-5511
A27: 市立函館 | B27: 亀田病院 | C27: 2008-03-07 | D27: 2009-05-08 | E27: 041-0812 | F27: 函館市昭和1丁目23番11号 | G27: 20 | H27: 社会医療法人文珠会 | I27: 吉川 修身 | J27: 179 | K27: 119 | L27: 60 | P27: 内，呼吸器内科，消化器内科，循環器内科，糖尿病・代謝内科，外，整，泌，リハ，放，形，皮，神内 | Q27: ○ | R27: 0138-40-1500
A28: 市立函館 | B28: 医療法人社団健和会函館おおむら整形外科病院 | C28: 2013-12-04 | D28: 2014-08-01 | E28: 041-0802 | F28: 函館市石川町125番地1 | G28: 20 | H28: 医療法人社団健和会 | I28: 大村 直久 | J28: 56 | K28: 56 | P28: 整，リハ，麻，ペインクリニック内科，脳神経内科，糖尿病・内分泌内科 | Q28: ○ | R28: 0138-47-3300
A29: 市立函館 | B29: 共愛会病院 | C29: 2019-05-14 | D29: 2019-06-01 | E29: 040-0014 | F29: 函館市中島町7番21号 | G29: 20 | H29: 医療法人徳洲会 | I29: 立石 晋 | J29: =SUM(K29:O29) -> 378 | K29: 245 | L29: 133 | P29: 内，心内，呼吸器内科，消化器内科，循環器内科，小，外，整，形，皮，泌，産婦，眼，リハ，放，麻，歯，歯外，耳 | Q29: ○ | R29: 0138-51-2111
A30: 市立函館 | B30: 亀田花園病院 | C30: 2020-09-24 | D30: 2020-10-01 | E30: 041-0843 | F30: 函館市花園町24番5号 | G30: 20 | H30: 社会医療法人文珠会 | I30: 肥川 浩之 | J30: 65 | K30: 32 | L30: 33 | P30: 内，呼吸器内科，消化器内科，循環器内科 | R30: 0138-52-2521
A31: 市立函館 | B31: 市立函館保健所計 | F31: =COUNTA(F4:F30) -> 27 | J31: =SUM(K31:O31) -> 5922 | K31: =SUM(K4:K30) -> 3881 | L31: =SUM(L4:L30) -> 770 | M31: =SUM(M4:M30) -> 1255 | N31: =SUM(N4:N30) -> 10 | O31: =SUM(O4:O30) -> 6 | Q31: =COUNTA(Q4:Q30) -> 19
A32: 渡島 | B32: 松前町立松前病院 | C32: 平2.10.17 | D32: 平2.11.1 | E32: 049-1503 | F32: 松前郡松前町字大磯174番地の1 | G32: 9 | H32: 松前町 | I32: 山本 和利 | J32: 93 | K32: 93 | P32: 内・小・外・整・眼・耳・リハ | Q32: ○ | R32: 01394-2-2515
A33: 渡島 | B33: 木古内町国民健康保険病院 | C33: 平21.5.12 | D33: 平22.5.1 | E33: 049-0422 | F33: 上磯郡木古内町字本町710番地 | G33: 9 | H33: 木古内町 | I33: 吉田 優一 | J33: 99 | K33: 99 | P33: 内・呼吸器内科・消化器内科・循環器内科・小・外・整・皮・泌・こう門外科・婦・眼・耳・放・歯 | Q33: ○ | R33: 01392-2-2079
A34: 渡島 | B34: ななえ新病院 | C34: 平15.6.27 | D34: 平15.7.1 | E34: 041-1111 | F34: 亀田郡七飯町本町７丁目657番地5 | G34: 22 | H34: 社会福祉法人函館厚生院 | I34: 髙田 徹 | J34: 199 | K34: 49 | L34: 150 | P34: 内・循環器内科・整・リハ・脳神経内科 | Q34: ○ | R34: 0138-65-2525
A35: 渡島 | B35: 医療法人社団立青会なるかわ病院 | C35: 平18.3.1 | D35: 平19.3.1 | E35: 041-1112 | F35: 亀田郡七飯町鳴川4丁目325番1 | G35: 20 | H35: 医療法人社団立青会 | I35: 橋本 和明 | J35: 396 | L35: 36 | M35: 360 | P35: 内・精・神 | R35: 0138-65-7131
A36: 渡島 | B36: 森町国民健康保険病院 | C36: 昭36.10.24 | D36: 昭36.11.2 | E36: 049-2311 | F36: 茅部郡森町字上台町326 | G36: 9 | H36: 森町 | I36: 髙塩 哲也 | J36: 60 | K36: 60 | P36: 内・小・外・整・泌・放・リハ・眼 | Q36: ○ | R36: 01374-2-2580
A37: 渡島 | B37: 医療法人雄心会新都市砂原病院 | C37: 平15.１.10 | D37: 平15.9.１ | E37: 049-2222 | F37: 茅部郡森町字砂原1丁目30番地59 | G37: 20 | H37: 医療法人雄心会 | I37: 佐藤 正敏 | J37: 83 | K37: 41 | L37: 42 | P37: 内・消化器内科・循環器内科・外・整・脳 | R37: 01374-8-3131
A38: 渡島 | B38: 医療法人社団森生会森の里病院 | C38: 平11.9.6 | D38: 平11.10.１ | E38: 049-2311 | F38: 茅部郡森町字上台町330番地84 | G38: 20 | H38: 医療法人社団森生会 | I38: 高島 健 | J38: 100 | M38: 100 | P38: 内・精 | R38: 01374-2-5000
A39: 渡島 | B39: 渡島保健所計 | F39: =COUNTA(F32:F38) -> 7 | J39: =SUM(K39:O39) -> 1030 | K39: =SUM(K32:K38) -> 342 | L39: =SUM(L32:L38) -> 228 | M39: =SUM(M32:M38) -> 460 | N39: =SUM(N32:N38) -> 0 | O39: =SUM(O32:O38) -> 0 | Q39: =COUNTA(Q32:Q38) -> 4
A40: 江差 | B40: 北海道立江差病院 | C40: 1996-10-28 | D40: 1998-07-10 | E40: 043-0022 | F40: 檜山郡江差町字伏木戸町484番地 | G40: 8 | H40: 北海道 | I40: 伊藤 靖 | J40: 198 | K40: 146 | M40: 48 | O40: 4 | P40: 内,精,小,外,整,産婦,眼,耳,リハ,泌,皮,麻,放,消化器内科,循環器内科,呼吸器内科,腎臓内科 | Q40: ○ | R40: 0139-52-0036
A41: 江差 | B41: 厚沢部町国民健康保険病院 | C41: 1950-08-29 | D41: 1950-11-22 | E41: 043-1113 | F41: 檜山郡厚沢部町新町14番地1 | G41: 9 | H41: 厚沢部町 | I41: 佐々木 紀仁 | J41: 69 | K41: 45 | L41: 24 | P41: 内,外,眼,麻 | Q41: ○ | R41: 0139-64-3036
A42: 江差 | B42: 奥尻町国民健康保険病院 | C42: 1964-08-11 | D42: 1965-05-01 | E42: 043-1401 | F42: 奥尻郡奥尻町字奥尻462番地 | G42: 9 | H42: 奥尻町 | I42: 泉里 豪俊 | J42: 40 | K42: 17 | L42: 23 | P42: 内,小,外,整,産婦,眼,耳,リハ,歯,矯歯 | Q42: ○ | R42: 01397-2-3151
A43: 江差 | B43: 乙部町国民健康保険病院 | C43: 1965-12-06 | D43: 1966-04-01 | E43: 043-0103 | F43: 爾志郡乙部町字緑町704番地の1 | G43: 9 | H43: 乙部町 | I43: 野村 健次 | J43: 62 | K43: 58 | L43: 4 | P43: 内,小,外 | Q43: ○ | R43: 0139-62-2331
A44: 江差 | B44: 医療法人社団恵愛会佐々木病院 | C44: 1973-05-17 | D44: 1973-06-01 | E44: 043-0041 | F44: 檜山郡江差町字姥神町31番地 | G44: 20 | H44: 医療法人社団恵愛会 | I44: 福山 俊一郎 | J44: 60 | L44: 60 | P44: 内,呼,消,循,アレ,リハ | R44: 0139-52-1070
A45: 江差 | B45: 江差保健所計 | F45: =COUNTA(F40:F44) -> 5 | J45: =+SUM(K45:O45) -> 429 | K45: =SUM(K40:K44) -> 266 | L45: =SUM(L40:L44) -> 111 | M45: =SUM(M40:M44) -> 48 | N45: =SUM(N40:N44) -> 0 | O45: =SUM(O40:O44) -> 4 | Q45: =COUNTA(Q40:Q44) -> 4
A46: 八雲 | B46: 今金町国保病院 | C46: 1959-11-26 | D46: 1959-12-23 | E46: 049-4308 | F46: 瀬棚郡今金町字今金17番地の2 | G46: 9 | H46: 今金町 | I46: 川岸 直樹 | J46: =SUM(K46:O46) -> 33 | K46: 33 | P46: 内,精,小,外,整,婦,リハ,眼 | Q46: ○ | R46: 0137-82-0221
A47: 八雲 | B47: せたな町立国保病院 | C47: 1957-06-01 | D47: 1957-06-10 | E47: 049-4501 | F47: 久遠郡せたな町北檜山区北檜山378番地 | G47: 9 | H47: せたな町 | I47: 大島 昌輝 | J47: 60 | K47: 60 | P47: 内,循環器内科,整,小,外,婦,リハ | Q47: ○ | R47: 0137-84-5321
A48: 八雲 | B48: 医療法人財団明理会道南ロイヤル病院 | C48: 1995-06-01 | D48: 1995-06-01 | E48: 049-4501 | F48: 久遠郡せたな町北檜山区北檜山322番地の4 | G48: 20 | H48: 医療法人財団明理会 | I48: 松井 郁一 | J48: 174 | K48: 54 | L48: 120 | P48: 内,消化器内科,循環器内科,人工透析内科,外,形 | R48: 0137-84-5011
A49: 八雲 | B49: 八雲総合病院 | C49: 1957-09-01 | D49: 1957-10-03 | E49: 049-3105 | F49: 二海郡八雲町東雲町50番地 | G49: 9 | H49: 八雲町 | I49: 石田 博英 | J49: 327 | K49: 183 | L49: 40 | M49: 100 | O49: 4 | P49: 内,精,循環器内科,リウ,小,外,整,脳,皮,泌,産婦,眼,耳,リハ,放,歯,麻,心内 | Q49: ○ | R49: 0137-63-2185
A50: 八雲 | B50: 長万部町立病院 | C50: 1981-10-07 | D50: 1983-01-11 | E50: 049-3521 | F50: 山越郡長万部町字長万部18番地40 | G50: 9 | H50: 長万部町 | I50: 伊藤 淳 | J50: 54 | K50: 30 | L50: 24 | P50: 内,小,外,眼,整 | Q50: ○ | R50: 01377-2-5611
A51: 八雲 | B51: 八雲町熊石国民健康保険病院 | C51: 1959-12-10 | D51: 1959-12-10 | E51: 043-0416 | F51: 二海郡八雲町熊石雲石町494番地1 | G51: 9 | H51: 八雲町 | I51: 藤戸 収作 | J51: 99 | K51: 99 | P51: 内,小,外,整,婦,眼 | Q51: ○ | R51: 01398-2-3555
A52: 八雲 | B52: 八雲保健所計 | F52: =COUNTA(F46:F51) -> 6 | J52: =SUM(K52:O52) -> 747 | K52: =SUM(K46:K51) -> 459 | L52: =SUM(L46:L51) -> 184 | M52: =SUM(M46:M51) -> 100 | N52: =SUM(N46:N51) -> 0 | O52: =SUM(O46:O51) -> 4 | Q52: =COUNTA(Q46:Q51) -> 5
A53: 札幌市 | B53: 特定医療法人 平成会 平成会病院 | C53: 平24.2.10 | D53: 平24.3.11 | E53: 060-0001 | F53: 札幌市中央区北1条西18丁目1番1 | G53: 20 | H53: 特定医療法人 平成会 | I53: 橋本 聡一 | J53: 82 | K53: 82 | P53: 外・リハ・放・麻・循環器内科・呼吸器内科・消化器内科 | R53: 011-631-0333
A54: 札幌市 | B54: 時計台記念病院 | C54: 平17.8.30 | D54: 平17.10.1 | E54: 060-0031 | F54: 札幌市中央区北1条東1丁目2番地3 | G54: 20 | H54: 社会医療法人社団カレスサッポロ | I54: 藤井 美穂 | J54: 225 | K54: 225 | P54: 内・精・整・形・婦・眼・リハ・麻・消化器内科・循環器内科・腎臓内科・リウ・糖尿病内科・脳・放・外・緩和ケア内科・血液外科・泌・病理診断科 | Q54: ○ | R54: 011-251-1221
A55: 札幌市 | B55: ＪＲ札幌病院 | C55: 大4.11.6 | E55: 060-0033 | F55: 札幌市中央区北3条東1丁目1番地 | G55: 24 | H55: 北海道旅客鉄道株式会社 | I55: 四十坊 典晴 | J55: 312 | K55: 312 | P55: 内・精・小・外・整・皮・泌・肛門外科・産婦・眼・耳・放・歯外・麻・リウ・呼吸器内科・呼吸器外科・循環器内科・血管外科・消化器内科・腎臓内科・乳腺外科・病理診断科・糖尿病内科 | Q55: ○ | R55: 011-208-7150
A56: 札幌市 | B56: ＪＡ北海道厚生連札幌厚生病院 | C56: 平4.11.12 | D56: 平6.10.1 | E56: 060-0033 | F56: 札幌市中央区北3条東8丁目5番地 | G56: 14 | H56: 北海道厚生農業協同組合連合会 | I56: 髭 修平 | J56: 516 | K56: 516 | P56: 内・呼吸器内科・消化器内科・循環器内科・小・外・整・皮・泌・産婦・眼・耳・リハ・放・麻・脳神経内科・心外・精・緩和ケア内科・糖尿病内科・血液内科・化学療法内科・消化器外科・病理診断科・腎臓内科・リウ・呼外 | Q56: ○ | R56: 011-261-5331
A57: 札幌市 | B57: 国家公務員共済組合連合会 斗南病院 | C57: 平28.9.14 | D57: 平28.10.11 | E57: 060-0004 | F57: 札幌市中央区北４条西７丁目３－８ | G57: 17 | H57: 国家公務員共済組合連合会 | I57: 奥芝 俊一 | J57: 283 | K57: 283 | P57: 消化器内科・腫瘍内科・呼吸器内科・リウ・「糖尿病・内分泌内科」・循環器内科・血液内科・内・消化器外科・呼外・内視鏡外科・乳腺外科・心・整・形・皮・泌・婦・婦（生殖医療）・眼・耳・頭頸部外科・麻・放射線診断科・放射線治療科・リハ・病理診断科・精 | Q57: ○ | R57: 011-231-2121
A58: 札幌市 | B58: 医療法人社団正心会 岡本病院 | C58: 昭58.9.6 | D58: 昭58.10.1 | E58: 060-0007 | F58: 札幌市中央区北7条西26丁目3番1号 | G58: 20 | H58: 医療法人社団正心会 | I58: 岡本 呉賦 | J58: 217 | L58: 28 | M58: 189 | P58: 内・精・神・呼・消・循 | R58: 011-611-2351
A59: 札幌市 | B59: 医療法人札幌円山整形外科病院 | C59: 平元.3.16 | D59: 平元.4.1 | E59: 060-0007 | F59: 札幌市中央区北7条西27丁目1番3号 | G59: 20 | H59: 医療法人札幌円山整形外科病院 | I59: 竹林 庸雄 | J59: 110 | K59: 110 | P59: リウ・整・リハ・麻 | Q59: ○ | R59: 011-612-1133
A60: 札幌市 | B60: 医療法人桑園中央病院 | C60: 平7.12.19 | D60: 平9.4.21 | E60: 060-0008 | F60: 札幌市中央区北8条西16丁目28番35号 | G60: 20 | H60: 医療法人桑園中央病院 | I60: 松井 傑 | J60: 68 | K60: 38 | L60: 30 | P60: 内・外・泌・泌尿器科（人工透析）・リハ・放・麻・循環器内科・血管外科・形・糖尿病内科・リウ | R60: 011-621-1023
A61: 札幌市 | B61: 札幌渓仁会リハビリテーション病院 | C61: 平29.5.9 | D61: 平29.6.1 | E61: 060-0010 | F61: 札幌市中央区北１０条西１７丁目３６－１３ | G61: 20 | H61: 医療法人 渓仁会 | I61: 橋本 茂樹 | J61: 155 | L61: 155 | P61: 内・リハ・循環器内科 | R61: 011-640-7012
A62: 札幌市 | B62: 市立札幌病院 | C62: 平6.7.13 | D62: 平7.10.11 | E62: 060-0011 | F62: 札幌市中央区北11条西13丁目1番1号 | G62: 9 | H62: 札幌市 | I62: 西川 秀司 | J62: 672 | K62: 626 | M62: 38 | O62: 8 | P62: 内・精・神内・リウ・小・外・整・形・脳・呼外・小外・皮・泌・産婦・眼・耳・リハ・麻・呼吸器内科・消化器内科・消化器外科・循環器内科・腎臓内科・血液内科・腫瘍内科・乳腺外科・病理診断科・救急科・歯外・心外・糖尿病内分泌内科・新生児内科・緩和ケア内科・感染症内科・腎臓移植外科・放射線診断科・放射線治療科 | Q62: ○ | R62: 011-726-2211
A63: 札幌市 | B63: 札幌循環器病院 | C63: 平 16.7.22 | D63: 平 16.8.23 | E63: 060-0011 | F63: 札幌市中央区北11条西14丁目29番15号 | G63: 20 | H63: 医療法人社団札幌循環器クリニック | I63: 善岡 信博 | J63: 89 | K63: 89 | P63: 内・消化器内科・循環器内科・腎臓内科（人工透析）・リハ | R63: 011-747-5821
A64: 札幌市 | B64: 医療法人社団健心会 桑園病院 | C64: 平7.12.11 | D64: 平8.1.1 | E64: 060-0012 | F64: 札幌市中央区北12条西15丁目1番30号 | G64: 20 | H64: 医療法人社団健心会 | I64: 池田 輝明 | J64: 156 | M64: 156 | P64: 心内・精・神 | R64: 011-716-2497
A65: 札幌市 | B65: 札幌南一条病院 | C65: 昭56.11.11 | D65: 昭56.12.1 | E65: 060-0061 | F65: 札幌市中央区南1条西13丁目317番地1 | G65: 20 | H65: 医療法人社団北海道恵愛会 | I65: 土田 哲人 | J65: 147 | K65: 147 | P65: 内・呼吸器内科・消化器内科・循環器内科・腎臓内科・糖尿病内科・放・リハ・人工透析内科 | R65: 011-271-3711
A66: 札幌市 | B66: 社会医療法人 医仁会 中村記念病院 | C66: 昭55.12.4 | D66: 昭55.12.8 | E66: 060-0061 | F66: 札幌市中央区南1条西14丁目291番地190 | G66: 20 | H66: 社会医療法人 医仁会 | I66: 中村 博彦 | J66: 499 | K66: 499 | P66: 内・循環器内科・脳神経内科・「糖尿病・代謝内科」・外・消化器外科・消化器内科・整・心外・脳・眼・耳・リハ・放・麻・病理診断科・小児神経内科 | Q66: ○ | R66: 011-231-8555
A67: 札幌市 | B67: ＮＴＴ東日本札幌病院 | C67: 昭60.4.1 | D67: 昭60.4.1 | E67: 060-0061 | F67: 札幌市中央区南1条西15丁目290番地 | G67: 24 | H67: 東日本電信電話株式会社 | I67: 吉岡 成人 | J67: 301 | K67: 301 | P67: 精・呼吸器内科・消化器内科・循環器内科・小・外・消化器外科・呼吸器外科・整・皮・泌・産婦・眼・耳・放・麻・心外・腎臓内科・人工透析内科・「血液・腫瘍内科」・糖尿病内分泌内科・リウ・病 | Q67: ○ | R67: 011-623-7000
A68: 札幌市 | B68: 札幌医科大学附属病院 | C68: 平19.4.1 | D68: 平19.4.1 | E68: 060-0061 | F68: 札幌市中央区南1条西16丁目291番地 | G68: 10 | H68: 北海道公立大学法人札幌医科大学 | I68: 土橋 和文 | J68: 922 | K68: 890 | M68: 32 | P68: 内・精・循・小・外・整・形・脳・心外・皮・泌・産婦・眼・耳・リハ・歯・歯外・麻・脳神経内科・矯歯・救急科・病理診断科・呼外・放射線治療科・放射線診断科・感染症内科 | Q68: ○ | R68: 011-611-2111
A69: 札幌市 | B69: 医療法人萬田記念病院 | C69: 平4.8.25 | D69: 平4.9.1 | E69: 060-0062 | F69: 札幌市中央区南2条西1丁目1番地 | G69: 20 | H69: 医療法人萬田記念病院 | I69: 萬田 直紀 | J69: 89 | K69: 89 | P69: 内・消化器内科・糖尿病内科・腎臓内科・眼 | R69: 011-231-4032
A70: 札幌市 | B70: 医療法人社団いとう整形外科病院 | C70: 平元.4.19 | D70: 平元.5.1 | E70: 060-0062 | F70: 札幌市中央区南2条西10丁目5番地 | G70: 20 | H70: 医療法人社団いとう整形外科病院 | I70: 伊藤 宇一 | J70: 80 | K70: 80 | P70: 内・整・リハ・麻 | Q70: ○ | R70: 011-241-5461
A71: 札幌市 | B71: 一般財団法人 札幌同交会病院 | C71: 昭31.6.22 | D71: 昭31.7.10 | E71: 060-0062 | F71: 札幌市中央区南2条西19丁目291番地 | G71: 25 | H71: 一般財団法人 札幌同交会病院 | I71: 淡川 照仁 | J71: 166 | K71: 118 | L71: 48 | P71: 内・消化器内科・リハ・放・リウ、循環器内科 | R71: 011-611-9131
A72: 札幌市 | B72: 札幌南三条病院 | C72: 平15.12.24 | D72: 平16.1.1 | E72: 060-0063 | F72: 札幌市中央区南3条西6丁目4番2号 | G72: 20 | H72: 医療法人社団北海道恵愛会 | I72: 小場 弘之 | J72: 99 | K72: 99 | P72: 内・呼外・呼吸器内科・消化器内科・脳・麻・放 | R72: 011-233-3711
A73: 札幌市 | B73: 医療法人資生会創成東病院 | C73: 平13.12.18 | D73: 平14.1.1 | E73: 060-0053 | F73: 札幌市中央区南3条東3丁目13番地 | G73: 20 | H73: 医療法人資生会 | I73: 上田 康夫 | J73: 94 | K73: 94 | P73: 内・胃腸内科（内視鏡）・リハ | R73: 011-222-2117
A74: 札幌市 | B74: 医療法人菊郷会 愛育病院 | C74: 平20.3.19 | D74: 平20.3.30 | E74: 064-0804 | F74: 札幌市中央区南4条西25丁目2番1号 | G74: 20 | H74: 医療法人菊郷会 | I74: 盛 暁生 | J74: 164 | K74: 164 | P74: 内・消化器内科・循環器内科・血液内科・外・整・小・乳腺外科・リハ・麻酔・糖内 | Q74: ○ | R74: 011-563-2211
A75: 札幌市 | B75: 医療法人大空 札幌ススキノ病院 | C75: 平28.4.28 | D75: 平28.6.1 | E75: 064-0806 | F75: 札幌市中央区南6条西8丁目5番地 | G75: 20 | H75: 医療法人 大空 | I75: 齋藤 正信 | J75: 50 | K75: 50 | P75: 内・消化器内科・呼吸器内科・人工透析内科・循環器内科・外・消化器外科・リハ・眼 | R75: 011-512-2000
A76: 札幌市 | B76: 医療法人社団清和会 南札幌病院 | C76: 平13.8.21 | D76: 平13.8.27 | E76: 064-0909 | F76: 札幌市中央区南9条西7丁目1番23号 | G76: 20 | H76: 医療法人社団清和会 | I76: 相川 忠弘 | J76: 94 | K76: 94 | P76: 内・呼吸器内科・消化器内科・循環器内科・リハ・糖尿病内科・腎臓内科 | R76: 011-511-3368
A77: 札幌市 | B77: 札幌中央病院 | C77: 昭54.12.21 | D77: 昭55.1.1 | E77: 064-0809 | F77: 札幌市中央区南9条西10丁目1番50号 | G77: 20 | H77: 社会医療法人鳩仁会 | I77: 荒木 英司 | J77: 180 | K77: 180 | P77: 内・呼吸器内科・呼外・消化器内科・消化器外科・循環器内科・外・整・心外・リハ・リウ・麻・腎臓内科・形・「糖尿病・内分泌内科」・泌・内視鏡内科 | Q77: ○ | R77: 011-513-0111
A78: 札幌市 | B78: 医療法人社団銀杏会さっぽろ銀杏会記念病院 | C78: 平14. 7.30 | D78: 平14.8.1 | E78: 064-0811 | F78: 札幌市中央区南11条西8丁目2番25号 | G78: 20 | H78: 医療法人社団銀杏会 | I78: 川西 譲児 | J78: 85 | K78: 85 | P78: 内・胃腸内科・消化器内科・内視鏡内科・緩和ケア内科・皮・【胆のう・膵臓内科】 | R78: 011-511-2060
A79: 札幌市 | B79: 医療法人社団心和会 心和病院 | C79: 平2.11.17 | D79: 平2.12.1 | E79: 064-0913 | F79: 札幌市中央区南13条西20丁目1番6号 | G79: 20 | H79: 医療法人社団心和会心和病院 | I79: 関 純彦 | J79: 40 | K79: 40 | P79: 内・循環器内科・リハ・麻・ペインクリニック内科 | R79: 011-551-4184
A80: 札幌市 | B80: 医療法人藻友会 札幌いしやま病院 | C80: 平16.5.12 | D80: 平16.6.1 | E80: 064-0915 | F80: 札幌市中央区南15条西10丁目4番1号 | G80: 20 | H80: 医療法人藻友会札幌いしやま病院 | I80: 石山 元太郎 | J80: 89 | K80: 89 | P80: 肛門外科・内視鏡外科（大腸・胃） | R80: 011-551-2241
A81: 札幌市 | B81: 医療法人社団慶愛会 札幌花園病院 | C81: 昭35.7.10 | D81: 昭35.12.1 | E81: 064-0915 | F81: 札幌市中央区南15条西15丁目1番30号 | G81: 20 | H81: 医療法人社団慶愛会 | I81: 安部川 智浩 | J81: 227 | M81: 227 | P81: 内・精・神 | R81: 011-561-6131
A82: 札幌市 | B82: 医療法人社団 土田病院 | C82: 平11.12.21 | D82: 平12.1.1 | E82: 064-0921 | F82: 札幌市中央区南21条西9丁目2－11 | G82: 20 | H82: 医療法人社団土田病院 | I82: 佐々木 寿誉 | J82: 134 | K82: 42 | L82: 92 | P82: 内・消化器内科・消化器外科・循環器内科・外・整・リハ・放・肛門外科・救急科・呼吸器内科・アレ | Q82: ○ | R82: 011-531-7013
A83: 札幌市 | B83: 医療法人社団慈藻会 平松記念病院 | C83: 昭48.11.20 | D83: 昭48.12.1 | E83: 064-0922 | F83: 札幌市中央区南22条西14丁目1番20号 | G83: 20 | H83: 医療法人社団慈藻会 | I83: 傳田 健三 | J83: 228 | M83: 228 | P83: 内・精・心内 | R83: 011-561-0708
A84: 札幌市 | B84: 医療法人社団札幌外科記念病院 | C84: 平8.12.20 | D84: 平9.1.1 | E84: 064-0923 | F84: 札幌市中央区南23条西15丁目1番30号 | G84: 20 | H84: 医療法人社団札幌外科記念病院 | I84: 長内 宏之 | J84: 99 | K84: 99 | P84: 内・消化器内科・消化器外科・外・整・小外・肛門外科・放・麻・リハ・循環器内科・循環器外科・ペインクリニック外科 | Q84: ○ | R84: 011-563-0151
A85: 札幌市 | B85: 社会医療法人北海道循環器病院 | C85: 昭63.4.18 | D85: 昭63.5.1 | E85: 064-0927 | F85: 札幌市中央区南27条西13丁目1番30号 | G85: 20 | H85: 社会医療法人北海道循環器病院 | I85: 山崎 健二 | J85: 95 | K85: 95 | P85: 内・呼吸器内科・消化器内科・循環器内科・外・心外・リハ・麻・放・内分泌・糖尿病内科 | R85: 011-563-3911
A86: 札幌市 | B86: 慈啓会病院 | C86: 昭23.11.8 | D86: 昭24.3.5 | E86: 064-8575 | F86: 札幌市中央区旭ヶ丘5丁目6番50号 | G86: 22 | H86: 社会福祉法人札幌慈啓会 | I86: 木村 裕一 | J86: 235 | K86: 48 | L86: 88 | M86: 99 | P86: 内・精・リハ・老年内科・消化器内科・放射線診断科・漢内 | R86: 011-561-8292
A87: 札幌市 | B87: 札幌西円山病院 | C87: 昭59.12.15 | D87: 昭60.1.1 | E87: 064-8557 | F87: 札幌市中央区円山西町4丁目7番25号 | G87: 20 | H87: 医療法人渓仁会 | I87: 山田 陽 | J87: 603 | K87: 469 | L87: 134 | P87: 内・神内・リハ・歯・循・老年内科 | R87: 011-642-4121
A88: 札幌市 | B88: 医療法人北仁会 旭山病院 | C88: 昭56.1.17 | D88: 昭56.2.1 | E88: 064-0946 | F88: 札幌市中央区双子山 4丁目3番33号 | G88: 20 | H88: 医療法人北仁会 | I88: 市來 和政 | J88: 316 | M88: 316 | P88: 内・精・心内 | R88: 011-641-7755
A89: 札幌市 | B89: 医療法人社団明日佳 札幌明日佳病院 | C89: 昭61.10.14 | D89: 昭61.11.1 | E89: 064-0951 | F89: 札幌市中央区宮の森 1条17丁目1番25号 | G89: 20 | H89: 医療法人社団明日佳 | I89: 山岸 雅彦 | J89: 243 | L89: 243 | P89: 内・リハ・歯 | R89: 011-641-8813
A90: 札幌市 | B90: 医療法人讃生会 宮の森記念病院 | C90: 平8.12.19 | D90: 平9.1.1 | E90: 064-0953 | F90: 札幌市中央区宮の森 3条7丁目5番25号 | G90: 20 | H90: 医療法人社団讃生会 | I90: 前田 至 | J90: 110 | K90: 92 | L90: 18 | P90: 内・消化器内科・循環器内科・腎臓内科・外・脳・リハ | R90: 011-641-6641
A91: 札幌市 | B91: 医療法人社団恵和会 宮の森病院 | C91: 昭62.10.19 | D91: 昭62.11.1 | E91: 064-0958 | F91: 札幌市中央区宮の森1237番地1 | G91: 20 | H91: 医療法人社団恵和会 | I91: 山田 惟好 | J91: 240 | L91: 240 | P91: 内・歯 | R91: 011-611-2211
A92: 札幌市 | B92: 中央区計 | F92: =COUNTA(F53:F91) -> 39 | J92: =SUM(K92:O92) -> 8514 | K92: =SUM(K53:K91) -> 6145 | L92: =SUM(L53:L91) -> 1076 | M92: =SUM(M53:M91) -> 1285 | N92: =SUM(N53:N91) -> 0 | O92: =SUM(O53:O91) -> 8 | Q92: =COUNTA(Q53:Q91) -> 14
A93: 札幌市 | B93: 医療法人社団 太黒胃腸内科病院 | C93: 平7.12.28 | D93: 平8.1.1 | E93: 001-0011 | F93: 札幌市北区北11条西3丁目1番15号 | G93: 20 | H93: 医療法人社団 太黒胃腸内科病院 | I93: 今井 希一 | J93: 60 | K93: 60 | P93: 内・胃腸内科 | R93: 011-716-9161
A94: 札幌市 | B94: 札幌マタニティ・ウイメンズホスピタル | C94: 平5.8.26 | D94: 平5.9.6 | E94: 001-0013 | F94: 札幌市北区北13条西4丁目2番23号 | G94: 20 | H94: 医療法人明日葉会 | I94: 大久保 仁 | J94: 52 | K94: 52 | P94: 小・産・婦 | R94: 011-746-5505
A95: 札幌市 | B95: 北海道大学病院 | C95: 大10.7.22 | D95: 大10.11.1 | E95: 060-0814 | F95: 札幌市北区北14条西5丁目 | G95: 3 | H95: 国立大学法人北海道大学 | I95: 渥美 達也 | J95: 944 | K95: 874 | M95: 70 | P95: 内・消化器内科・循環器内科・血液内科・腫瘍内科・精・脳神経内科・小・小外・整・形・脳・循環器外科・消化器外科・呼吸器外科・皮・泌・産・「乳腺・内分泌内科」・眼・耳・リハ・放・放射線診断科・放射線治療科・歯・矯歯・小歯・歯外・麻・救 | Q95: ○ | R95: 011-716-1161
A96: 札幌市 | B96: 社会医療法人秀眸会 大塚眼科病院 | C96: 平3.8.23 | D96: 平3.9.1 | E96: 001-0016 | F96: 札幌市北区北16条西4丁目2-17 | G96: 20 | H96: 社会医療法人秀眸会 大塚眼科病院 | I96: 北明 大洲 | J96: 52 | K96: 52 | P96: 内・眼 | R96: 011-747-5211
A97: 札幌市 | B97: 松田整形外科記念病院 | C97: 昭54.4.19 | D97: 昭54.5.1 | E97: 001-0018 | F97: 札幌市北区北18条西4丁目1番35号 | G97: 20 | H97: 医療法人松田整形外科記念病院 | I97: 髙橋 輝一 | J97: 60 | K97: 60 | P97: リウ・整・リハ・麻・歯・歯外 | Q97: ○ | R97: 011-746-3666
A98: 札幌市 | B98: 医療法人社団 心優会 中江病院 | C98: 昭30.9.1 | D98: 昭30.10.1 | E98: 001-0022 | F98: 札幌市北区北22条西7丁目2番1号 | G98: 20 | H98: 医療法人社団 心優会 | I98: 小林 清樹 | J98: 280 | M98: 280 | P98: 内・精・心内・歯 | R98: 011-716-7181
A99: 札幌市 | B99: 長生会病院 | C99: 平3.12.11 | D99: 平4.1.6 | E99: 001-0025 | F99: 札幌市北区北25条西16丁目2番1号 | G99: 26 | H99: 竹林 克重 | I99: 竹林 克重 | J99: 74 | K99: 28 | L99: 46 | P99: 内・消 | R99: 011-726-4835
A100: 札幌市 | B100: 社会医療法人北楡会 開成病院 | C100: 昭51.7.28 | D100: 昭51.9.1 | E100: 001-0033 | F100: 札幌市北区北33条西6丁目2番35号 | G100: 20 | H100: 社会医療法人北楡会 | I100: 齋藤 雅雄 | J100: 108 | K100: 108 | P100: 内・消化器内科・血液内科・外・麻・循環器内科 | R100: 011-757-2201
A101: 札幌市 | B101: 医療法人社団憲仁会 牧田病院 | C101: 昭57.12.28 | D101: 昭58.2.1 | E101: 001-0901 | F101: 札幌市北区新琴似1条2丁目6番25号 | G101: 20 | H101: 医療法人社団憲仁会 | I101: 清水 健一 | J101: 57 | K101: 57 | P101: 内・呼・アレ | R101: 011-761-4835
A102: 札幌市 | B102: 医療法人研成会 札幌鈴木病院 | C102: 昭63.3.12 | D102: 昭63.4.1 | E102: 001-0903 | F102: 札幌市北区新琴似3条1丁目1番27号 | G102: 20 | H102: 医療法人社団研成会 | I102: 篠原 かほる | J102: 163 | M102: 163 | P102: 内・心内・精・神・胃・循環器内科・神内 | R102: 011-709-5511
A103: 札幌市 | B103: 医療法人 麻生整形外科病院 | C103: 昭62.4.20 | D103: 昭62.5.1 | E103: 001-0908 | F103: 札幌市北区新琴似8条2丁目2番5号 | G103: 20 | H103: 医療法人 麻生整形外科病院 | I103: 横澤 均 | J103: 53 | K103: 53 | P103: 整・リハ・麻 | Q103: ○ | R103: 011-764-3311
A104: 札幌市 | B104: 医療法人社団 北札幌病院 | C104: 平3.8.23 | D104: 平3.9.1 | E104: 001-0909 | F104: 札幌市北区新琴似9条1丁目1番1号 | G104: 20 | H104: 医療法人社団 北札幌病院 | I104: 幾世橋 経人 | J104: 95 | K104: 35 | L104: 60 | P104: 内・呼吸気内科・循環器内科・消化器内科・外・整 | Q104: ○ | R104: 011-756-1111
A105: 札幌市 | B105: 医療法人 新川新道整形外科病院 | C105: 昭55.8.19 | D105: 昭55.9.1 | E105: 001-0925 | F105: 札幌市北区新川5条4丁目2番8号 | G105: 20 | H105: 医療法人 新川新道整形外科病院 | I105: 猫塚 義夫 | J105: 70 | K105: 70 | P105: 整・リハ・リウ・内 | Q105: ○ | R105: 011-763-0110
A106: 札幌市 | B106: 特定医療法人朋友会 石金病院 | C106: 昭59.1.12 | D106: 昭59.2.1 | E106: 001-0930 | F106: 札幌市北区新川714番地2 | G106: 20 | H106: 特定医療法人朋友会 | I106: 石金 朋人 | J106: 210 | M106: 210 | P106: 内・精・神 | R106: 011-762-4111
A107: 札幌市 | B107: 社会医療法人延山会 北成病院 | C107: 昭54.9.19 | D107: 昭54.9.19 | E107: 001-0933 | F107: 札幌市北区新川西3条2丁目10番1号 | G107: 20 | H107: 社会医療法人延山会 | I107: 棚澤 哲 | J107: 138 | K107: 54 | L107: 84 | P107: 内・呼・消・循・放 | R107: 011-764-3021
A108: 札幌市 | B108: 医療法人社団栄杜会 小原病院 | C108: 平4.8.20 | D108: 平4.9.1 | E108: 002-0859 | F108: 札幌市北区屯田9条12丁目5-1 | G108: 20 | H108: 医療法人社団栄杜会小原病院 | I108: 小原 敏之 | J108: 145 | M108: 145 | P108: 内・精・神 | R108: 011-771-0881
A109: 札幌市 | B109: 医療法人社団 札幌百合の会病院 | C109: 平元.10.19 | D109: 平元.11.1 | E109: 002-8081 | F109: 札幌市北区百合が原11丁目186 | G109: 20 | H109: 医療法人社団 札幌百合の会病院 | I109: 稻場 守 | J109: 136 | K109: 48 | L109: 88 | P109: 内・消化器内科・呼吸器内科・循環器内科・リハ・糖尿病内科・内分泌内科 | R109: 011-771-1501
A110: 札幌市 | B110: 医療法人社団 荒木病院 | C110: 平11.12.14 | D110: 平12.1.1 | E110: 002-8023 | F110: 札幌市北区篠路3条2丁目1番92号 | G110: 20 | H110: 医療法人社団 荒木病院 | I110: 荒木 啓伸 | J110: 148 | L110: 27 | M110: 121 | P110: 内・精・神 | R110: 011-771-5731
A111: 札幌市 | B111: 社会医療法人康和会 札幌しらかば台篠路病院 | C111: 令2.7.22 | D111: 令3.11.1 | E111: 002-8025 | F111: 札幌市北区篠路5条8丁目2番1号 | G111: 20 | H111: 社会医療法人康和会 | I111: 伴 紀宏 | J111: 240 | K111: 60 | L111: 180 | P111: 内・消化器内科・リハ | R111: 011-773-0711
A112: 札幌市 | B112: 医療法人社団 五稜会病院 | C112: 平2.10.29 | D112: 平2.11.1 | E112: 002-8029 | F112: 札幌市北区篠路9条6丁目2番3号 | G112: 20 | H112: 医療法人社団 五稜会病院 | I112: 中島 公博 | J112: 193 | M112: 193 | P112: 内・心内・精・消化器内科 | R112: 011-771-5660
A113: 札幌市 | B113: 医療法人社団翔嶺館 札幌優翔館病院 | C113: 昭56.9.30 | D113: 昭56.10.1 | E113: 002-8043 | F113: 札幌市北区東茨戸２条２丁目８番２５号 | G113: 20 | H113: 医療法人社団翔嶺館 | I113: 北川 真吾 | J113: 134 | K113: 86 | L113: 48 | P113: 内・外・整・消化器内科・循環器内科・呼吸器内科・リハ・神経精神科・人工透析外科・消化器外科・麻 | R113: 011-772-9211
A114: 札幌市 | B114: 北海道医療大学病院 | C114: 平17.6.22 | D114: 平17.7.1 | E114: 002-8072 | F114: 札幌市北区あいの里2条5丁目 | G114: 21 | H114: 学校法人東日本学園 | I114: 北市 伸義 | J114: 24 | K114: 24 | P114: 内、呼吸器内科、消化器内科、心内、小、耳、整、皮、眼、歯、小歯、矯歯、歯外、循環器内科、泌、血液内科、脳神経内科、リハ | R114: 011-778-7575
A115: 札幌市 | B115: 北区計 | F115: =COUNTA(F93:F114) -> 22 | J115: =SUM(K115:O115) -> 3436 | K115: =SUM(K93:K114) -> 1721 | L115: =SUM(L93:L114) -> 533 | M115: =SUM(M93:M114) -> 1182 | N115: =SUM(N93:N114) -> 0 | O115: =SUM(O93:O114) -> 0 | Q115: =COUNTA(Q93:Q114) -> 5
A116: 札幌市 | B116: 医療法人社団 我汝会 さっぽろ病院 | C116: 平31.4.16 | D116: 令2.9.28 | E116: 065-0005 | F116: 札幌市東区北 ５条東１１丁目１６番１号 | G116: 20 | H116: 医療法人社団 我汝会 | I116: 春藤 基之 | J116: 88 | K116: 88 | P116: 整・リハ・麻 | R116: 011-753-3030
A117: 札幌市 | B117: 社会医療法人朋仁会 整形外科北新病院 | C117: 平31.3.15 | D117: 令2.8.20 | E117: 060-0908 | F117: 札幌市東区北 ８条東 ４丁目１番５号 | G117: 20 | H117: 社会医療法人 朋仁会 | I117: 齊田 通則 | J117: 112 | K117: 112 | P117: 整・リハ・麻 | Q117: ○ | R117: 011-792-1211
A118: 札幌市 | B118: 天使病院 | C118: 平15.6.20 | D118: 平15.7.1 | E118: 065-0012 | F118: 札幌市東区北12条東3丁目1-1 | G118: 20 | H118: 社会医療法人母恋 | I118: 西村 光弘 | J118: 260 | K118: 260 | P118: 内・呼吸器内科・消化器内科・循環器内科・外・小児外科・乳腺外科・産婦・小・麻・整・耳・眼・精・放・血液内科・「糖尿病・代謝内科」・肝臓内科・人工透析内科・形 | Q118: ○ | R118: 011-711-0101
A119: 札幌市 | B119: 医療法人社団 誠心会 札幌ハートクリニック | C119: 平7.4.28 | D119: 平7.5.22 | E119: 065-0015 | F119: 札幌市東区北15条東18丁目5番15号 | G119: 20 | H119: 医療法人社団誠心会 | I119: 髙橋 由美子 | J119: 23 | K119: 23 | P119: 内・リハ・循環器内科 | R119: 011-785-3111
A120: 札幌市 | B120: 医療法人社団札幌道都病院 | C120: 平6.12.7 | D120: 平7.1.1 | E120: 065-0017 | F120: 札幌市東区北17条東14丁目3番2号 | G120: 20 | H120: 医療法人社団札幌道都病院 | I120: 奏 史壯 | J120: 188 | K120: 188 | P120: 内・呼吸器内科・消化器内科・消化器外科・循環器内科・神内・外・肛門外科・リハ・形・放・麻 | R120: 011-731-1155
A121: 札幌市 | B121: 医療法人育愛会 札幌東豊病院 | C121: 平元.8.9 | D121: 平元.9.1 | E121: 065-0017 | F121: 札幌市東区北17条東15丁目3番1号 | G121: 20 | H121: 医療法人育愛会 | I121: 犬走 英介 | J121: 67 | K121: 67 | P121: 小・産・婦・麻 | R121: 011-704-3911
A122: 札幌市 | B122: 医療法人セレス さっぽろ神経内科病院 | C122: 平26.6.3 | D122: 平27.7.1 | E122: 065-0021 | F122: 札幌市東区北２１条東２１丁目２番１号 | G122: 20 | H122: 医療法人セレス | I122: 川島 淳 | J122: 81 | K122: 81 | P122: 神内・内・リハ | R122: 011-870-5700
A123: 札幌市 | B123: 医療法人札幌麻生脳神経外科病院 | C123: 昭63.12.16 | D123: 昭64.1.1 | E123: 065-0022 | F123: 札幌市東区北22条東1丁目1番40号 | G123: 20 | H123: 医療法人札幌麻生脳神経外科病院 | I123: 飛彈 一利 | J123: 145 | K123: 145 | P123: 神内・脳・リハ・放 | Q123: ○ | R123: 011-731-2321
A124: 札幌市 | B124: 社会医療法人社団愛心館 愛心メモリアル病院 | C124: 平8.12.19 | D124: 平9.1.1 | E124: 065-0027 | F124: 札幌市東区北27条東1丁目1番15号 | G124: 20 | H124: 社会医療法人社団愛心館 | I124: 岡本 洋 | J124: 71 | K124: 71 | P124: 循環器内科・人工透析内科・外・心外・眼・皮・腎臓内科・糖尿病内科 | Q124: ○ | R124: 011-752-3535
A125: 札幌市 | B125: 北光記念病院 | C125: 平8.1.19 | D125: 平8.2.1 | E125: 065-0027 | F125: 札幌市東区北27条東8丁目1番6号 | G125: 20 | H125: 社会医療法人社団カレスサッポロ | I125: 櫻井 正之 | J125: 145 | K125: 145 | P125: 内・消化器内科・循環器内科・心外・放・腎臓内科 | R125: 011-722-1133
A126: 札幌市 | B126: 医療法人啓生会病院 | C126: 昭45.4.17 | D126: 昭45.5.1 | E126: 065-0027 | F126: 札幌市東区北27条東20丁目5番25号 | G126: 20 | H126: 医療法人啓生会 | I126: 後藤田 敏彦 | J126: 211 | M126: 211 | P126: 精・心内 | R126: 011-781-9321
A127: 札幌市 | B127: 札幌東和病院 | C127: 昭60.8.19 | D127: 昭60.9.18 | E127: 065-0030 | F127: 札幌市東区北30条東18丁目8番1号 | G127: 26 | H127: 池下 照彦 | I127: 池下 照彦 | J127: 210 | L127: 210 | P127: 内・リハ・放 | R127: 011-784-1118
A128: 札幌市 | B128: 医療法人徳洲会 札幌東徳洲会病院 | C128: 昭61.1.16 | D128: 昭61.2.1 | E128: 065-0033 | F128: 札幌市東区北33条東14丁目3番1号 | G128: 20 | H128: 医療法人徳洲会 | I128: 太田 智之 | J128: 336 | K128: 336 | P128: 内・呼吸器内科・消化器内科・腎臓内科・循環器内科・小・外・消化器外科・整・脳・心外・皮・形・耳・リハ･眼・歯外・麻・病理診断科・肛門外科・救急科・乳腺外科・放射線診断科・放射線治療科・泌・頭頸部外科・呼吸器外科 | Q128: ○ | R128: 011-722-1110
A129: 札幌市 | B129: 社会医療法人耳鼻咽喉科麻生病院 | C129: 平4.8.11 | D129: 平4.9.1 | E129: 007-0840 | F129: 札幌市東区北40条東1丁目1番7号 | G129: 20 | H129: 社会医療法人耳鼻咽喉科麻生 | I129: 小笠原 誠 | J129: 35 | K129: 35 | P129: 耳・気・麻・歯外 | R129: 011-731-4133
A130: 札幌市 | B130: 北海道泌尿器科記念病院 | C130: 平27.7.6 | D130: 平27.8.1 | E130: 007-0841 | F130: 札幌市東区北41条東1丁目1番25号 | G130: 20 | H130: 医療法人エム・ティー・エヌ | I130: 飴田 要 | J130: 40 | K130: 40 | P130: 泌・放・麻・腎臓内科 | R130: 011-711-1717
A131: 札幌市 | B131: 社会医療法人禎心会 札幌禎心会病院 | C131: 平27.9.14 | D131: 平27.11.1 | E131: 065-0033 | F131: 札幌市東区北33条東1丁目3番1号 | G131: 20 | H131: 社会医療法人禎心会 | I131: 徳田 禎久 | J131: 279 | K131: 279 | P131: 内・神内・形・脳・心外・婦・歯・リハ・麻・歯外・消化器内科・循環器内科・腫瘍内科・消化器外科・乳腺外科・放射線診断科・放射線治療科・頭頸部外科・病理診断科・ペインクリニック外科・呼吸器内科・泌・整・皮・糖尿病内科 | Q131: ○ | R131: 011-712-1131
A132: 札幌市 | B132: 札幌心臓血管クリニック | C132: 平25.4.5 | D132: 平15.5.1 | E132: 007-0849 | F132: 札幌市東区北49条東16丁目8番1号 | G132: 20 | H132: 医療法人 札幌ハートセンター | I132: 藤田 勉 | J132: 104 | K132: 104 | P132: 内・循環器内科・心臓内科・心外・麻 | Q132: ○ | R132: 011-784-7847
A133: 札幌市 | B133: 北海道大学病院附属司法精神医療センター | C133: 令2.8.20 | D133: 令4.4.1 | E133: 007-0802 | F133: 札幌市東区東苗穂2条1丁目484-1 | G133: 3 | H133: 国立大学法人 北海道大学 | I133: 賀古 勇輝 | J133: 23 | M133: 23 | P133: 精 | R133: 011-769-0423
A134: 札幌市 | B134: 医療法人社団豊生会 東苗穂病院 | C134: 平7.4.24 | D134: 平7.5.9 | E134: 007-0803 | F134: 札幌市東区東苗穂3条1丁目2番18号 | G134: 20 | H134: 医療法人社団豊生会 | I134: 星野 豊 | J134: 161 | K134: 60 | L134: 101 | P134: 内・呼吸器内科・消化器内科・循環器内科・神内・腎臓内科（人工透析）・リハ・歯・老年脳神経外科・心外・放 | R134: 011-784-1121
A135: 札幌市 | B135: 勤医協中央病院 | C135: 平24.3.13 | D135: 平25.5.1 | E135: 007-0805 | F135: 札幌市東区東苗穂5条1丁目9番1号 | G135: 19 | H135: 公益社団法人北海道勤労者医療協会 | I135: 鈴木 隆司 | J135: 450 | K135: 450 | P135: 内・外・整・麻・放射線治療科・眼・婦・リハ・精・心外・呼外・泌・乳腺外科・肛門外科・呼吸器内科・消化器内科・循環器内科・消化器外科・緩和ケア内科・リウ・「糖尿病・内分泌内科」・腎臓内科・肝臓外科・膵臓外科・放射線診断科・病理診断科・救急科・血液内科・脳神経内科 | Q135: ○ | R135: 011-782-9111
A136: 札幌市 | B136: 医療法人社団英仁会 札苗病院 | C136: 昭63.3.24 | D136: 昭63.4.1 | E136: 007-0807 | F136: 札幌市東区東苗穂7条2丁目8番20号 | G136: 20 | H136: 医療法人社団英仁会 | I136: 富樫 光宏 | J136: 54 | K136: 24 | L136: 30 | P136: 内・消化器内科・循環器内科・リハ | R136: 011-783-3311
A137: 札幌市 | B137: 医療法人社団大蔵会 札幌佐藤病院 | C137: 平3.8.27 | D137: 平3.9.1 | E137: 007-0862 | F137: 札幌市東区伏古2条4丁目10番15号 | G137: 20 | H137: 医療法人社団大蔵会札幌佐藤病院 | I137: 吉野 實 | J137: 244 | M137: 244 | P137: 内・心内・精・神経精神科・整・リハ・歯・小歯・歯外 | R137: 011-781-5511
A138: 札幌市 | B138: 医療法人彰和会 北海道消化器科病院 | C138: 平5.4.27 | D138: 平5.5.1 | E138: 065-0041 | F138: 札幌市東区本町1条1丁目2番10号 | G138: 20 | H138: 医療法人彰和会 | I138: 目黒 高志 | J138: 186 | K138: 186 | P138: 内・消化器内科・消化器外科・外・腫瘍内科・肛門外科・放・麻・病理診断科・緩和ケア内科 | R138: 011-784-1811
A139: 札幌市 | B139: 社会医療法人社団三草会 クラーク病院 | C139: 平5.4.21 | D139: 平5.5.1 | E139: 065-0042 | F139: 札幌市東区本町2条4丁目8番20号 | G139: 20 | H139: 社会医療法人社団三草会 | I139: 木村 敏信 | J139: 225 | K139: 225 | P139: 内・消化器内科・循環器内科・リウ・整・泌・リハ・麻 | Q139: ○ | R139: 011-782-6160
A140: 札幌市 | B140: 東区計 | F140: =COUNTA(F116:F139) -> 24 | J140: =SUM(K140:O140) -> 3738 | K140: =SUM(K116:K139) -> 2919 | L140: =SUM(L116:L139) -> 341 | M140: =SUM(M116:M139) -> 478 | N140: =SUM(N116:N139) -> 0 | O140: =SUM(O116:O139) -> 0 | Q140: =COUNTA(Q116:Q139) -> 9
A141: 札幌市 | B141: 社会医療法人三樹会 三樹会泌尿器科病院 | C141: 昭60.5.20 | D141: 昭61.6.1 | E141: 003-0002 | F141: 札幌市白石区東札幌2条3丁目6番10号 | G141: 20 | H141: 社会医療法人三樹会 | I141: 佐藤 嘉一 | J141: 99 | K141: 99 | P141: 皮・泌・放・麻 | R141: 011-824-3131
A142: 札幌市 | B142: 医療法人東札幌病院 | C142: 平2.10.24 | D142: 平2.11.1 | E142: 003-0003 | F142: 札幌市白石区東札幌3条3丁目7番35号 | G142: 20 | H142: 医療法人東札幌病院 | I142: 石谷 邦彦 | J142: 243 | K142: 243 | P142: 内、腫瘍内科、消化器内科、循環器内科、呼吸器内科、血液内科、緩和ケア内科、心内、外、消化器外科、乳腺外科、内分泌外科、放、歯、口、麻、整、緩和ケア外科、脳神経内科、頭頸部外科 | R142: 011-812-2311
A143: 札幌市 | B143: 医療法人社団明日佳 白石明日佳病院 | C143: 平23.3.22 | D143: 平23.4.1 | E143: 003-0005 | F143: 札幌市白石区東札幌5条5丁目2番5号 | G143: 20 | H143: 医療法人社団明日佳 | I143: 佐々木 正則 | J143: 219 | L143: 219 | P143: 内・リハ・歯 | R143: 011-823-5151
A144: 札幌市 | B144: 医療法人社団明珠会 札幌白石産科婦人科病院 | C144: 平7.5.22 | D144: 平7.6.1 | E144: 003-0005 | F144: 札幌市白石区東札幌5条6丁目6番28号 | G144: 20 | H144: 医療法人社団明珠会 | I144: 明石 祐史 | J144: 41 | K144: 41 | P144: 産・婦・麻・新生児内科 | R144: 011-862-7211
A145: 札幌市 | B145: 社会医療法人北楡会 札幌北楡病院 | C145: 平6.6.10 | D145: 平6.7.1 | E145: 003-0006 | F145: 札幌市白石区東札幌6条6丁目5番1号 | G145: 20 | H145: 社会医療法人北楡会 | I145: 米川 元樹 | J145: 281 | K145: 281 | P145: 内・消化器内科・呼吸器内科・循環器内科・血液内科・腎臓内科・糖尿病代謝内科・緩和ケア内科・外・腎臓移植外科・整・泌・小・放・麻・歯・肛門外科・消化器外科・血管外科 | Q145: ○ | R145: 011-865-0111
A146: 札幌市 | B146: 長野病院 | C146: 昭47.7.25 | D146: 昭47.8.1 | E146: 003-0013 | F146: 札幌市白石区中央3条5丁目4番30号 | G146: 20 | H146: 医療法人社団積信会 | I146: 石垣 博美 | J146: 320 | M146: 320 | P146: 内・精・心内 | R146: 011-861-1037
A147: 札幌市 | B147: 医療法人杏医会 札幌呼吸器科病院 | C147: 平4.4.21 | D147: 平4.5.1 | E147: 003-0021 | F147: 札幌市白石区栄通3丁目3番35号 | G147: 20 | H147: 医療法人杏医会 | I147: 井上 祐二 | J147: 52 | K147: 52 | P147: 内・呼吸器内科・消化器内科・循環器内科・アレ・リハ | R147: 011-853-5311
A148: 札幌市 | B148: 医療法人社団豊武会 幌東病院 | C148: 平9.12.19 | D148: 平10.1.1 | E148: 003-0024 | F148: 札幌市白石区本郷通7丁目南4番30号 | G148: 20 | H148: 医療法人社団豊武会 | I148: 成松 信一 | J148: 240 | L148: 240 | P148: 内、リハ | R148: 011-861-4121
A149: 札幌市 | B149: 医療法人信佑会 吉田記念病院 | C149: 平7.12.13 | D149: 平8.1.1 | E149: 003-0026 | F149: 札幌市白石区本通2丁目南5番10号 | G149: 20 | H149: 医療法人社団信佑会吉田記念病院 | I149: 國田 芳敬 | J149: 89 | K149: 33 | L149: 56 | P149: 内・消化器内科・循環器内科・放・リハ | R149: 011-864-2125
A150: 札幌市 | B150: 札幌白石記念病院 | C150: 平23.8.9 | D150: 平23.9.21 | E150: 003-0026 | F150: 札幌市白石区本通8丁目南1番10号 | G150: 20 | H150: 特定医療法人 医翔会 | I150: 宮田 節也 | J150: 103 | K150: 103 | P150: 脳、リハ、循環器内科、放、麻、心外、腎臓内科（人工透析）、脳神経内科 | R150: 011-863-5151
A151: 札幌市 | B151: 社会医療法人恵佑会札幌病院 | C151: 令3.5.14 | D151: 令3.8.1 | E151: 003-0026 | F151: 札幌市白石区本通 ９丁目南１番１号 | G151: 20 | H151: 社会医療法人恵佑会 | I151: 久須美 貴哉 | J151: 229 | K151: 229 | P151: 呼外・消化器外科・消化器内科・腫瘍内科・緩和ケア内科・外・乳腺外科・頭頸部外科・耳・気管食道外科・放射線診断科・放射線治療科・歯・麻・歯外・矯歯・アレ・病理診断科・形・呼吸器腫瘍内科・循環器内科 | Q151: ○ | R151: 011-863-2101
A152: 札幌市 | B152: 社会医療法人恵佑会第２病院 | C152: 平24.2.1 | D152: 平24.3.1 | E152: 003-0027 | F152: 札幌市白石区本通13丁目北7番1号 | G152: 20 | H152: 社会医療法人恵佑会 | I152: 高橋 宏明 | J152: 135 | K152: 135 | P152: 内・消化器内科・放射線診断科 | R152: 011-863-2111
A153: 札幌市 | B153: 医療法人白石中央病院 | C153: 昭52.10.31 | D153: 昭52.11.1 | E153: 003-0029 | F153: 札幌市白石区平和通3丁目北2番3号 | G153: 20 | H153: 医療法人白石中央病院 | I153: 野田 泰嗣 | J153: 73 | K153: 27 | L153: 46 | P153: 内・リハ・消内・脳神経内科 | R153: 011-861-8171
A154: 札幌市 | B154: 勤医協札幌病院 | C154: 昭38.10.17 | D154: 昭38.12.18 | E154: 003-0804 | F154: 札幌市白石区菊水4条1丁目9番22号 | G154: 19 | H154: 公益社団法人北海道勤労者医療協会 | I154: 尾形 和泰 | J154: 105 | K154: 105 | P154: 内・消・呼・循・小・外・整・皮・産・婦・眼・耳・リハ・放・アレ・リウ・麻 | R154: 011-811-2246
A155: 札幌市 | B155: 独立行政法人国立病院機構北海道がんセンター | C155: 昭20.12.1 | D155: 昭20.12.1 | E155: 003-0804 | F155: 札幌市白石区菊水4条2丁目3-54 | G155: 2 | H155: 独立行政法人国立病院機構 | I155: 加藤 秀則 | J155: 430 | K155: 430 | P155: 呼吸器内科・消化器内科・循環器内科・血液内科・消化器外科・呼吸器外科・乳腺外科・腫瘍整形外科・精・皮・泌・婦・眼・頭頸部外科・放射線診断科・放射線治療科・麻・脳・心外・形・緩和ケア内科・病理診断科・臨床検査科・リハ・歯外・感染症内科 | Q155: ○ | R155: 011-811-9111
A156: 札幌市 | B156: 医療法人菊郷会 札幌センチュリー病院 | C156: 平8.12.19 | D156: 平9.1.1 | E156: 003-0825 | F156: 札幌市白石区菊水元町5条3丁目5番10号 | G156: 20 | H156: 医療法人菊郷会 | I156: 河上 純彦 | J156: 150 | K156: 150 | P156: 内・消化器内科・循環器内科・外・整・泌・乳腺外科・麻・人工透析外科・消化器外科 | Q156: ○ | R156: 011-871-1121
A157: 札幌市 | B157: 医療福祉センター札幌あゆみの園 | C157: 平11.4.26 | D157: 平11.12.1 | E157: 003-0859 | F157: 札幌市白石区川北2254番地1 | G157: 22 | H157: 社会福祉法人北翔会 | I157: 平元 東 | J157: 186 | K157: 94 | L157: 92 | P157: 内・小・精・麻 | R157: 011-879-5555
A158: 札幌市 | B158: 医療法人菊郷会 石橋胃腸病院 | C158: 平20.10.16 | D158: 平20.11.1 | E158: 003-0863 | F158: 札幌市白石区川下3条4丁目2番1号 | G158: 20 | H158: 医療法人菊郷会 | I158: 葛西 健二 | J158: 106 | K158: 76 | L158: 30 | P158: 内・消化器内科・人工透析内科 | R158: 011-872-5811
A159: 札幌市 | B159: 社会医療法人共栄会 札幌トロイカ病院 | C159: 平3.12.20 | D159: 平4.1.1 | E159: 003-0869 | F159: 札幌市白石区川下577番地8 | G159: 20 | H159: 社会医療法人共栄会 | I159: 有田 編理 | J159: 419 | M159: 419 | P159: 内・精・歯 | R159: 011-873-1221
A160: 札幌市 | B160: 医療法人社団幸仁会 札幌ロイヤル病院 | C160: 平7.8.30 | D160: 平7.9.1 | E160: 003-0875 | F160: 札幌市白石区米里5条1丁目3番30号 | G160: 20 | H160: 医療法人社団幸仁会札幌ロイヤル病院 | I160: 長沼 政幸 | J160: 258 | M160: 258 | P160: 内・精・神 | R160: 011-872-0121
A161: 札幌市 | B161: 白石区計 | F161: =COUNTA(F141:F160) -> 20 | J161: =SUM(K161:O161) -> 3778 | K161: =SUM(K141:K160) -> 2098 | L161: =SUM(L141:L160) -> 683 | M161: =SUM(M141:M160) -> 997 | N161: =SUM(N141:N160) -> 0 | O161: =SUM(O141:O160) -> 0 | Q161: =COUNTA(Q141:Q160) -> 4
A162: 札幌市 | B162: 勇気会医療法人 北央病院 | C162: 平7.1.5 | D162: 平7.1.14 | E162: 004-0021 | F162: 札幌市厚別区青葉町11丁目2番10号 | G162: 20 | H162: 勇気会医療法人北央病院 | I162: 坂牧 純夫 | J162: 99 | K162: 60 | L162: 39 | P162: 内・消化器内科・腫瘍内科・血内 | Q162: ○ | R162: 011-892-8531
A163: 札幌市 | B163: 医療法人社団悠仁会 羊ヶ丘病院 | C163: 平24.1.16 | D163: 平24.2.13 | E163: 004-0021 | F163: 札幌市厚別区青葉町3丁目1番10号 | G163: 20 | H163: 医療法人社団悠仁会 | I163: 倉 秀治 | J163: 68 | K163: 68 | P163: 内・整・リハ・麻 | Q163: ○ | R163: 011-351-2211
A164: 札幌市 | B164: 医療法人豊和会 新札幌豊和会病院 | C164: 平27.3.3 | D164: 平27.4.1 | E164: 004-0041 | F164: 札幌市厚別区大谷地東2丁目5番12号 | G164: 20 | H164: 医療法人豊和会 | I164: 笠井 章次 | J164: 140 | K164: 140 | P164: 内・消化器内科・消化器外科・循環器内科・外・リハ・肛門内科・肛門外科・人工透析内科 | Q164: ○ | R164: 011-893-7000
A165: 札幌市 | B165: 医療法人重仁会 大谷地病院 | C165: 昭54.5.30 | D165: 昭54.6.4 | E165: 004-0041 | F165: 札幌市厚別区大谷地東5丁目7番10号 | G165: 20 | H165: 医療法人重仁会 | I165: 田尾 大樹 | J165: 315 | L165: 50 | M165: 265 | P165: 内・精・呼吸器内科・消化器内科・心内 | R165: 011-891-3737
A166: 札幌市 | B166: 交雄会新さっぽろ病院 | C166: 令4.6.10 | D166: 令4.7.23 | E166: 004-0051 | F166: 札幌市厚別区厚別中央１条６丁目２－５ | G166: 20 | H166: 社会医療法人交雄会メディカル | I166: 渡 二郎 | J166: 185 | K166: 85 | L166: 100 | P166: 内・リハ・消化器内科・循環器内科・内視鏡内科・人工透析内科 | R166: 011-801-1212
A167: 札幌市 | B167: 新さっぽろ脳神経外科病院 | C167: 令4.6.28 | D167: 令4.7.17 | E167: 004-0051 | F167: 札幌市厚別区厚別中央１条６丁目２番１０号 | G167: 20 | H167: 医療法人 脳神経研究センター | I167: 山村 明範 | J167: 135 | K167: 135 | P167: 脳・リハ・麻 | Q167: 〇 | R167: 011-891-2500
A168: 札幌市 | B168: 医療法人 新札幌整形外科病院 | C168: 令4.4.28 | D168: 令4.8.8 | E168: 004-0051 | F168: 札幌市厚別区厚別中央１条６丁目493-98、493-104、493-107 | G168: 20 | H168: 医療法人 新札幌整形外科病院 | I168: 吉本 尚 | J168: 88 | K168: 88 | P168: 整・リハ・麻 | R168: 011-893-1161
A169: 札幌市 | B169: 新札幌循環器病院 | C169: 昭62.12.24 | D169: 昭63.5.1 | E169: 004-0052 | F169: 札幌市厚別区厚別中央2条4丁目9番25号 | G169: 20 | H169: 医療法人サンプラザ | I169: 山田 陽一 | J169: 99 | K169: 99 | P169: 腎臓内科・循環器内科・人工透析内科・心外・胸部外科・リハ | Q169: ○ | R169: 011-892-1556
A170: 札幌市 | B170: 独立行政法人地域医療機能推進機構札幌北辰病院 | C170: 平2.5.8 | D170: 平2.6.1 | E170: 004-8618 | F170: 札幌市厚別区厚別中央2条6丁目2番1号 | G170: 6 | H170: 独立行政法人地域医療機能推進機構 | I170: 小池 雅彦 | J170: 276 | K170: 276 | P170: 内・呼吸器内科・消化器内科・消化器外科・循環器内科・リウ・小・外・整・皮・泌・婦・眼・耳・リハ・麻・放射線診断科・病理診断科・血液内科・腎臓内科・糖尿病内科・乳腺外科・神内・腫瘍内科 | Q170: ○ | R170: 011-893-3000
A171: 札幌市 | B171: 社会医療法人貞仁会 新札幌ひばりが丘病院 | C171: 平元.7.12 | D171: 平元.8.1 | E171: 004-0053 | F171: 札幌市厚別区厚別中央3条2丁目12番1号 | G171: 20 | H171: 社会医療法人貞仁会 | I171: 髙橋 大賀 | J171: 176 | K171: 118 | L171: 58 | P171: 内・消化器内科・リハ・整・緩和ケア内科・老年内科・漢方内科・循環器外科 | R171: 011-894-7070
A172: 札幌市 | B172: 医療法人社団豊志会 肛門科なかやま病院 | C172: 平3.8.27 | D172: 平3.9.1 | E172: 004-0054 | F172: 札幌市厚別区厚別中央4条4丁目2番8号 | G172: 20 | H172: 医療法人社団豊志会 | I172: 丸山 芳朗 | J172: 47 | K172: 47 | P172: 肛 | R172: 011-894-5555
A173: 札幌市 | B173: 医療法人中山会 新札幌パウロ病院 | C173: 平6.4.9 | D173: 平6.4.9 | E173: 004-0002 | F173: 札幌市厚別区厚別東2条6丁目4番1号 | G173: 20 | H173: 医療法人中山会 | I173: 高階 俊光 | J173: 393 | K173: 111 | L173: 282 | P173: 内・消化器内科・循環器内科・リハ・歯 | R173: 011-897-4111
A174: 札幌市 | B174: 医療法人社団翔嶺館 新札幌聖陵ホスピタル | C174: 平15.4.4 | D174: 平15.5.1 | E174: 004-0004 | F174: 札幌市厚別区厚別東4条2丁目1番30号 | G174: 20 | H174: 医療法人社団翔嶺館 | I174: 武田 聰 | J174: 70 | K174: 70 | P174: 内・消化器内科・循環器内科・外・麻・脳・リハ・人工透析外科 | R174: 011-898-2151
A175: 札幌市 | B175: 医療法人徳洲会 札幌徳洲会病院 | C175: 昭58.4.15 | D175: 昭58.5.1 | E175: 004-0041 | F175: 札幌市厚別区大谷地東1丁目1番1号 | G175: 20 | H175: 医療法人徳洲会 | I175: 奥山 淳 | J175: 301 | K175: 301 | P175: 内・消化器内科・胃腸内科・循環器内科・小・外・整・形・皮・泌・産婦・肛門外科・麻・眼・耳・脳・リハ・歯・歯外・病理診断科・アレ・乳腺外科・救・糖尿病内科・腎臓内科 | Q175: ○ | R175: 011-851-1110
A176: 札幌市 | B176: 医療法人徹仁会 厚別耳鼻咽喉科病院 | C176: 平5.12.16 | D176: 平6.1.1 | E176: 004-0065 | F176: 札幌市厚別区厚別西5条1丁目16番22号 | G176: 20 | H176: 医療法人徹仁会 | I176: 木村 徹男 | J176: 44 | K176: 44 | P176: 耳・眼・歯・歯外・小歯・矯歯・頭頸部外科 | R176: 011-894-7003
A177: 札幌市 | B177: 医療法人社団明日佳 桜台明日佳病院 | C177: 平15.12.22 | D177: 平16.1.1 | E177: 004-0065 | F177: 札幌市厚別区厚別西5条5丁目1番1号 | G177: 20 | H177: 医療法人社団明日佳 | I177: 丹羽 潤 | J177: 199 | L177: 99 | M177: 100 | P177: 内・循環器内科・リハ・精・歯 | R177: 011-894-8181
A178: 札幌市 | B178: 厚別区計 | F178: =COUNTA(F162:F177) -> 16 | J178: =SUM(K178:O178) -> 2635 | K178: =SUM(K162:K177) -> 1642 | L178: =SUM(L162:L177) -> 628 | M178: =SUM(M162:M177) -> 365 | N178: =SUM(N162:N177) -> 0 | O178: =SUM(O162:O177) -> 0 | Q178: =COUNTA(Q162:Q177) -> 7
A179: 札幌市 | B179: 華岡青洲記念病院 | C179: 令1.12.6 | D179: 令1.12.11 | E179: 062-0003 | F179: 札幌市豊平区美園3条5丁目3番1号 | G179: 20 | H179: 医療法人春林会 | I179: 華岡 慶一 | J179: 57 | K179: 57 | P179: 心臓内科、循環器内科、麻、放射線診断科、心外 | R179: 011-350-5858
A180: 札幌市 | B180: 恵仁会佐々木内科病院 | C180: 平19.12.18 | D180: 平20.1.1 | E180: 062-0007 | F180: 札幌市豊平区美園7条8丁目6番20号 | G180: 20 | H180: 医療法人恵仁会 | I180: 佐々木 嵩 | J180: 39 | K180: 39 | P180: 内、眼、循環器内科、糖尿病内科 | R180: 011-831-5621
A181: 札幌市 | B181: 医療法人社団 札幌朗愛会 札幌朗愛会病院 | C181: 昭59.12.15 | D181: 昭60.1.1 | E181: 062-0021 | F181: 札幌市豊平区月寒西1条10丁目3番30号 | G181: 20 | H181: 医療法人社団 札幌朗愛会 | I181: 遠山 義浩 | J181: 98 | K181: 34 | L181: 64 | P181: 内・心内・消化器内科・循環器内科・リハ・精・人工透析内科・脳神経内科 | R181: 011-853-2111
A182: 札幌市 | B182: 医療法人社団北樹会病院 | C182: 平4.8.20 | D182: 平4.9.1 | E182: 062-0025 | F182: 札幌市豊平区月寒西5条8丁目4-32 | G182: 20 | H182: 医療法人社団北樹会病院 | I182: 中川 智徳 | J182: 275 | K182: 155 | L182: 120 | P182: 内・消化器内科・循環器内科・リハ・歯・歯外 | R182: 011-856-1111
A183: 札幌市 | B183: 社会医療法人 仁陽会 西岡第一病院 | C183: 平30.12.13 | D183: 令2.2.11 | E183: 062-0033 | F183: 札幌市豊平区西岡 ３条 ６丁目８番１号 | G183: 20 | H183: 社会医療法人 仁陽会 | I183: 皆川 裕樹 | J183: 60 | K183: 60 | P183: 内・整・リハ・麻・リウ・ペインクリニック内科・漢方内科 | Q183: ○ | R183: 011-852-7171
A184: 札幌市 | B184: 西岡病院 | C184: 昭59.12.15 | D184: 昭60.1.1 | E184: 062-0034 | F184: 札幌市豊平区西岡4条4丁目1番52号 | G184: 20 | H184: 社会医療法人恵和会 | I184: 五十嵐 知文 | J184: 98 | K184: 48 | L184: 50 | P184: 内・呼吸器内科・循環器内科・消化器内科 | R184: 011-853-8322
A185: 札幌市 | B185: 医療法人小坂病院 | C185: 平5.9.27 | D185: 平5.10.1 | E185: 062-0042 | F185: 札幌市豊平区福住2条2丁目9番1号 | G185: 20 | H185: 医療法人小坂病院 | I185: 小坂 昌道 | J185: 99 | L185: 99 | P185: 内 | R185: 011-854-3161
A186: 札幌市 | B186: 社会医療法人柏葉会 柏葉脳神経外科病院 | C186: 昭55.4.25 | D186: 昭55.5.1 | E186: 062-0051 | F186: 札幌市豊平区月寒東1条15丁目7番20号 | G186: 20 | H186: 社会医療法人柏葉会 | I186: 寺坂 俊介 | J186: 144 | K186: 144 | P186: 脳・脳神経内科・循環器内科・リハ・麻・放 | Q186: ○ | R186: 011-851-2333
A187: 札幌市 | B187: 社会医療法人康和会 札幌しらかば台病院 | C187: 昭62.12.25 | D187: 昭63.2.1 | E187: 062-0052 | F187: 札幌市豊平区月寒東2条18丁目7番26号 | G187: 20 | H187: 社会医療法人康和会 | I187: 後藤 啓 | J187: 262 | K187: 162 | L187: 100 | P187: 内・消化器内科・循環器内科・脳神経内科・整・リハ・アレ・リウ | R187: 011-852-8866
A188: 札幌市 | B188: 社会福祉法人ノテ福祉会 日本医療大学病院 | C188: 令3.9.16 | D188: 令3.10.1 | E188: 062-0053 | F188: 札幌市豊平区月寒東3条11丁目1番55号 | G188: 22 | H188: 社会福祉法人ノテ福祉会 | I188: 齋藤 重幸 | J188: 92 | K188: 92 | P188: 内・精・整・リハ・消化器内科・循環器内科・血液内科 | R188: 011-852-6777
A189: 札幌市 | B189: 医療法人北志会 札幌ライラック病院 | C189: 平10.12.15 | D189: 平11.1.1 | E189: 062-0906 | F189: 札幌市豊平区豊平6条8丁目2番18号 | G189: 20 | H189: 医療法人北志会 | I189: 本庄 恭輔 | J189: 167 | K189: 131 | L189: 36 | P189: 内・脳神経内科・消化器内科・整・リハ・麻・皮・「糖尿病・代謝内科」・内視鏡内科 | R189: 011-812-8822
A190: 札幌市 | B190: 独立行政法人地域医療機能推進機構北海道病院 | C190: 昭33.9.1 | D190: 昭33.9.1 | E190: 062-0921 | F190: 札幌市豊平区中の島1条8丁目3番18号 | G190: 6 | H190: 独立行政法人地域医療機能推進機構 | I190: 古家 乾 | J190: 358 | K190: 312 | N190: 46 | P190: 内・呼吸器内科・消化器内科・小・小(新生児)・外・整・皮・泌・産婦・眼・耳・放射線診断科・麻・心外・リウ・神内・腎臓内科・呼吸器外科・病理診断科・「糖尿病・内分泌内科」・消化器外科・循環器内科・リハ | Q190: ○ | R190: 011-831-5151
A191: 札幌市 | B191: 仁楡会札幌病院 | C191: 令3.6.1 | D191: 令3.8.1 | E191: 062-0922 | F191: 札幌市豊平区中の島2条7丁目1番1号 | G191: 20 | H191: 医療法人 仁楡会 | I191: 松村 欣也 | J191: 77 | K191: 77 | P191: 泌、麻、血管外科 | R191: 011-814-9911
A192: 札幌市 | B192: ＫＫＲ札幌医療センター | C192: 昭27.11.20 | D192: 昭27.11.27 | E192: 062-0931 | F192: 札幌市豊平区平岸1条6丁目3番40号 | G192: 17 | H192: 国家公務員共済組合連合会 | I192: 磯部 宏 | J192: 410 | K192: 410 | P192: 内・呼吸器内科・消化器内科・循環器内科・神内・腫瘍内科・外・消化器外科・呼外・乳腺外科・小児外科・脳・整・精・眼・皮・産婦・麻・耳・泌・放・放射線診断科・リハ・病理診断科・救急科・小・小児科(新生児)・「代謝・内分泌・糖尿病内科」・緩和ケア内科・腫瘍外科・人工透析外科・内分泌外科・心臓外科・血管外科・臨床検査科・心臓血管外科・「脳神経・内分泌外科」 | Q192: ○ | R192: 011-822-1811
A193: 札幌市 | B193: 医療法人社団高台病院 | C193: 平9.12.19 | D193: 平10.1.1 | E193: 062-0937 | F193: 札幌市豊平区平岸7条12丁目1-39 | G193: 20 | H193: 医療法人社団高台病院 | I193: 藤井 充 | J193: 106 | M193: 106 | P193: 内・精・神 | R193: 011-831-8161
A194: 札幌市 | B194: 医療法人北海道整形外科記念病院 | C194: 平2.1.11 | D194: 平2.2.1 | E194: 062-0937 | F194: 札幌市豊平区平岸7条13丁目5番22号 | G194: 20 | H194: 医療法人北海道整形外科記念病院 | I194: 近藤 真 | J194: 199 | K194: 199 | P194: 整・リハ・麻・リウ | Q194: ○ | R194: 011-812-7001
A195: 札幌市 | B195: 豊平区計 | F195: =COUNTA(F179:F194) -> 16 | J195: =SUM(K195:O195) -> 2541 | K195: =SUM(K179:K194) -> 1920 | L195: =SUM(L179:L194) -> 469 | M195: =SUM(M179:M194) -> 106 | N195: =SUM(N179:N194) -> 46 | O195: =SUM(O179:O194) -> 0 | Q195: =COUNTA(Q179:Q194) -> 5
A196: 札幌市 | B196: 社会医療法人蘭友会 札幌里塚病院 | C196: 昭63.12.20 | D196: 昭64.1.1 | E196: 004-0811 | F196: 札幌市清田区美しが丘1条6丁目1番5号 | G196: 20 | H196: 社会医療法人蘭友会 | I196: 河村 正朋 | J196: 99 | K196: 99 | P196: 内・消化器内科・循環器内科・外・消化器外科・肛門外科・内視鏡外科・整・リハ・麻・ペインクリニック外科 | Q196: ○ | R196: 011-883-1200
A197: 札幌市 | B197: 社会医療法人 札幌清田病院 | C197: 平4.4.21 | D197: 平4.5.1 | E197: 004-0831 | F197: 札幌市清田区真栄1条1丁目1番1号 | G197: 20 | H197: 社会医療法人 札幌清田病院 | I197: 山内 尚文 | J197: 109 | K197: 109 | P197: 内・消化器内科・循環器内科・呼吸器内科・血液内科・リウ・リハ・外・肛門外科・消化器外科・内視鏡外科・腫瘍内科・緩和ケア内科・麻 | R197: 011-883-6111
A198: 札幌市 | B198: 医療法人 美脳 美しが丘脳神経外科病院 | C198: 平31.1.17 | D198: 令2.6.19 | E198: 004-0834 | F198: 札幌市清田区真栄4条5丁目19-19 | G198: 20 | H198: 医療法人 美脳 | I198: 高橋 明 | J198: 58 | K198: 58 | P198: 脳・リハ・麻・ペインクリニック外科 | Q198: ○ | R198: 011-558-2200
A199: 札幌市 | B199: 医療法人北武会 美しが丘病院 | C199: 昭62.11.28 | D199: 昭62.12.21 | E199: 004-0833 | F199: 札幌市清田区真栄61番1 | G199: 20 | H199: 医療法人北武会 | I199: 小原 雅人 | J199: 172 | L199: 172 | P199: 内・リハ | R199: 011-883-8881
A200: 札幌市 | B200: 医療法人社団五風会 さっぽろ香雪病院 | C200: 平6.4.22 | D200: 平6.5.1 | E200: 004-0839 | F200: 札幌市清田区真栄319番地 | G200: 20 | H200: 医療法人社団五風会 | I200: 森 一也 | J200: 450 | M200: 450 | P200: 内・精・歯・心内 | R200: 011-884-6878
... 382 more rows

Sheet 有床診療所
A1: <有床診療所（保健所別） R5.4.1現在>
A2: 所轄 保健所 | B2: 診療所名称 | C2: 郵便番号 | D2: 所在地 | E2: 開設者 コード | F2: 開設者 | G2: 管理者 | H2: 病床数 設置許可（届出）ベース | K2: 標ぼう診療科目 | L2: 救急 告示 | M2: 電話番号 | N2: 備考
H3: 総数 | I3: 一般 | J3: 療養
A4: 市立函館 | B4: 医療法人社団花園眼科医院 | C4: 041-0841 | D4: 函館市日吉町3丁目43番24号 | E4: 20 | F4: 医療法人社団花園眼科医院 | G4: 簗詰 貴彦 | H4: =+SUM(I4:J4) -> 6 | I4: 6 | K4: 眼 | M4: 0138-55-1565
A5: 市立函館 | B5: 三浦レディースクリニック | C5: 040-0011 | D5: 函館市本町20番1号 | E5: 26 | F5: 三浦 淳司 | G5: 三浦 淳司 | H5: 1 | I5: 1 | K5: 産婦，麻 | M5: 0138-51-2357
A6: 市立函館 | B6: 医療法人社団本間眼科医院 | C6: 041-0813 | D6: 函館市亀田本町55番1号 | E6: 20 | F6: 医療法人社団本間眼科医院 | G6: 本間 哲 | H6: 8 | I6: 8 | K6: 眼 | M6: 0138-41-6229 | N6: 令和4年2月6日から令和5年5月5日まで休止中
A7: 市立函館 | B7: 中島内科循環器科メンタルクリニック | C7: 040-0034 | D7: 函館市大森町19番13号 | E7: 26 | F7: 中島 滋夫 | G7: 中島 滋夫 | H7: 19 | I7: 19 | K7: 内，心内，精，循 | M7: 0138-22-4357
A8: 市立函館 | B8: 医療法人社団藤松産婦人科医院 | C8: 041-0852 | D8: 函館市鍛治2丁目24番5号 | E8: 20 | F8: 医療法人社団藤松産婦人科医院 | G8: 藤松 光正 | H8: 1 | I8: 1 | K8: 産，婦 | M8: 0138-55-2280
A9: 市立函館 | B9: 医療法人社団陵仁会えんどう桔梗マタニティクリニック | C9: 041-0808 | D9: 函館市桔梗5丁目7番15号 | E9: 20 | F9: 医療法人社団陵仁会 | G9: 遠藤 力 | H9: 19 | I9: 19 | K9: 産，婦 | M9: 0138-47-3001
A10: 市立函館 | B10: 医療法人社団函館敬愛会好和会クリニック | C10: 041-0824 | D10: 函館市西桔梗町246番地129 | E10: 20 | F10: 医療法人社団函館敬愛会好和会クリニック | G10: 脇坂 好孝 | H10: 19 | I10: 19 | K10: 内，神内，呼，消，外，整，肛，リハ，放，麻 | M10: 0138-48-6655 | N10: 令和3年12月15日から休止中（期間未定）
A11: 市立函館 | B11: 医療法人社団函館呼吸器内科クリニック | C11: 041-0852 | D11: 函館市鍛治1丁目14番3号 | E11: 20 | F11: 医療法人社団函館呼吸器内科クリニック | G11: 渡辺 英明 | H11: 4 | I11: 4 | K11: 内，呼，循，放 | M11: 0138-35-6666
A12: 市立函館 | B12: 医療法人社団産科婦人科白鳥クリニック | C12: 040-0082 | D12: 函館市白鳥町13番18号 | E12: 20 | F12: 医療法人社団産科婦人科白鳥クリニック | G12: 中村 逸郎 | H12: 1 | I12: 1 | K12: 産，婦 | M12: 0138-44-5588
A13: 市立函館 | B13: 医療法人社団山樹会平山医院 | C13: 040-0036 | D13: 函館市東雲町6番11号 | E13: 20 | F13: 医療法人社団山樹会平山医院 | G13: 平山 拓也 | H13: 19 | I13: 19 | K13: 内，呼，胃，整，リハ | M13: 0138-22-4821
A14: 市立函館 | B14: 医療法人社団明誠会こじま産婦人科 | C14: 041-0832 | D14: 函館市神山1丁目12番9号 | E14: 20 | F14: 医療法人社団明誠会こじま産婦人科 | G14: 小島 誠介 | H14: 16 | I14: 16 | K14: 産婦，麻 | M14: 0138-55-5252
A15: 市立函館 | B15: 湯の川女性クリニック | C15: 042-0932 | D15: 函館市湯川町2丁目17番8号 | E15: 26 | F15: 小葉松洋子 | G15: 小葉松 洋子 | H15: 1 | I15: 1 | K15: 産婦 | M15: 0138-59-0006
A16: 市立函館 | B16: 医療法人悠康会函館整形外科クリニック | C16: 041-0802 | D16: 函館市石川町2番地115 | E16: 20 | F16: 医療法人悠康会函館整形外科クリニック | G16: 大越 康充 | H16: 19 | I16: 19 | K16: 整，リハ，麻，糖尿病内科 | M16: 0138-34-5700
A17: 市立函館 | B17: 平田泌尿器科 | C17: 041-0851 | D17: 函館市本通2丁目39番24号 | E17: 20 | F17: 医療法人社団輝秀会 | G17: 小村 秀樹 | H17: 19 | I17: 19 | K17: 泌 | M17: 0138-55-5677
A18: 市立函館 | B18: ひでしま内科クリニック | C18: 040-0078 | D18: 函館市北浜町2番2号 | E18: 20 | F18: 医療法人社団秀道会 | G18: 秀島 道治 | H18: 19 | I18: 19 | K18: 内，胃腸内科 | M18: 0138-40-1155
A19: 市立函館 | B19: 深瀬医院 | C19: 040-0074 | D19: 函館市松川町30番12号 | E19: 20 | F19: 医療法人鴻仁会 | G19: 深瀬 晃一 | H19: 19 | I19: 19 | K19: 内，心内，漢方内科，疼痛緩和内科，リハ，歯，歯外 | M19: 0138-41-1221
A20: 市立函館 | B20: 医療法人秀真会藤岡眼科 | C20: 041-0802 | D20: 函館市石川町450番地2 | E20: 20 | F20: 医療法人秀真会 | G20: 藤岡 達彦 | H20: 19 | I20: 19 | K20: 眼，形，美容皮膚科 | M20: 0138-34-5550
A21: 市立函館 | B21: 函館泌尿器科 | C21: 041-0801 | D21: 函館市桔梗町418番地142 | E21: 20 | F21: 医療法人社団浩正会 | G21: 敦川 浩之 | H21: 13 | I21: 13 | K21: 皮，泌 | M21: 0138-47-7711
A22: 市立函館 | B22: 陸上自衛隊函館駐屯地医務室 | C22: 042-0934 | D22: 函館市広野町6番18号 | E22: 7 | F22: 防衛省 | G22: 大久保 拓真 | H22: =+SUM(I22:J22) -> 3 | I22: 3 | K22: 内・外・歯 | M22: 0138-51-9171(331)
A23: 市立函館 | B23: 市立函館保健所計 | D23: =COUNTA(D4:D22) -> 19 | H23: =+SUM(I23:J23) -> 225 | I23: =+SUM(I4:I22) -> 225 | J23: =+SUM(J4:J22) -> 0 | L23: =COUNTA(L4:L22) -> 0
A24: 渡島 | B24: 町立江良診療所 | C24: 049-1771 | D24: 松前郡松前町字江良８７２の１ | E24: 9 | F24: 松前町 | G24: 保脇 雄介 | H24: 19 | I24: 19 | K24: 内・外 | M24: 01394-5-2009
A25: 渡島 | B25: 医療法人正衛会しいき循環器科内科医院 | C25: 041-1201 | D25: 北斗市本町６６５番地の１８ | E25: 20 | F25: 医療法人正衛会しいき循環器科内科医院 | G25: 椎木 衛 | H25: 19 | I25: 19 | K25: 内・呼・循 | M25: 0138-77-1225
A26: 渡島 | B26: 渡島リハビリテーションセンター診療所 | C26: 041-1402 | D26: 茅部郡鹿部町字鹿部２５８番地の７ | E26: 22 | F26: 社会福祉法人渡島福祉会 | G26: 髙橋 遼 | H26: 19 | I26: 19 | K26: 内・放 | M26: 01372-7-3321
A27: 渡島 | B27: 医療法人社団向整形外科クリニック | C27: 049-2311 | D27: 茅部郡森町字上台町２２１番地 | E27: 20 | F27: 医療法人社団向整形外科クリニック | G27: 向 和男 | H27: 19 | I27: 19 | K27: 整・リハ・リウ | M27: 01374-2-6711
A28: 渡島 | B28: 渡島保健所計 | D28: =COUNTA(D24:D27) -> 4 | H28: =+SUM(I28:J28) -> 76 | I28: =+SUM(I24:I27) -> 76 | J28: =+SUM(J24:J27) -> 0 | L28: =COUNTA(L24:L27) -> 0
A29: 江差 | B29: 医療法人雄心会江差脳神経外科クリニック | C29: 043-0022 | D29: 檜山郡江差町字伏木戸町550番1 | E29: 20 | F29: 医療法人雄心会 | G29: 坂本 靖男 | H29: 4 | I29: 4 | K29: 脳 | L29: ○ | M29: 0139-52-5500
A30: 江差 | B30: 町立上ノ国診療所 | C30: 049-0612 | D30: 檜山郡上ノ国町字上ノ国274番地の4 | E30: 9 | F30: 上ノ国町 | G30: 經田 剛 | H30: =+SUM(I30:J30) -> 19 | I30: 19 | K30: 内,消 | M30: 0139-55-2017
A31: 江差 | B31: 上ノ国町立石崎診療所 | C31: 049-0741 | D31: 檜山郡上ノ国町字石崎243番地 | E31: 9 | F31: 上ノ国町 | G31: 大鶴 榮史 | H31: =+SUM(I31:J31) -> 19 | I31: 19 | K31: 内,外,小,皮,リハ | M31: 0139-59-2341
A32: 江差 | B32: 江差保健所計 | D32: =COUNTA(D29:D31) -> 3 | H32: =+SUM(I32:J32) -> 42 | I32: =+SUM(I29:I31) -> 42 | J32: =+SUM(J29:J31) -> 0 | L32: =COUNTA(L29:L31) -> 1
A33: 八雲 | B33: 八雲保健所計 | D33: 0件 | H33: =+SUM(I33:J33) -> 0 | I33: 0床 | J33: 0床 | L33: 0件
A34: 札幌市 | B34: 中央メディカルクリニック | C34: 060-0042 | D34: 札幌市中央区大通西５丁目１１ 大五ビル１階 | E34: 20 | F34: 医療法人社団 恵珠会 | G34: 石田 君子 | H34: =+SUM(I34:J34) -> 1 | I34: 1 | K34: 内、外、産、婦、眼、麻 | M34: 011-222-0120
A35: 札幌市 | B35: 札幌大通西16丁目はなえみレディースクリニック | C35: 060-0042 | D35: 札幌市中央区大通西１６丁目１－１０ ITCセンタービル６階 | E35: 26 | F35: 藥師 義弘 | G35: 藥師 義弘 | H35: 1 | I35: 1 | K35: 産婦
A36: 札幌市 | B36: 札幌市医師会夜間急病センター | C36: 060-0042 | D36: 札幌市中央区大通西１９丁目 ＷＥＳＴ１９ | E36: 9 | F36: 札幌市 | G36: 井上 善之 | H36: =+SUM(I36:J36) -> 12 | I36: 12 | K36: 内、小、眼、耳 | M36: 011-641-4316
A37: 札幌市 | B37: 医療法人社団 ゆほな会 はやしたくみ女性クリニック | C37: 064-0820 | D37: 札幌市中央区大通西２５丁目１－２ ハートランド円山ビル３階 | E37: 20 | F37: 医療法人社団 ゆほな会 はやしたくみ女性クリニック | G37: 林 巧 | H37: 2 | I37: 2 | K37: 産、婦 | M37: 011-640-8845
A38: 札幌市 | B38: 渓仁会円山クリニック | C38: 064-0820 | D38: 札幌市中央区大通西２６丁目３－１６ | E38: 20 | F38: 医療法人 渓仁会 | G38: 道家 充 | H38: 4 | I38: 4 | K38: 内・産婦 | M38: 011-611-7766
A39: 札幌市 | B39: 医療法人社団石史山会 札幌スポーツクリニック | C39: 060-0041 | D39: 札幌市中央区大通東４丁目１－１９ 大通東やまむらセンタービル２階～５階 | E39: 20 | F39: 医療法人社団 石史山会 | G39: 山村 俊昭 | H39: 19 | I39: 19 | K39: 内、整、リハ、リウ、消化器内科、精、心内、麻 | M39: 011-281-8755
A40: 札幌市 | B40: 医療法人社団清俊会 やまむらクリニック | C40: 060-0041 | D40: 札幌市中央区大通東 ４丁目１－１９ 大通東やまむらセンタービル６階 | E40: 20 | F40: 医療法人社団清俊会 | G40: 山村 美雪 | H40: 19 | I40: 19 | K40: 整、リハ | M40: 011-522-6760
A41: 札幌市 | B41: 医療法人社団 ルミネレディースクリニック | C41: 060-0061 | D41: 札幌市中央区南１条西２丁目 南１条Ｋビル３階 | E41: 20 | F41: 医療法人社団 ルミネレディースクリニック | G41: 蛯名 紀子 | H41: =+SUM(I41:J41) -> 1 | I41: 1 | K41: 婦 | M41: 011-200-7700
A42: 札幌市 | B42: 医療法人にしかわウイメンズヘルスクリニック | C42: 060-0061 | D42: 札幌市中央区南１条西１４丁目２９１番地８１ウィステリア南１条ビル２Ｆ | E42: 20 | F42: 医療法人にしかわウイメンズヘルスクリニック | G42: 西川 鑑 | H42: 1 | I42: 1 | K42: 産、婦 | M42: 011-213-1730
A43: 札幌市 | B43: おおこうち産科婦人科 | C43: 060-0062 | D43: 札幌市中央区南２条西８丁目１０番地 | E43: 20 | F43: 医療法人社団 小六メディカルクリニック | G43: 大河内 俊洋 | H43: 15 | I43: 15 | K43: 産、婦 | M43: 011-233-4103
A44: 札幌市 | B44: たばた産婦人科クリニック | C44: 060-0063 | D44: 札幌市中央区南３条西２丁目 Ｈ＆Ｂプラザ３Ｆ | E44: 26 | F44: 田畑 雅章 | G44: 田畑 雅章 | H44: 1 | I44: 1 | K44: 産婦 | M44: 011-522-5566
A45: 札幌市 | B45: 医療法人社団 廣仁会 豊水総合メディカルクリニック | C45: 064-0807 | D45: 札幌市中央区南７条西２丁目１番４ | E45: 20 | F45: 医療法人社団 廣仁会 | G45: 藤咲 淳 | H45: 19 | I45: 19 | K45: 内、呼吸器内科、皮、リウ、泌 | M45: 011-520-2310
A46: 札幌市 | B46: 医療法人社団 中野整形外科医院 | C46: 064-0807 | D46: 札幌市中央区南７条西１５丁目１－３５ | E46: 20 | F46: 医療法人社団 中野整形外科医院 | G46: 中野 達 | H46: =+SUM(I46:J46) -> 19 | I46: 19 | K46: 整、リハ、リウ、放、麻、ペ外、内 | L46: ○ | M46: 011-561-0224
A47: 札幌市 | B47: 医療法人社団 産婦人科吉尾医院 | C47: 064-0808 | D47: 札幌市中央区南８条西３丁目１－７ | E47: 20 | F47: 医療法人社団 産婦人科吉尾医院 | G47: 安田 晶子 | H47: =+SUM(I47:J47) -> 19 | I47: 19 | K47: 産、婦 | M47: 011-511-5564
A48: 札幌市 | B48: 医療法人社団 南１１条眼科 | C48: 064-0811 | D48: 札幌市中央区南１１条西１３丁目２－３２ | E48: 20 | F48: 医療法人社団 南１１条眼科 | G48: 奥村 芳子 | H48: =+SUM(I48:J48) -> 9 | I48: 9 | K48: 眼、ペインクリニック内科 | M48: 011-563-7011
A49: 札幌市 | B49: 医療法人松家内科小児科医院 | C49: 064-0917 | D49: 札幌市中央区南１７条西６丁目４－１３ | E49: 20 | F49: 医療法人松家内科小児科医院 | G49: 松家 治道 | H49: =+SUM(I49:J49) -> 13 | I49: 13 | K49: 内、小 | M49: 011-521-1141
A50: 札幌市 | B50: 医療法人社団 北辰クリニック１・９・８札幌 | C50: 064-0919 | D50: 札幌市中央区南１９条西８丁目２－３８ | E50: 20 | F50: 医療法人社団 北辰クリニック | G50: 戸沢 修平 | H50: 5 | I50: 5 | K50: 内 | M50: 011-512-1216
A51: 札幌市 | B51: 陸上自衛隊札幌駐とん地医務室 | C51: 064-0926 | D51: 札幌市中央区南２６条西１０丁目 | E51: 7 | F51: 防衛省 | G51: 小林 弘明 | H51: =+SUM(I51:J51) -> 4 | I51: 4 | K51: 内、外、歯 | M51: 011-511-7116
A52: 札幌市 | B52: 医療法人 円山レディースクリニック | C52: 064-0821 | D52: 札幌市中央区北１条西２５丁目２４－４ | E52: 20 | F52: 医療法人 円山レディースクリニック | G52: 鈴木 孝浩 | H52: 2 | I52: 2 | K52: 産、婦 | M52: 011-614-0800
A53: 札幌市 | B53: 医療法人社団 草薙レディースクリニック | C53: 060-0002 | D53: 札幌市中央区北２条西１丁目 マルイト札幌ビル２階 | E53: 20 | F53: 医療法人社団 草薙レディースクリニック | G53: 草薙 鉄也 | H53: 2 | I53: 2 | K53: 婦 | M53: 011-222-9372
A54: 札幌市 | B54: 宮の森レディースクリニック | C54: 064-0822 | D54: 札幌市中央区北２条西２８丁目１番２６号 エストラーダ円山２Ｆ | E54: 26 | F54: 池田 詩子 | G54: 池田 詩子 | H54: 1 | I54: 1 | K54: 産、婦 | M54: 011-215-8212 | N54: 有床化
A55: 札幌市 | B55: 豊生会 苗穂駅前内科クリニック | C55: 060-0002 | D55: 札幌市中央区北２条東８丁目９０－２１ | E55: 20 | F55: 医療法人社団 豊生会 | G55: 立木 利一 | H55: 14 | I55: 14 | J55: 0 | K55: 内、リハ | M55: 011-231-2016
A56: 札幌市 | B56: 医療法人社団 神谷レディースクリニック | C56: 060-0003 | D56: 札幌市中央区北３条西２丁目２番地１ ＮＸ札幌ビル２階 | E56: 20 | F56: 医療法人社団 神谷レディースクリニック | G56: 神谷 博文 | H56: 1 | I56: 1 | K56: 婦、麻、美容皮膚科 | M56: 011-231-2722
A57: 札幌市 | B57: 医療法人社団 みぶな会 産科・婦人科ひなたクリニック | C57: 060-0003 | D57: 札幌市中央区北３条西４丁目１－１ 日本生命札幌ビル３階 | E57: 20 | F57: 医療法人社団 みぶな会 | G57: 三橋 裕一 | H57: 1 | I57: 1 | K57: 産、婦 | M57: 011-204-8000
A58: 札幌市 | B58: 医療法人社団慈昂会 昂希内科クリニック | C58: 064-0823 | D58: 札幌市中央区北３条西２４丁目１－２２ | E58: 20 | F58: 医療法人社団慈昂会 | G58: 黒澤 光俊 | H58: =+SUM(I58:J58) -> 16 | I58: 16 | K58: 内 | M58: 011-611-2711
A59: 札幌市 | B59: 札幌乳腺外科クリニック | C59: 060-0006 | D59: 札幌市中央区北６条西１９丁目２２番地６ | E59: 20 | F59: 医療法人 札幌乳腺外科クリニック | G59: 岡崎 稔 | H59: =+SUM(I59:J59) -> 19 | I59: 19 | K59: 乳腺外科 | M59: 011-640-2626
A60: 札幌市 | B60: 桑園整形外科 | C60: 060-0008 | D60: 札幌市中央区北８条西１６丁目２８－３０ | E60: 20 | F60: 医療法人社団 くわのみ会 | H60: =+SUM(I60:J60) -> 19 | I60: 19 | K60: 整、リハ、麻、リウ | M60: 011-633-3636
A61: 札幌市 | B61: のだレディースクリニック | C61: 060-0011 | D61: 札幌市中央区北１１条西１５丁目２－１ サンエーアインビル２階 | E61: 26 | F61: 野田 雅也 | H61: 1 | I61: 1 | K61: 婦、麻 | M61: 011-708-0550
A62: 札幌市 | B62: 中央区計 | D62: =COUNTA(D34:D61) -> 28 | H62: =+SUM(I62:J62) -> 240 | I62: =SUM(I34:I61) -> 240 | J62: =SUM(J34:J61) -> 0 | L62: =COUNTA(L34:L61) -> 1
A63: 札幌市 | B63: 医療法人社団札幌駅前アップルレディースクリニック | C63: 060-0808 | D63: 札幌市北区北８条西３丁目２８番地 エルプラザ６階 | E63: 20 | F63: 医療法人社団札幌駅前アップルレディースクリニック | G63: 寺田 倫子 | H63: =+SUM(I63:J63) -> 1 | I63: 1 | K63: 産、婦 | M63: 011-736-8222
A64: 札幌市 | B64: さっぽろ脊椎外科クリニック | C64: 001-0013 | D64: 札幌市北区北１３条西 ２丁目２番１号 | E64: 20 | F64: 医療法人 さっぽろ脊椎外科クリニック | G64: 山田 恵二郎 | H64: 19 | I64: 19 | K64: 整、リハ、放、麻 | M64: 011-729-1154
A65: 札幌市 | B65: エルムの杜内科クリニック | C65: 001-0018 | D65: 札幌市北区北１８条西７丁目１－１ | E65: 26 | F65: 澁谷 英二 | G65: 澁谷 英二 | H65: =+SUM(I65:J65) -> 6 | I65: 6 | K65: 内、呼、循、アレ | M65: 011-708-0003
A66: 札幌市 | B66: リズミック産婦人科クリニック | C66: 001-0022 | D66: 札幌市北区北２２条西５丁目１番３２号 | E66: 20 | F66: 医療法人社団リズミック産婦人科クリニック | G66: 山本 律 | H66: =+SUM(I66:J66) -> 1 | I66: 1 | K66: 産婦 | M66: 011-700-0505
A67: 札幌市 | B67: 医療法人社団眞明会 今医院 | C67: 001-0025 | D67: 札幌市北区北２５条西８丁目２番３号 | E67: 20 | F67: 医療法人社団眞明会 今医院 | G67: 今 眞人 | H67: 19 | I67: 19 | K67: 内、消、小、外 | M67: 011-716-9255
A68: 札幌市 | B68: 医療法人社団 北つむぎ会 さっぽろ麻生乳腺甲状腺クリニック | C68: 001-0038 | D68: 札幌市北区北３８条西８丁目２－３ | E68: 20 | F68: 医療法人社団 北つむぎ会 | G68: 亀田 博 | H68: =+SUM(I68:J68) -> 19 | I68: 19 | K68: 外、乳腺外科 | M68: 011-709-3700
A69: 札幌市 | B69: 医療法人社団良和会 新琴似一条クリニック | C69: 001-0901 | D69: 札幌市北区新琴似１条７丁目８番１６号 | E69: 20 | F69: 医療法人社団良和会 | G69: 井上 勝一 | H69: 19 | I69: 18 | J69: 1 | K69: 呼吸器内科、リハ | M69: 011-762-1605 | N69: 休止（H22.10.31～）
A70: 札幌市 | B70: 医療法人社団北匠会 札幌北脳神経外科 | C70: 001-0906 | D70: 札幌市北区新琴似６条１７丁目７－１０ | E70: 20 | F70: 医療法人社団北匠会 札幌北脳神経外科 | G70: 小林 延光 | H70: 19 | I70: 19 | K70: 循環器内科、脳、リハ、放 | L70: ○ | M70: 011-766-1212
A71: 札幌市 | B71: 医療法人社団 布施川内科医院 | C71: 001-0907 | D71: 札幌市北区新琴似７条１４丁目４－２３ | E71: 20 | F71: 医療法人社団 布施川内科医院 | G71: 布施川 尚 | H71: 19 | I71: 19 | K71: 内、胃、小 | M71: 011-764-2411
A72: 札幌市 | B72: 医療法人社団 小野眼科医院 | C72: 001-0908 | D72: 札幌市北区新琴似８条１１丁目２－７ | E72: 20 | F72: 医療法人社団 小野眼科医院 | G72: 小野 弘美 | H72: 6 | I72: 6 | K72: 眼 | M72: 011-764-1818
A73: 札幌市 | B73: 医療法人新産健会 きた在宅クリニック | C73: 001-0924 | D73: 札幌市北区新川４条１１丁目１番２７号 | E73: 20 | F73: 医療法人新産健会 | G73: 杉江 広紀 | H73: 19 | I73: 13 | J73: 6 | K73: 内 | M73: 011-763-1111 | N73: R4.8.1 再開
A74: 札幌市 | B74: 医療法人社団 札幌新川駅前内科 | C74: 001-0925 | D74: 札幌市北区新川５条１丁目１－２２ | E74: 20 | F74: 医療法人社団 新川駅前内科 | G74: 莖津 武大 | H74: 19 | I74: 19 | K74: 内、消化器内科、放、肝内 | M74: 011-708-1234
A75: 札幌市 | B75: 医療法人社団遼風会 札幌新川整形外科 | C75: 001-0930 | D75: 札幌市北区新川６条１４丁目７－１ | E75: 20 | F75: 医療法人社団遼風会 | G75: 村上 俊也 | H75: 19 | I75: 19 | K75: 整、リハ、リウ | M75: 011-761-1187
A76: 札幌市 | B76: 医療法人社団 ふるや内科 | C76: 002-0854 | D76: 札幌市北区屯田４条３丁目２－１０ | E76: 20 | F76: 医療法人社団 ふるや内科 | G76: 一宮 由紀子 | H76: 19 | I76: 19 | K76: 内、呼吸器内科、消化器内科、循環器内科、神内、小 | M76: 011-771-2214
A77: 札幌市 | B77: 医療法人社団朋佑会 札幌産科婦人科 | C77: 002-0856 | D77: 札幌市北区屯田６条２丁目１１－１ | E77: 20 | F77: 医療法人社団朋佑会 札幌産科婦人科 | G77: 郷久 鉞二 | H77: 19 | I77: 19 | K77: 産、婦、小、心内、麻 | M77: 011-774-0303
A78: 札幌市 | B78: 医療法人社団 寺島整形外科 | C78: 002-0857 | D78: 札幌市北区屯田７条８丁目１－１ | E78: 20 | F78: 医療法人社団寺島整形外科 | G78: 寺島 尚志 | H78: 19 | I78: 19 | K78: 整、リハ、リウ | M78: 011-774-0011
A79: 札幌市 | B79: 医療法人社団 萌水会 ＭＯＥ内科循環器クリニック | C79: 002-8022 | D79: 札幌市北区篠路２条４丁目６番３０号 | E79: 20 | F79: 医療法人社団萌水会 | G79: 田所 心仁 | H79: 19 | I79: 19 | K79: 内、循環器内科 | M79: 011-771-6162
A80: 札幌市 | B80: 医療法人はまなす 篠路はまなすクリニック | C80: 002-8024 | D80: 札幌市北区篠路 ４条 ９丁目１２番４５号 | E80: 20 | F80: 医療法人はまなす | G80: 工藤 岳秋 | H80: 10 | I80: 10 | K80: 内、外、消化器外科、内視鏡外科、血管外科、麻、消化器内科、腎臓内科、透析内科 | M80: 011-776-3030
A81: 札幌市 | B81: ひまわり内科小児科医院 | C81: 002-8066 | D81: 札幌市北区拓北６条２丁目６－１８ | E81: 26 | F81: 平井 英幸 | G81: 平井 英幸 | H81: =+SUM(I81:J81) -> 9 | I81: 9 | K81: 内、小、放 | M81: 011-771-8551
A82: 札幌市 | B82: 北区計 | D82: =COUNTA(D63:D81) -> 19 | H82: =+SUM(I82:J82) -> 280 | I82: =+SUM(I63:I81) -> 273 | J82: =+SUM(J63:J81) -> 7 | L82: =COUNTA(L63:L81) -> 1
A83: 札幌市 | B83: 医療法人社団 こんの産婦人科 | C83: 065-0012 | D83: 札幌市東区北１２条東１５丁目５－１８ | E83: 20 | F83: 医療法人社団 こんの産婦人科 | G83: 金野 宏泰 | H83: =+SUM(I83:J83) -> 9 | I83: 9 | K83: 産婦 | M83: 011-742-8228
A84: 札幌市 | B84: 医療法人明雪会 環状通東整形外科 | C84: 065-0015 | D84: 札幌市東区北１５条東１８丁目５－１８ | E84: 20 | F84: 医療法人明雪会 | G84: 堀田 知伸 | H84: 17 | I84: 17 | K84: 整、リハ、リウ、麻 | M84: 011-780-8080
A85: 札幌市 | B85: 札幌脊椎内視鏡・整形外科クリニック | C85: 065-0016 | D85: 札幌市東区北１６条東１６丁目１番１３号 北愛メディカルビル１階 | E85: 20 | F85: 医療法人社団山崎耳鼻咽喉科クリニック | G85: 長濵 賢 | H85: 9 | I85: 9 | K85: 整、麻、リハ、ペインクリニック科
A86: 札幌市 | B86: 医療法人社団野沢医院 | C86: 065-0017 | D86: 札幌市東区北１７条東１丁目２番２５号 | E86: 20 | F86: 医療法人社団野沢医院 | G86: 野沢 健一 | H86: =+SUM(I86:J86) -> 16 | I86: 16 | K86: 内、消化器内科、循環器内科、小 | M86: 011-741-3535
A87: 札幌市 | B87: 医療法人社団 元町泌尿器科 | C87: 065-0020 | D87: 札幌市東区北２０条東２０丁目１－１５ | E87: 20 | F87: 医療法人社団 元町泌尿器科 | G87: 西村 昌宏 | H87: 19 | I87: 19 | K87: 泌 | M87: 011-785-7771
A88: 札幌市 | B88: コスモ脳神経外科 | C88: 065-0021 | D88: 札幌市東区北２１条東２１丁目１－１ | E88: 20 | F88: 医療法人社団 コスモ脳神経外科 | G88: 小林 康雄 | H88: 19 | I88: 19 | K88: 脳、リハ | L88: ○ | M88: 011-787-5858
A89: 札幌市 | B89: 医療法人 新産健会 ひがし在宅クリニック | C89: 065-0026 | D89: 札幌市東区北２６条東６丁目１－２ | E89: 20 | F89: 医療法人 新産健会 | G89: 須澄 美樹子 | H89: 17 | I89: 17 | K89: 内 | M89: 011-752-5489
A90: 札幌市 | B90: 医療法人社団 石垣整形外科医院 | C90: 065-0026 | D90: 札幌市東区北２６条東８丁目１－５ | E90: 20 | F90: 医療法人社団 石垣整形外科医院 | G90: 石垣 貴之 | H90: 19 | I90: 19 | K90: 整、リハ、リウ | L90: ○ | M90: 011-751-3231
A91: 札幌市 | B91: 医療法人社団石田内科小児科医院 | C91: 065-0030 | D91: 札幌市東区北３０条東１３丁目３番１０号 | E91: 20 | F91: 医療法人社団石田内科小児科医院 | G91: 石田 淳一 | H91: 19 | I91: 7 | J91: 12 | K91: 内、呼、消、循、小 | M91: 011-753-0380
A92: 札幌市 | B92: 栄町レディースクリニック | C92: 007-0842 | D92: 札幌市東区北４２条東１６丁目１－１ Ｎ４２メディカルビル２階 | E92: 20 | F92: 医療法人社団陽桜会 | G92: 西田 竜太郎 | H92: 2 | I92: 2 | K92: 産婦,女性内科 | M92: 011-783-1111
A93: 札幌市 | B93: 札幌共立医院 | C93: 007-0848 | D93: 札幌市東区北４８条東１丁目１－５ | E93: 26 | F93: 女澤 愼一 | G93: 女澤 愼一 | H93: 19 | I93: 19 | K93: 内、消化器内科、循環器内科、整、リハ | M93: 011-752-4101
A94: 札幌市 | B94: 医療法人社団彩美会石丸眼科 | C94: 007-0848 | D94: 札幌市東区北４８条東９丁目３－１５ | E94: 20 | F94: 医療法人社団 石丸眼科 | G94: 石丸 裕晃 | H94: =+SUM(I94:J94) -> 3 | I94: 3 | K94: 眼 | M94: 011-751-3313
A95: 札幌市 | B95: 医療法人二樹会足立外科整形外科クリニック | C95: 007-0850 | D95: 札幌市東区北５０条東７丁目６－１５ | E95: 20 | F95: 医療法人二樹会足立外科整形外科クリニック | G95: 足立 孝雄 | H95: 19 | I95: 19 | K95: 胃、外、整、肛、リハ | M95: 011-752-1166 | N95: 休止（R5.3.4～R6.3.3）
A96: 札幌市 | B96: 医療法人社団恒心堂整形外科医院 | C96: 007-0808 | D96: 札幌市東区東苗穂８条３丁目２番１号 | E96: 20 | F96: 医療法人社団恒心堂整形外科医院 | G96: 佐藤 敏文 | H96: 19 | I96: 10 | J96: 9 | K96: 整、リハ | M96: 011-791-6622
A97: 札幌市 | B97: 医療法人社団美加未会 モエレ外科胃腸科 | C97: 007-0812 | D97: 札幌市東区東苗穂１２条３丁目２１－３ | E97: 20 | F97: 医療法人社団美加未会 モエレ外科胃腸科 | G97: 木川 三四郎 | H97: 19 | I97: 19 | K97: 外、整、リハ、消化器・内視鏡外科、大腸・肛門外科 | M97: 011-791-7711
A98: 札幌市 | B98: 医療法人社団 豊生会 伏古レディースクリニック | C98: 007-0868 | D98: 札幌市東区伏古８条３丁目６番２０号 | E98: 20 | F98: 医療法人社団 豊生会 | G98: 水上 明保 | H98: 19 | I98: 19 | K98: 産婦 | M98: 011-780-1103
A99: 札幌市 | B99: 苗穂レディスクリニック | C99: 065-0042 | D99: 札幌市東区本町２条５丁目２－４ | E99: 20 | F99: 医療法人社団ブロッサム | G99: 堀本 江美 | H99: 11 | I99: 11 | K99: 産、婦 | M99: 011-781-1955
A100: 札幌市 | B100: 東区計 | D100: =COUNTA(D83:D99) -> 17 | H100: 255 | I100: =SUM(I83:I99) -> 234 | J100: =SUM(J83:J99) -> 21 | L100: =COUNTA(L83:L99) -> 2
A101: 札幌市 | B101: 医療法人社団慈昂会 白石内科クリニック | C101: 003-0011 | D101: 札幌市白石区中央１条７丁目１０ー３０ | E101: 20 | F101: 医療法人社団慈昂会 | G101: 干野 英明 | H101: 3 | I101: 3 | J101: 0 | K101: 内、呼吸器内科、アレ | M101: 011-868-2711
A102: 札幌市 | B102: 医療法人社団仁秀会白石整形外科 | C102: 003-0012 | D102: 札幌市白石区中央２条４丁目１番２号 | E102: 20 | F102: 医療法人社団仁秀会白石整形外科 | G102: 河村 秀仁 | H102: =+SUM(I102:J102) -> 19 | I102: 19 | J102: 0 | K102: 整、リハ、リウ | M102: 011-831-5792
A103: 札幌市 | B103: 医療法人社団 札幌東クリニック | C103: 003-0023 | D103: 札幌市白石区南郷通１丁目北２－２５ 第２カネサビル | E103: 20 | F103: 医療法人社団 札幌東クリニック | G103: 江端 真一 | H103: =+SUM(I103:J103) -> 6 | I103: 6 | K103: 人工透析内科、腎臓内科 | M103: 011-863-2131
A104: 札幌市 | B104: 医療法人社団 ＥＶＥウィミンズクリニック | C104: 003-0022 | D104: 札幌市白石区南郷通２１丁目南５番４１号 | E104: 20 | F104: 医療法人社団 ＥＶＥウィミンズクリニック | G104: 小泉 基生 | H104: =+SUM(I104:J104) -> 18 | I104: 18 | K104: 産、婦 | M104: 011-866-0808
A105: 札幌市 | B105: 医療法人社団 大橋眼科 | C105: 003-0027 | D105: 札幌市白石区本通 ６丁目北１番１号 | E105: 20 | F105: 医療法人社団 大橋眼科 | G105: 大橋 勉 | H105: 3 | I105: 3 | K105: 眼 | M105: 011-864-4656
A106: 札幌市 | B106: 医療法人社団 菊水整形外科 | C106: 003-0803 | D106: 札幌市白石区菊水３条２丁目１３－１ | E106: 20 | F106: 医療法人社団 菊水整形外科 | G106: 千場 隆之 | H106: =+SUM(I106:J106) -> 19 | I106: 19 | K106: 整、リハ、リウ | M106: 011-816-1515
A107: 札幌市 | B107: 医療法人社団 にれの杜クリニック | C107: 003-0814 | D107: 札幌市白石区菊水上町４条２丁目３５９番１ | E107: 20 | F107: 医療法人社団 にれの杜クリニック | G107: 玉置 透 | H107: 19 | I107: 19 | K107: 内、腎臓内科、循環器内科、透析内科、外、腎臓移植外科、整、消化器外科、消化器内科、呼吸器外科、呼吸器内科、麻 | M107: 011-833-1120
A108: 札幌市 | B108: 医療法人社団弘恵会整形外科内科沢口医院 | C108: 003-0832 | D108: 札幌市白石区北郷２条４丁目６－１２ | E108: 20 | F108: 医療法人社団弘恵会 | G108: 沢口 直弘 | H108: =+SUM(I108:J108) -> 19 | I108: 19 | K108: 内、リウ、整、リハ | M108: 011-872-2001
A109: 札幌市 | B109: 医療法人社団 北都眼科 | C109: 003-0833 | D109: 札幌市白石区北郷３条８丁目５－３６ | E109: 20 | F109: 医療法人社団 北都眼科 | G109: 鈴木 純一 | H109: =+SUM(I109:J109) -> 8 | I109: 8 | K109: 眼 | M109: 011-874-4011
A110: 札幌市 | B110: 白石区計 | D110: =COUNTA(D101:D109) -> 9 | H110: =+SUM(I110:J110) -> 114 | I110: =+SUM(I101:I109) -> 114 | J110: =+SUM(J101:J109) -> 0 | L110: =COUNTA(L101:L109) -> 0
A111: 札幌市 | B111: 医療法人社団 青葉産婦人科クリニック | C111: 004-0021 | D111: 札幌市厚別区青葉町６丁目１－９ | E111: 20 | F111: 医療法人社団 青葉産婦人科クリニック | G111: 高田 久士 | H111: =+SUM(I111:J111) -> 19 | I111: 19 | K111: 産婦 | M111: 011-893-3207
A112: 札幌市 | B112: 医療法人社団 はしもとクリニック | C112: 004-0052 | D112: 札幌市厚別区厚別中央２条１丁目４－１５ | E112: 20 | F112: 医療法人社団 はしもとクリニック | G112: 橋本 昌樹 | H112: =+SUM(I112:J112) -> 19 | I112: 19 | K112: 産、婦 | M112: 011-891-2633
A113: 札幌市 | B113: 新札幌乳腺クリニック | C113: 004-0053 | D113: 札幌市厚別区厚別中央３条４丁目２２番２号 | E113: 20 | F113: 医療法人社団 新札幌乳腺クリニック | G113: 岡崎 裕 | H113: 16 | I113: 16 | K113: 乳腺外科 | M113: 011-893-8080
A114: 札幌市 | B114: 医療法人社団 厚別中央整形外科 | C114: 004-0055 | D114: 札幌市厚別区厚別中央５条２丁目５－１５ | E114: 20 | F114: 医療法人社団 厚別中央整形外科 | G114: 樋口 政法 | H114: =+SUM(I114:J114) -> 19 | I114: 19 | K114: 整、リハ、放 | M114: 011-891-9222
A115: 札幌市 | B115: 医療法人社団 Ｈ・Ｎ・メディック | C115: 004-0055 | D115: 札幌市厚別区厚別中央５条６丁目１－５ | E115: 20 | F115: 医療法人社団 H・N・メディック | G115: 近藤 桂一 | H115: =+SUM(I115:J115) -> 19 | I115: 13 | J115: 6 | K115: 内、リウ、泌、人工透析内科 | M115: 011-801-6660
A116: 札幌市 | B116: 医療法人社団 履信会 さっぽろ厚別通整形外科 | C116: 004-0065 | D116: 札幌市厚別区厚別西５条１丁目１５番２１号 | E116: 20 | F116: 医療法人社団 履信会 | G116: 桐田 卓 | H116: 19 | I116: 19 | K116: 整、リハ | M116: 011-894-8877
A117: 札幌市 | B117: 社会福祉法人楡の会 こどもクリニック | C117: 004-0007 | D117: 札幌市厚別区厚別町下野幌４９番地 | E117: 22 | F117: 社会福祉法人楡の会 | G117: 須藤 章 | H117: =+SUM(I117:J117) -> 16 | I117: 16 | K117: 内、精、神、小、整、リハ、歯 | M117: 011-898-3929
A118: 札幌市 | B118: 厚別区計 | D118: =COUNTA(D111:D117) -> 7 | H118: =+SUM(I118:J118) -> 127 | I118: =+SUM(I111:I117) -> 121 | J118: =+SUM(J111:J117) -> 6 | L118: =COUNTA(L111:L117) -> 0
A119: 札幌市 | B119: 医療法人社団新芽会 美園産婦人科小児科 | C119: 062-0004 | D119: 札幌市豊平区美園４条３丁目２－１９ | E119: 20 | F119: 医療法人社団新芽会 | G119: 麦倉 裕 | H119: =+SUM(I119:J119) -> 19 | I119: 19 | K119: 小、産婦 | M119: 011-824-0303
A120: 札幌市 | B120: 医療法人社団 札幌つきさむ中央整形外科 | C120: 062-0020 | D120: 札幌市豊平区月寒中央通２丁目４－１０ | E120: 20 | F120: 医療法人社団 札幌つきさむ中央整形外科 | G120: 佐々木 茂 | H120: 19 | I120: 19 | K120: 整、リハ、麻 | M120: 011-580-3300
A121: 札幌市 | B121: 医療法人社団ひとみ会回明堂眼科・歯科 | C121: 062-0020 | D121: 札幌市豊平区月寒中央通１０丁目５番１１号 | E121: 20 | F121: 医療法人社団 ひとみ会 | G121: 齋藤 航 | H121: 14 | I121: 14 | K121: 眼、歯、小歯、歯外 | M121: 011-857-1103
A122: 札幌市 | B122: 医療法人 福住産科婦人科クリニック | C122: 062-0043 | D122: 札幌市豊平区福住３条１丁目２－２４ | E122: 20 | F122: 医療法人 福住産科婦人科クリニック | G122: 保坂 昌芳 | H122: =+SUM(I122:J122) -> 16 | I122: 16 | K122: 産、婦 | M122: 011-836-1188
A123: 札幌市 | B123: 医療法人社団 福住泌尿器科クリニック | C123: 062-0043 | D123: 札幌市豊平区福住３条１丁目６－１２ | E123: 20 | F123: 医療法人社団 福住泌尿器科クリニック | G123: 梅原 次男 | H123: 18 | I123: 18 | K123: 泌 | M123: 011-836-8881
A124: 札幌市 | B124: 医療法人社団福住向ヶ丘通整形外科 | C124: 062-0053 | D124: 札幌市豊平区月寒東３条１６丁目３－８ | E124: 20 | F124: 医療法人社団福住向ヶ丘通整形外科 | G124: 上田 大輔 | H124: 19 | I124: 19 | K124: 整、リハ | M124: 011-850-3080 | N124: 再開（R4.9.26） | O124: R4.8.8施設名称変更（前；医療法人社団月寒ｸﾞﾛﾘｱｸﾘﾆｯｸ）
A125: 札幌市 | B125: 神田産科婦人科クリニック | C125: 062-0903 | D125: 札幌市豊平区豊平３条１丁目１－３３ | E125: 26 | F125: 神田 雄司 | G125: 神田 雄司 | H125: 9 | I125: 9 | K125: 産、婦 | M125: 011-841-1103
A126: 札幌市 | B126: 奥出外科医院 | C126: 062-0904 | D126: 札幌市豊平区豊平４条９丁目１－２６ | E126: 26 | F126: 奥出 保 | G126: 奥出 保 | H126: 19 | I126: 19 | K126: 胃、外、泌、肛、リハ | M126: 011-811-2045 | N126: 休止（H9.6.25～）
A127: 札幌市 | B127: 平岸外科整形外科医院 | C127: 062-0932 | D127: 札幌市豊平区平岸２条１７丁目２番１１号 | E127: 26 | F127: 山本 博子 | G127: 山本 博子 | H127: 19 | I127: 19 | K127: 内、外、整、リハ | M127: 011-821-0255
A128: 札幌市 | B128: 豊平整形外科 脊椎・関節クリニック | C128: 062-0933 | D128: 札幌市豊平区平岸３条９丁目９－１５ | E128: 20 | F128: 医療法人社団 豊平整形外科 | G128: 鍋田 裕樹 | H128: 17 | I128: 17 | K128: 整、リハ、リウ、麻 | M128: 011-820-8000
A129: 札幌市 | B129: 医療法人社団いちご会 美加レディースクリニック | C129: 062-0933 | D129: 札幌市豊平区平岸３条１３丁目５－２１ | E129: 20 | F129: 医療法人社団いちご会 | G129: 金谷 美加 | H129: 1 | I129: 1 | K129: 産婦 | M129: 011-833-7773
A130: 札幌市 | B130: 豊平区計 | D130: =COUNTA(D119:D129) -> 11 | H130: 170 | I130: =+SUM(I119:I129) -> 170 | J130: =+SUM(J119:J129) -> 0 | L130: =COUNTA(L119:L129) -> 0
A131: 札幌市 | B131: 医療法人社団 美しが丘整形外科 | C131: 004-0834 | D131: 札幌市清田区真栄４条１丁目２－５ | E131: 20 | F131: 医療法人社団 美しが丘整形外科 | G131: 伊藤 肇 | H131: 19 | I131: 19 | K131: 整、リハ、リウ、放 | M131: 011-888-2525
A132: 札幌市 | B132: 医療法人社団 きよた泌尿器科クリニック | C132: 004-0841 | D132: 札幌市清田区清田１条４丁目５－３０ 清田総合医療センタービル | E132: 20 | F132: 医療法人社団 きよた泌尿器科クリニック | G132: 尾田 寿朗 | H132: 2 | I132: 2 | K132: 泌 | M132: 011-883-5757
A133: 札幌市 | B133: 医療法人社団 札幌メモリアル眼科 | C133: 004-0841 | D133: 札幌市清田区清田１条４丁目５－３０ 清田総合医療センタービル１階 | E133: 20 | F133: 医療法人社団 札幌メモリアル眼科 | G133: 辻 淳 | H133: 16 | I133: 16 | K133: 眼 | M133: 011-882-5777
A134: 札幌市 | B134: 医療法人社団 サン内科外科医院 | C134: 004-0842 | D134: 札幌市清田区清田２条１丁目８－１ | E134: 20 | F134: 医療法人社団 サン内科外科医院 | G134: 藤野 光生 | H134: 19 | I134: 19 | K134: 内、外、人工透析内科 | M134: 011-881-3322
A135: 札幌市 | B135: 北野循環器クリニック | C135: 004-0867 | D135: 札幌市清田区北野７条２丁目１２番１７号 | E135: 20 | F135: 医療法人社団 越仁会 | G135: 越野 督央 | H135: 19 | I135: 19 | K135: 循環器内科、人工透析内科、血管外科 | M135: 011-886-2626
A136: 札幌市 | B136: 産科・婦人科 札幌みらいクリニック | C136: 004-0871 | D136: 札幌市清田区平岡 １条 ５丁目３番８号 | E136: 20 | F136: 医療法人社団みらい | G136: 石渡 瑞穂 | H136: =+SUM(I136:J136) -> 19 | I136: 19 | K136: 産、婦 | M136: 011-885-1100
A137: 札幌市 | B137: 清田区計 | D137: =COUNTA(D131:D136) -> 6 | H137: =+SUM(I137:J137) -> 94 | I137: =+SUM(I131:I136) -> 94 | J137: =+SUM(J131:J136) -> 0 | L137: =COUNTA(L131:L136) -> 0
A138: 札幌市 | B138: 医療法人礼風会 五輪橋マタニティクリニック | C138: 005-0039 | D138: 札幌市南区南３９条西１１丁目１番３０号 | E138: 20 | F138: 医療法人 礼風会 | G138: 田中 幸男 | H138: 19 | I138: 19 | K138: 小、産、婦、麻 | M138: 011-585-3110
A139: 札幌市 | B139: 医療法人 札幌きい眼科 | C139: 005-0801 | D139: 札幌市南区川沿１条３丁目１－１０ | E139: 20 | F139: 医療法人 札幌きい眼科 | G139: 長井 伸二 | H139: 8 | I139: 8 | K139: 眼 | M139: 011-573-1010
A140: 札幌市 | B140: 医療法人社団履信会 もいわ内科医院 | C140: 005-0801 | D140: 札幌市南区川沿１条３丁目３－２５ | E140: 20 | F140: 医療法人社団履信会 | G140: 佐藤 千穂美 | H140: =+SUM(I140:J140) -> 13 | I140: 13 | K140: 内、小、消化器内科、糖尿病内分泌内科 | M140: 011-571-5561
A141: 札幌市 | B141: 南札幌脳神経外科 | C141: 005-0802 | D141: 札幌市南区川沿２条３丁目２－３２ | E141: 20 | F141: 医療法人CHCPヘルスケアシステム | G141: 関 隆史 | H141: =+SUM(I141:J141) -> 19 | I141: 19 | K141: 脳、リハ | M141: 011-572-0330
A142: 札幌市 | B142: 医療法人社団もなみ もなみクリニック | C142: 005-0805 | D142: 札幌市南区川沿５条３丁目２番１号 | E142: 20 | F142: 医療法人社団 もなみ | G142: 犬養 倫明 | H142: 19 | I142: 19 | K142: 泌、循環器内科、人工透析内科、高齢者内科、性感染症内科、性感染症外科 | M142: 011-578-5775
A143: 札幌市 | B143: 医療法人社団 川沿中央医院 | C143: 005-0805 | D143: 札幌市南区川沿５条３丁目２番３号 | E143: 20 | F143: 医療法人社団 川沿中央医院 | G143: 小笠原 隆 | H143: =+SUM(I143:J143) -> 18 | J143: 18 | K143: 内、消、循、皮 | M143: 011-571-7821
A144: 札幌市 | B144: 医療法人社団 履信会 百町内科呼吸器内科 | C144: 005-0841 | D144: 札幌市南区石山１条２丁目１番２２号 | E144: 20 | F144: 医療法人社団 履信会 | G144: 小栗 満 | H144: 19 | I144: 19 | K144: 内、呼吸器内科 | M144: 011-591-2100
A145: 札幌市 | B145: 医療法人社団 芸術の森泌尿器科 | C145: 005-0850 | D145: 札幌市南区石山東３丁目１－３１ | E145: 20 | F145: 医療法人社団 芸術の森泌尿器科 | G145: 齊藤 誠一 | H145: 6 | I145: 6 | K145: 泌 | M145: 011-591-8686
A146: 札幌市 | B146: 医療法人社団 栄会 ヘルスケアクリニック札幌南 | C146: 005-0850 | D146: 札幌市南区石山東７丁目１番１０号 | E146: 20 | F146: 医療法人社団 栄会 | G146: 立野 史樹 | H146: 19 | I146: 19 | K146: 内、リハ | M146: 011-592-3003 | N146: 休止（R4.5.1～R5.4.30）
A147: 札幌市 | B147: 医療法人社団 札幌藤が丘整形外科医院 | C147: 061-2282 | D147: 札幌市南区藤野２条２丁目１－１８ | E147: 20 | F147: 医療法人社団 札幌藤が丘整形外科医院 | G147: 池澤 清豪 | H147: 19 | I147: 19 | K147: 整、リハ、リウ | M147: 011-592-1388
A148: 札幌市 | B148: 南区計 | D148: =COUNTA(D138:D147) -> 10 | H148: 159 | I148: =+SUM(I138:I147) -> 141 | J148: =+SUM(J138:J147) -> 18 | L148: =COUNTA(L138:L147) -> 0
A149: 札幌市 | B149: 医療法人社団信和会 石川泌尿器科・腎臓内科 | C149: 063-0034 | D149: 札幌市西区西野４条２丁目１－２０ | E149: 20 | F149: 医療法人社団信和会 | G149: 石川 隆太 | H149: 19 | I149: 19 | K149: 内、泌、腎臓内科 | M149: 011-661-1100
A150: 札幌市 | B150: 医療法人社団東仁会 熊井マタニティクリニック | C150: 063-0034 | D150: 札幌市西区西野４条６丁目１－１ | E150: 20 | F150: 医療法人社団 東仁会 | G150: 熊谷 健得 | H150: 12 | I150: 12 | K150: 産、婦、麻 | M150: 011-668-7272 | N150: 休止（H22.8.25～）
A151: 札幌市 | B151: 医療法人社団 札幌西整形外科 | C151: 063-0051 | D151: 札幌市西区宮の沢１条４丁目７－２５ | E151: 20 | F151: 医療法人社団 札幌西整形外科 | G151: 山元 功 | H151: =+SUM(I151:J151) -> 19 | I151: 19 | K151: 整、リハ、リウ | M151: 011-666-6600
A152: 札幌市 | B152: 医療法人社団 札幌西レディースクリニック | C152: 063-0061 | D152: 札幌市西区西町北１１丁目１－５ | E152: 20 | F152: 医療法人社団 札幌西レディースクリニック | G152: 寺澤 勝彦 | H152: =+SUM(I152:J152) -> 12 | I152: 12 | K152: 産婦 | M152: 011-661-3535
A153: 札幌市 | B153: 宮の沢スマイルレディースクリニック | C153: 063-0061 | D153: 札幌市西区八軒６条西３丁目１番５号西町北２０丁目２－１２ SR宮の沢メディカルⅡビル ２階 | E153: 20 | F153: 医療法人社団スマイル会 | G153: 馬場 敦志 | H153: １床 | I153: １床 | K153: 産、婦
A154: 札幌市 | B154: ペルル女性クリニック | C154: 063-0803 | D154: 札幌市西区二十四軒３条１丁目１－１８ メディカルスクエア二十四軒２階 | E154: 20 | F154: 医療法人社団ペルル女性クリニック | G154: 武田 真光 | H154: 1 | I154: 1 | K154: 産、婦 | M154: 011-624-7031
A155: 札幌市 | B155: エム・オー・エー札幌クリニック | C155: 063-0804 | D155: 札幌市西区二十四軒４条２丁目８－３１ | E155: 20 | F155: 医療法人財団瑞泉会 | G155: 飯田 尚治 | H155: =+SUM(I155:J155) -> 5 | I155: 5 | K155: 内 | M155: 011-623-5139
A156: 札幌市 | B156: 医療法人社団 小原眼科医院 | C156: 063-0811 | D156: 札幌市西区琴似１条５丁目４－１ | E156: 20 | F156: 医療法人社団 小原眼科医院 | G156: 小原 裕一郎 | H156: =+SUM(I156:J156) -> 19 | I156: 19 | K156: 眼 | M156: 011-631-5581
A157: 札幌市 | B157: 医療法人社団 ともこレディースクリニック | C157: 063-0812 | D157: 札幌市西区琴似２条１丁目１－２０ 琴似タワープラザ２階 | E157: 20 | F157: 医療法人社団 ともこレディースクリニック | G157: 佐藤 智子 | H157: =+SUM(I157:J157) -> 1 | I157: 1 | K157: 産婦 | M157: 011-641-8181
A158: 札幌市 | B158: 医療法人社団 札幌ことに乳腺クリニック | C158: 063-0812 | D158: 札幌市西区琴似２条２丁目５－１５ | E158: 20 | F158: 医療法人社団 札幌ことに乳腺クリニック | G158: 浅石 和昭 | H158: =+SUM(I158:J158) -> 19 | I158: 19 | K158: 乳腺外科 | M158: 011-622-2221
A159: 札幌市 | B159: 医療法人社団 琴似産科婦人科クリニック | C159: 063-0812 | D159: 札幌市西区琴似２条３丁目２－３０ | E159: 20 | F159: 医療法人社団 琴似産科婦人科クリニック | G159: 永井 荘一郎 | H159: 16 | I159: 16 | K159: 産、婦 | M159: 011-612-5611
A160: 札幌市 | B160: 医療法人社団ゆめみレディースクリニック | C160: 063-0812 | D160: 札幌市西区琴似２条５丁目１－３琴似パークマンション２Ｆ | E160: 20 | F160: 医療法人社団ゆめみレディースクリニック | G160: 小笠原 真志穂 | H160: 2 | I160: 2 | K160: 産、婦 | M160: 011-676-3640
A161: 札幌市 | B161: 医療法人社団元氣会 札幌整形外科 | C161: 063-0833 | D161: 札幌市西区発寒１３条４丁目１３－５６ | E161: 20 | F161: 医療法人社団元氣会 | G161: 羽場 等 | H161: =+SUM(I161:J161) -> 19 | I161: 19 | K161: 整、リハ | M161: 011-662-1118
A162: 札幌市 | B162: おぐま循環器内科・リハビリテーションクリニック | C162: 063-0833 | D162: 札幌市西区発寒１３条４丁目１３－５６ | E162: 20 | F162: 医療法人社団元氣会 | G162: 小熊 康教 | H162: =+SUM(I162:J162) -> 19 | I162: 19 | K162: リハ | M162: 011-662-7000
A163: 札幌市 | B163: 医療法人 札幌円山整形外科 札幌琴似整形外科 | C163: 063-0846 | D163: 札幌市西区琴似４条４丁目１－３０ | E163: 20 | F163: 医療法人 札幌円山整形外科 | G163: 赤塚 智博 | H163: 19 | I163: 19 | K163: 整、リハ、リウ | M163: 011-621-2111
A164: 札幌市 | B164: 医療法人 札幌円山整形外科 札幌八軒整形外科 | C164: 063-0846 | D164: 札幌市西区八軒６条西３丁目１番５号 | E164: 20 | F164: 医療法人 札幌円山整形外科 | G164: 大西 憲二 | H164: 19 | I164: 19 | K164: 整、リハ | M164: 011-621-6661
A165: 札幌市 | B165: 医療法人社団 カワカミウィメンズクリニック | C165: 063-0865 | D165: 札幌市西区八軒５条東１丁目６－１９ | E165: 20 | F165: 医療法人社団 川上産婦人科医院 | G165: 川上 博史 | H165: =+SUM(I165:J165) -> 19 | I165: 19 | K165: 産、婦 | M165: 011-641-6507
A166: 札幌市 | B166: 西区計 | D166: =COUNTA(D149:D165) -> 17 | H166: =+SUM(I166:J166) -> 220 | I166: =+SUM(I149:I165) -> 220 | J166: =+SUM(J149:J165) -> 0 | L166: =COUNTA(L149:L165) -> 0
A167: 札幌市 | B167: 医療法人育愛会 愛産婦人科 | C167: 006-0004 | D167: 札幌市手稲区西宮の沢４条２丁目１－１ | E167: 20 | F167: 医療法人育愛会 | G167: 菅原 正樹 | H167: =+SUM(I167:J167) -> 19 | I167: 19 | K167: 産婦 | M167: 011-669-5503
A168: 札幌市 | B168: さくらレディースクリニック | C168: 006-0012 | D168: 札幌市手稲区富丘２条７丁目６－１５ | E168: 26 | F168: 井上 亮一 | G168: 井上 亮一 | H168: =+SUM(I168:J168) -> 3 | I168: 3 | K168: 産婦、漢方内科 | M168: 011-695-8118
A169: 札幌市 | B169: 医療法人 はだ産婦人科クリニック | C169: 006-0022 | D169: 札幌市手稲区手稲本町２条５丁目３－１２ | E169: 20 | F169: 医療法人 はだ産婦人科クリニック | G169: 羽田 健一 | H169: 17 | I169: 17 | K169: 小児科（新生児）、産婦、麻 | M169: 011-685-1103
A170: 札幌市 | B170: 手稲脳神経外科クリニック | C170: 006-0023 | D170: 札幌市手稲区手稲本町３条２丁目５－１ | E170: 20 | F170: 医療法人社団手稲脳神経外科クリニック | G170: 布村 充 | H170: =+SUM(I170:J170) -> 19 | I170: 19 | K170: 脳 | M170: 011-682-1212
A171: 札幌市 | B171: ていね整形外科リハビリクリニック | C171: 006-0023 | D171: 札幌市手稲区手稲本町３条３丁目７番３０号 | E171: 20 | F171: 医療法人社団 俊和会 | G171: 綛村 俊之 | H171: =+SUM(I171:J171) -> 19 | I171: 19 | K171: 整、リハ、リウ | M171: 011-683-3888
A172: 札幌市 | B172: 手稲いなほ外科・整形外科 | C172: 006-0032 | D172: 札幌市手稲区稲穂２条３丁目６－１ | E172: 26 | F172: 棚橋 正典 | G172: 棚橋 正典 | H172: 18 | I172: 18 | K172: 胃、外、整、肛、リハ、麻 | M172: 011-682-7311
A173: 札幌市 | B173: 島田内科小児科 | C173: 006-0811 | D173: 札幌市手稲区前田１条１２丁目３５８番地１ | E173: 26 | F173: 島田 泰榮 | G173: 島田 泰榮 | H173: =+SUM(I173:J173) -> 9 | I173: 9 | K173: 内、小 | M173: 011-683-7187
A174: 札幌市 | B174: 医療法人渓仁会 手稲家庭医療クリニック | C174: 006-0812 | D174: 札幌市手稲区前田２条１０丁目１番１０号 | E174: 20 | F174: 医療法人渓仁会 | G174: 大塚 亮平 | H174: 19 | I174: 19 | K174: 内、小、産婦 | M174: 011-685-3920
A175: 札幌市 | B175: 医療法人社団伸孝会 ていね泌尿器科 | C175: 006-0816 | D175: 札幌市手稲区前田６条７丁目１－１２ | E175: 20 | F175: 医療法人社団伸孝会 ていね泌尿器科 | G175: 鈴木 伸和 | H175: =+SUM(I175:J175) -> 19 | I175: 19 | K175: 泌 | M175: 011-695-1100
A176: 札幌市 | B176: 医療法人社団 かなもり外科胃腸科肛門科クリニック | C176: 006-0819 | D176: 札幌市手稲区前田９条１１丁目９－２０ | E176: 20 | F176: 医療法人社団 かなもり外科胃腸科肛門科クリニック | G176: 金森 裕 | H176: =+SUM(I176:J176) -> 16 | I176: 16 | K176: 胃、外、肛 | M176: 011-686-1212
A177: 札幌市 | B177: 医療法人社団 手稲あけぼのレディースクリニック | C177: 006-0836 | D177: 札幌市手稲区曙６条２丁目２－１０ | E177: 20 | F177: 医療法人社団 手稲あけぼのレディースクリニック | G177: 玉川 晶子 | H177: =+SUM(I177:J177) -> 19 | I177: 19 | K177: 産婦 | M177: 011-695-4103
A178: 札幌市 | B178: 手稲区計 | D178: =COUNTA(D167:D177) -> 11 | H178: =+SUM(I178:J178) -> 177 | I178: =+SUM(I167:I177) -> 177 | J178: =+SUM(J167:J177) -> 0 | L178: =COUNTA(L167:L177) -> 0
A179: 札幌市 | B179: 札幌市保健所計 | D179: =SUM(D178,D166,D148,D137,D130,D118,D110,D100,D82,D62,) -> 135 | H179: =SUM(I179:J179) -> 1836 | I179: =SUM(I178,I166,I148,I137,I130,I118,I110,I100,I82,I62) -> 1784 | J179: =SUM(J178,J166,J148,J137,J130,J118,J110,J100,J82,J62) -> 52 | L179: =SUM(L178,L166,L148,L137,L130,L118,L110,L100,L82,L62) -> 4
A180: 江別 | B180: 医療法人社団近藤眼科 | C180: 067-0014 | D180: 江別市4条5丁目12 | E180: 20 | F180: 医療法人社団近藤眼科 | G180: 近藤邦彦 | H180: 8 | I180: 8 | K180: 眼 | M180: 011-382-4121
A181: 江別 | B181: 医療法人社団プリモウイメンズクリニック | C181: 067-0031 | D181: 江別市元町21-9 | E181: 20 | F181: 医療法人社団プリモウイメンズクリニック | G181: 田中信一 | H181: 15 | I181: 15 | K181: 産・婦 | M181: 011-391-7577
A182: 江別 | B182: 医療法人社団江別やまもと整形外科 | C182: 067-0074 | D182: 江別市高砂町3-3 | E182: 20 | F182: 医療法人社団江別やまもと整形外科 | G182: 山本 修 | H182: 19 | I182: 19 | K182: 整・リハ・リウ | L182: ○ | M182: 011-381-8008
A183: 江別 | B183: 医療法人社団さくら会江別泌尿器科 | C183: 069-0831 | D183: 江別市野幌若葉町13-5 | E183: 20 | F183: 医療法人社団さくら会 | G183: 南部明民 | H183: 19 | I183: 19 | K183: 泌・麻 | M183: 011-381-8228
A184: 江別 | B184: 医療法人社団花川眼科 | C184: 061-3208 | D184: 石狩市花川南8条3丁目1 | E184: 20 | F184: 医療法人社団花川眼科 | G184: 櫻井裕子 | H184: 6 | I184: 6 | K184: 眼 | M184: 0133-72-2211
A185: 江別 | B185: 医療法人社団佐々木整形外科医院 | C185: 061-3208 | D185: 石狩市花川南8条3丁目82-3 | E185: 20 | F185: 医療法人社団佐々木整形外科医院 | G185: 佐々木敏之 | H185: 19 | I185: 11 | J185: 8 | K185: 整・リハ | L185: ○ | M185: 0133-73-1233
A186: 江別 | B186: エナレディースクリニック | C186: 061-3209 | D186: 石狩市花川南9条1丁目86-2-3 | E186: 20 | F186: 医療法人社団みらい | G186: 石丸将之 | H186: 17 | I186: 17 | K186: 産・婦 | M186: 0133-72-8688
A187: 江別 | B187: 医療法人社団北碧会石狩中央整形外科 | C187: 061-3253 | D187: 石狩市樽川3条1丁目25-1 | E187: 20 | F187: 医療法人社団北碧会石狩中央整形外科 | G187: 日野浩之 | H187: 19 | I187: 19 | K187: 整・リハ | M187: 0133-75-7755
A188: 江別 | B188: 石狩市浜益国民健康保険診療所 | C188: 073-1401 | D188: 石狩市浜益区浜益321 | E188: 9 | F188: 石狩市 | G188: 高下圭一 | H188: 6 | I188: 6 | K188: 内・外 | M188: 0133-79-3221
A189: 江別 | B189: 医療法人はまなすはまなす医院 | C189: 061-3284 | D189: 石狩市花畔4条1丁目141-1 | E189: 20 | F189: 医療法人はまなす | G189: 工藤立史 | H189: 9 | I189: 9 | K189: 内・外・腎臓内科・透析内科 | L189: ○ | M189: 0133-64-6622
A190: 江別 | B190: すこやかクリニック新篠津 | C190: 068-1100 | D190: 石狩郡新篠津村第46線北12番地 | E190: 20 | F190: 医療法人すこやか | G190: 松井 亮 | H190: 19 | I190: 4 | J190: 15 | K190: 内・小・外・リハ | M190: 0126-57-2334
A191: 江別 | B191: 江別保健所計 | D191: =COUNTA(D180:D190) -> 11 | H191: =+SUM(I191:J191) -> 156 | I191: =+SUM(I180:I190) -> 133 | J191: =+SUM(J180:J190) -> 23 | L191: =COUNTA(L180:L190) -> 3
A192: 千歳 | B192: 陸上自衛隊北千歳駐屯地医務室 | C192: 066－8668 | D192: 千歳市北信濃 | E192: 7 | F192: 防衛省 | G192: 筒井 博貴 | H192: 5 | I192: 5 | K192: 内,外,歯 | M192: 0123－23－2106
A193: 千歳 | B193: 航空自衛隊千歳基地医務室 | C193: 066－8510 | D193: 千歳市平和無番地 | E193: 7 | F193: 防衛省 | G193: 川床 千文 | H193: 6 | I193: 6 | K193: 内,外,歯 | M193: 0123－23－3101
A194: 千歳 | B194: 陸上自衛隊東千歳駐屯地医務室 | C194: 066－8577 | D194: 千歳市祝梅1016番地 | E194: 7 | F194: 防衛省 | G194: 平井 峻稔 | H194: 19 | I194: 19 | K194: 内,外,歯 | M194: 0123－23－5131
A195: 千歳 | B195: 医療法人社団幸樹会 千歳脳神経外科 | C195: 066－0017 | D195: 千歳市日の出1丁目1番40号 | E195: 20 | F195: 医療法人社団幸樹会千歳脳神経外科 | G195: 五十嵐 幸治 | H195: 19 | I195: 19 | K195: 脳,リハ | M195: 0123－22－9911
A196: 千歳 | B196: マミーズクリニックちとせ | C196: 066－0038 | D196: 千歳市信濃2丁目1-13 | E196: 20 | F196: 医療法人マミーズクリニック | G196: 島田 茂樹 | H196: 10 | I196: 10 | K196: 産,婦 | M196: 0123－27－4103
A197: 千歳 | B197: 矢尾外科胃腸科 | C197: 066－0037 | D197: 千歳市新富3丁目12番8号 | E197: 26 | F197: 矢尾 光憲 | G197: 矢尾 光憲 | H197: 19 | I197: 19 | K197: 胃,外,整,肛,リハ,麻 | M197: 0123－27－2277
A198: 千歳 | B198: 医療法人社団尾谷内科 | C198: 066-0037 | D198: 千歳市新富2丁目5番5号 | E198: 20 | F198: 医療法人社団尾谷内科 | G198: 尾谷 浩 | H198: 15 | I198: 15 | K198: 内,消,循 | M198: 0123－24－5121
A199: 千歳 | B199: 陸上自衛隊島松駐屯地医務室 | C199: 061－1356 | D199: 恵庭市西島松308 | E199: 7 | F199: 防衛省 | G199: 赤平 垣彌 | H199: 5 | I199: 5 | K199: 内,外,歯,整 | M199: 0123－36－8611
A200: 千歳 | B200: 陸上自衛隊南恵庭駐屯地医務室 | C200: 061－1411 | D200: 恵庭市恵南63番地 | E200: 7 | F200: 防衛省 | G200: 古田 誉之 | H200: 3 | I200: 3 | K200: 内,外,歯 | M200: 0123－32－3101
... 193 more rows

Sheet 無床診療所
A1: <無床診療所（保健所別） R5.4.1現在>
A2: 所轄 保健所 | B2: 診療所名称 | C2: 郵便番号 | D2: 所 在 地 | E2: 開設者コード | F2: 開 設 者 | G2: 管理者 | H2: 標ぼう診療科目 | I2: 電話番号 | J2: 備考
A4: 市立函館 | B4: 高橋内科呼吸器科医院 | C4: 040-0002 | D4: 函館市柳町9番3号 | E4: 26 | F4: 高橋 秀一 | G4: 高橋 秀一 | H4: 内，呼，消，循，放，アレ | I4: 0138-52-7811
A5: 市立函館 | B5: 岡和田産婦人科医院 | C5: 040-0072 | D5: 函館市亀田町20番14号 | E5: 26 | F5: 岡和田 昌弘 | G5: 岡和田 昌弘 | H5: 産婦 | I5: 0138-42-5588
A6: 市立函館 | B6: 杉並肛門科クリニック | C6: 040-0004 | D6: 函館市杉並町2番9号 | E6: 26 | F6: 乃能 達男 | G6: 及能 達男 | H6: 肛 | I6: 0138-52-2241
A7: 市立函館 | B7: 医療法人社団佐藤皮膚科・循環器内科医院 | C7: 040-0001 | D7: 函館市五稜郭町28番1号 | E7: 20 | F7: 医療法人社団佐藤皮膚科・循環器内科医院 | G7: 佐藤 暢一 | H7: 内，循，皮 | I7: 0138-55-7005
A8: 市立函館 | B8: 医療法人社団たんだ泌尿器科 | C8: 040-0073 | D8: 函館市宮前町30番17号 | E8: 20 | F8: 医療法人社団たんだ泌尿器科 | G8: 田崎 雅敬 | H8: 泌 | I8: 0138-45-7366
A9: 市立函館 | B9: 久米整形外科医院 | C9: 040-0072 | D9: 函館市亀田町17番30号 | E9: 26 | F9: 久米 守 | G9: 久米 守 | H9: リウ，整，リハ | I9: 0138-41-2225
A10: 市立函館 | B10: 医療法人竹田皮膚科医院 | C10: 040-0011 | D10: 函館市本町6番4号 | E10: 20 | F10: 医療法人竹田皮膚科医院 | G10: 竹田 勇士 | H10: 皮 | I10: 0138-54-0521
A11: 市立函館 | B11: 医療法人社団今内科消化器科医院 | C11: 040-0011 | D11: 函館市本町30番36号 | E11: 20 | F11: 医療法人社団今内科消化器科医院 | G11: 今 哲二 | H11: 内，消，小，放 | I11: 0138-51-0749
A12: 市立函館 | B12: 医療法人社団保浦内科医院 | C12: 040-0035 | D12: 函館市松風町20番13号 | E12: 20 | F12: 医療法人社団保浦内科医院 | G12: 保浦 眞一 | H12: 内，消 | I12: 0138-22-5926
A13: 市立函館 | B13: 医療法人大庚会今整形外科 | C13: 040-0011 | D13: 函館市本町30番36号 | E13: 20 | F13: 医療法人大庚会 | G13: 今 均 | H13: リウ，整，リハ，放 | I13: 0138-52-7551
A14: 市立函館 | B14: 医療法人社団中島胃腸科内科クリニック | C14: 042-0932 | D14: 函館市湯川町3丁目9番25号 | E14: 20 | F14: 医療法人社団中島胃腸科内科クリニック | G14: 中島 俊雄 | H14: 内，胃 | I14: 0138-59-1258
A15: 市立函館 | B15: 医療法人社団宮本整形外科 | C15: 041-0844 | D15: 函館市川原町10番1号 | E15: 20 | F15: 医療法人社団宮本整形外科 | G15: 宮本 一成 | H15: 整，リハ | I15: 0138-55-6115
A16: 市立函館 | B16: 中川内科クリニック | C16: 041-0808 | D16: 函館市桔梗3丁目14番37号 | E16: 26 | F16: 中川 享 | G16: 中川 享 | H16: 内，小 | I16: 0138-46-8008
A17: 市立函館 | B17: 医療法人社団杉山クリニック | C17: 041-0311 | D17: 函館市浜町355番地 | E17: 20 | F17: 医療法人社団杉山クリニック | G17: 杉山 茂 | H17: 内，消，小 | I17: 0138-82-3100
A18: 市立函館 | B18: 石田眼科 | C18: 041-0812 | D18: 函館市昭和3丁目24番14号 | E18: 26 | F18: 石田 孝也 | G18: 石田 孝也 | H18: 眼 | I18: 0138-45-8185
A19: 市立函館 | B19: 第一内科医院 | C19: 042-0932 | D19: 函館市湯川町3丁目21番5号 | E19: 26 | F19: 富田 恒一 | G19: 富田 恒一 | H19: 内，循環器内科，消化器内科，呼吸器内科，小 | I19: 0138-57-9401
A20: 市立函館 | B20: 医療法人社団古河内科 | C20: 040-0001 | D20: 函館市五稜郭町20番15号 | E20: 20 | F20: 医療法人社団古河内科 | G20: 古河 研一 | H20: 内，呼，消，循 | I20: 0138-55-2220
A21: 市立函館 | B21: 医療法人社団多田内科医院 | C21: 042-0932 | D21: 函館市湯川町3丁目31番6号 | E21: 20 | F21: 医療法人社団多田内科医院 | G21: 多田 智洋 | H21: 内，呼，消，循，アレ，小 | I21: 0138-57-7755
A22: 市立函館 | B22: 医療法人社団内科高橋清仁クリニック | C22: 041-0806 | D22: 函館市美原1丁目14番12号 | E22: 20 | F22: 医療法人社団内科高橋清仁クリニック | G22: 高橋 清仁 | H22: 内，糖尿病，代謝内科，内分泌内科 | I22: 0138-40-5100
A23: 市立函館 | B23: 医療法人社団深瀬整形外科医院 | C23: 040-0072 | D23: 函館市亀田町2番10号 | E23: 20 | F23: 医療法人社団深瀬整形外科医院 | G23: 深瀬 昌洋 | H23: 整，リハ | I23: 0138-44-2000
A24: 市立函館 | B24: 医療法人社団たけうち内科胃腸科医院 | C24: 041-0852 | D24: 函館市鍛治2丁目22番6号 | E24: 20 | F24: 医療法人社団たけうち内科胃腸科医院 | G24: 竹内 秀一 | H24: 内，呼，胃，循，皮泌，放 | I24: 0138-55-5500
A25: 市立函館 | B25: 富岡町森内科クリニック | C25: 041-0811 | D25: 函館市富岡町2丁目59番1号 | E25: 26 | F25: 森 研一 | G25: 森 研一 | H25: 内，呼，消 | I25: 0138-43-2500
A26: 市立函館 | B26: 医療法人社団おいた内科クリニック | C26: 041-0841 | D26: 函館市日吉町3丁目35番6号 | E26: 20 | F26: 医療法人社団おいた内科クリニック | G26: 老田 誠 | H26: 内，呼，胃，循 | I26: 0138-32-3028
A27: 市立函館 | B27: 医療法人社団すずき小児科 | C27: 041-0806 | D27: 函館市美原1丁目39番20号 | E27: 20 | F27: 医療法人社団すずき小児科 | G27: 鈴木 敞謙 | H27: アレ，小 | I27: 0138-45-4153
A28: 市立函館 | B28: 医療法人社団たからまち総合診療クリニック | C28: 040-0043 | D28: 函館市宝来町8番9号 | E28: 20 | F28: 医療法人社団たからまち総合診療クリニック | G28: 玉城 耕平 | H28: 内・外科・救急科 | I28: 0138-27-2855
A29: 市立函館 | B29: 渡部外科クリニック | C29: 041-0841 | D29: 函館市日吉町3丁目16番11号 | E29: 26 | F29: 渡部 仁 | G29: 渡部 仁 | H29: 胃，外，整，皮，泌，肛，リハ | I29: 0138-33-3131
A30: 市立函館 | B30: 医療法人社団恩村内科医院 | C30: 040-0001 | D30: 函館市五稜郭町11番1号 | E30: 20 | F30: 医療法人社団恩村内科医院 | G30: 恩村 宏樹 | H30: 内，小，放 | I30: 0138-51-0669
A31: 市立函館 | B31: 医療法人社団高野外科・整形外科 | C31: 041-0806 | D31: 函館市美原2丁目43番13号 | E31: 20 | F31: 医療法人社団高野外科・整形外科 | G31: 高野 雅己 | H31: 外，整，肛門外科，胃腸内科 | I31: 0138-46-2161
A32: 市立函館 | B32: 医療法人社団さとう内科クリニック | C32: 040-0012 | D32: 函館市時任町33番9号 | E32: 20 | F32: 医療法人社団さとう内科クリニック | G32: 佐藤 裕一 | H32: 内，呼，消，循，リハ | I32: 0138-53-3166
A33: 市立函館 | B33: 小笹内科医院 | C33: 040-0063 | D33: 函館市若松町38番19号 | E33: 26 | F33: 小笹 明 | G33: 小笹 明 | H33: 内，呼，消，循 | I33: 0138-22-6856
A34: 市立函館 | B34: 坂口内科クリニック | C34: 041-1611 | D34: 函館市川汲町1604番地1 | E34: 26 | F34: 坂口 和彦 | G34: 坂口 和彦 | H34: 内，小 | I34: 0138-25-6611
A35: 市立函館 | B35: 医療法人社団清水眼科クリニック | C35: 042-0932 | D35: 函館市湯川町3丁目25番16号 | E35: 20 | F35: 医療法人社団清水眼科クリニック | G35: 清水 信晶 | H35: 眼 | I35: 0138-36-2222
A36: 市立函館 | B36: 医療法人社団えんどう桔梗こどもクリニック | C36: 041-0808 | D36: 函館市桔梗5丁目7番16号 | E36: 20 | F36: 医療法人社団えんどう桔梗こどもクリニック | G36: 遠藤 明 | H36: 内，小，アレ | I36: 0138-47-3011
A37: 市立函館 | B37: 医療法人大庚会こんクリニック時任 | C37: 040-0012 | D37: 函館市時任町35番24号 | E37: 20 | F37: 医療法人大庚会 | G37: 広瀬 定徳 | H37: 内，外 | I37: 0138-33-1233
A38: 市立函館 | B38: 医療法人神交会鈴木内科外科クリニック | C38: 040-0011 | D38: 函館市本町5番11号 | E38: 20 | F38: 医療法人神交会 | G38: 大原 真理子 | H38: 内，呼，消，循，外，整，皮，泌，肛，リハ | I38: 0138-51-2165
A39: 市立函館 | B39: 医療法人函館友愛会千葉医院 | C39: 041-0811 | D39: 函館市富岡町3丁目29番6号 | E39: 20 | F39: 医療法人函館友愛会 | G39: 千葉 小百合 | H39: 内，呼，消，循，歯 | I39: 0138-43-1120
A40: 市立函館 | B40: 西部大山医院 | C40: 040-0052 | D40: 函館市大町4番3号 | E40: 26 | F40: 大山 仁 | G40: 大山 仁 | H40: 内，消，外，皮，肛，リハ，放 | I40: 0138-22-3131
A41: 市立函館 | B41: しもの循環器・内科クリニック | C41: 041-0852 | D41: 函館市鍛治2丁目16番14号 | E41: 20 | F41: 医療法人社団エテルナ | G41: 下野 恒 | H41: 内，循 | I41: 0138-56-5566
A42: 市立函館 | B42: 医療法人社団早坂内科クリニック | C42: 041-0851 | D42: 函館市本通2丁目21番25号 | E42: 20 | F42: 医療法人社団早坂内科クリニック | G42: 早坂 隆 | H42: 内，消，リウ | I42: 0138-31-5200
A43: 市立函館 | B43: 医療法人社団かとうメンタルクリニック | C43: 041-0841 | D43: 函館市日吉町1丁目14番1号 | E43: 20 | F43: 医療法人社団かとうメンタルクリニック | G43: 加藤 健 | H43: 内，心内，精，児童・思春期精神科 | I43: 0138-33-7000
A44: 市立函館 | B44: 医療法人社団はぎさわ小児クリニック | C44: 040-0012 | D44: 函館市時任町23番10号 | E44: 20 | F44: 医療法人社団はぎさわ小児クリニック | G44: 萩沢 正博 | H44: 小 | I44: 0138-33-1122
A45: 市立函館 | B45: 柳川内科胃腸科 | C45: 040-0063 | D45: 函館市若松町32番10号 | E45: 26 | F45: 柳川 真一 | G45: 柳川 真一 | H45: 内，胃 | I45: 0138-27-7114
A46: 市立函館 | B46: 医療法人社団アリエス循環器科内科クリニック | C46: 041-0808 | D46: 函館市桔梗5丁目14番5号 | E46: 20 | F46: 医療法人社団アリエス循環器科内科クリニック | G46: 岩倉 雅弘 | H46: 内，循 | I46: 0138-47-8811
A47: 市立函館 | B47: 医療法人社団五稜郭メンタルクリニック | C47: 040-0004 | D47: 函館市杉並町23番15号 | E47: 20 | F47: 医療法人社団五稜郭メンタルクリニック | G47: 多田 直人 | H47: 内，心内，精，神内 | I47: 0138-31-7771
A48: 市立函館 | B48: 医療法人社団イーストかたやま内科消化器科 | C48: 041-0841 | D48: 函館市日吉町2丁目8番17号 | E48: 20 | F48: 医療法人社団イーストかたやま内科消化器科 | G48: 片山 英昭 | H48: 内，消 | I48: 0138-32-3221
A49: 市立函館 | B49: 医療法人社団恵誠会そうま耳鼻咽喉科医院 | C49: 041-0813 | D49: 函館市亀田本町60番17号 | E49: 20 | F49: 医療法人社団恵誠会 | G49: 相馬 裕太 | H49: 耳 | I49: 0138-42-1133
A50: 市立函館 | B50: 医療法人社団こが整形外科クリニック | C50: 040-0012 | D50: 函館市時任町23番9号 | E50: 20 | F50: 医療法人社団こが整形外科クリニック | G50: 古賀 弘道 | H50: リウ，整，リハ | I50: 0138-54-0020
A51: 市立函館 | B51: 医療法人社団川崎眼科 | C51: 041-0808 | D51: 函館市桔梗3丁目23番16号 | E51: 20 | F51: 医療法人社団川崎眼科 | G51: 川嵜 眞木生 | H51: 眼 | I51: 0138-47-2525
A52: 市立函館 | B52: 医療法人社団杜の風五稜郭みやざき勢内科クリニック | C52: 040-0011 | D52: 函館市本町20番14号 | E52: 20 | F52: 医療法人社団杜の風 | G52: 宮崎 勢 | H52: 内，心内，神内，呼，胃，循，アレ，リウ，小，皮 | I52: 0138-32-7008
A53: 市立函館 | B53: はら内科クリニック | C53: 040-0021 | D53: 函館市的場町1番3号 | E53: 20 | F53: 医療法人社団信愛会 | G53: 原 信彦 | H53: 内，消化器内科（内視鏡），糖尿病内科，循環器内科，呼吸器内科 | I53: 0138-52-8282
A54: 市立函館 | B54: 医療法人社団佐藤耳鼻咽喉科医院 | C54: 042-0941 | D54: 函館市深堀町26番2号 | E54: 20 | F54: 医療法人社団佐藤耳鼻咽喉科医院 | G54: 佐藤 信清 | H54: 耳，気 | I54: 0138-51-7850
A55: 市立函館 | B55: みなと内科脳外科医院 | C55: 041-0822 | D55: 函館市亀田港町38番15号 | E55: 26 | F55: 上野 一義 | G55: 上野 一義 | H55: 内，神内，外，脳 | I55: 0138-62-3385
A56: 市立函館 | B56: 医療法人社団かみゆのかわ医院 | C56: 042-0914 | D56: 函館市上湯川町52番8号 | E56: 20 | F56: 医療法人社団かみゆのかわ医院 | G56: 大和田 稔 | H56: 内 | I56: 0138-59-6010
A57: 市立函館 | B57: 函館渡辺病院附属ゆのかわメンタルクリニック | C57: 042-0932 | D57: 函館市湯川町1丁目29番11号 | E57: 20 | F57: 社会医療法人函館博栄会 | G57: 久保田 修司 | H57: 精，心内 | I57: 0138-59-3331
A58: 市立函館 | B58: 石崎小児科医院 | C58: 042-0932 | D58: 函館市湯川町1丁目17番19号 | E58: 26 | F58: 石崎 彰一 | G58: 石崎 彰一 | H58: アレ，小 | I58: 0138-59-1233
A59: 市立函館 | B59: 医療法人社団八木原整形外科クリニック | C59: 041-0806 | D59: 函館市美原1丁目14番12号 | E59: 20 | F59: 医療法人社団八木原整形外科クリニック | G59: 八木原 一英 | H59: リウ，整，リハ | I59: 0138-45-5050
A60: 市立函館 | B60: 五稜郭大村美容形成クリニック | C60: 040-0011 | D60: 函館市本町8番18号五稜郭本町ビル7階 | E60: 26 | F60: 大村 勇二 | G60: 大村 勇二 | H60: 形，美，皮 | I60: 0138-35-4874
A61: 市立函館 | B61: 医療法人社団やなせ皮フ科クリニック | C61: 040-0064 | D61: 函館市大手町2番3号 | E61: 20 | F61: 医療法人社団やなせ皮フ科クリニック | G61: 梁瀬 義範 | H61: 皮 | I61: 0138-22-7788
A62: 市立函館 | B62: 医療法人社団伊藤メンタルクリニック | C62: 042-0935 | D62: 函館市駒場町6番10号 | E62: 20 | F62: 医療法人社団伊藤メンタルクリニック | G62: 伊藤 匡 | H62: 内，心内，精，神内 | I62: 0138-54-6600
A63: 市立函館 | B63: 医療法人大庚会こんクリニック松濤 | C63: 040-0035 | D63: 函館市松風町18番17号 | E63: 20 | F63: 医療法人大庚会 | G63: 富田 倫代 | H63: リウ，整，リハ，内 | I63: 0138-27-0123
A64: 市立函館 | B64: 道南勤医協稜北クリニック | C64: 041-0853 | D64: 函館市中道2丁目51番1号 | E64: 20 | F64: 医療法人道南勤労者医療協会 | G64: 犬童 伸行 | H64: 内，呼吸器内科，消化器内科，循環器内科，リウ，リハ | I64: 0138-54-3116
A65: 市立函館 | B65: 斉藤内科クリニック | C65: 041-0822 | D65: 函館市亀田港町1番6号 | E65: 26 | F65: 齋藤 勉 | G65: 齋藤 勉 | H65: 内，呼，消，循 | I65: 0138-41-5632
A66: 市立函館 | B66: 医療法人社団清邑会椴法華クリニック | C66: 041-0611 | D66: 函館市新浜町171番地9 | E66: 20 | F66: 医療法人社団清邑会 | G66: 清水 鉄也 | H66: 内，消，外，皮，肛，リハ | I66: 0138-86-2807
A67: 市立函館 | B67: 医療法人社団東野内科消化器科クリニック | C67: 040-0083 | D67: 函館市八幡町21番12号 | E67: 20 | F67: 医療法人社団東野内科消化器科クリニック | G67: 東野 清 | H67: 内，消 | I67: 0138-41-1818
A68: 市立函館 | B68: たかひろクリニック | C68: 040-0072 | D68: 函館市亀田町17番24号 | E68: 26 | F68: 髙廣 努 | G68: 髙廣 努 | H68: 内，皮，泌 | I68: 0138-43-1161
A69: 市立函館 | B69: 函館西部脳神経クリニック | C69: 040-0065 | D69: 函館市豊川町2番4号 | E69: 26 | F69: 小保内 主税 | G69: 小保内 主税 | H69: 内，神内，脳，リハ | I69: 0138-26-1029
A70: 市立函館 | B70: 医療法人社団くまくら柏木クリニック | C70: 042-0942 | D70: 函館市柏木町11番6号 | E70: 20 | F70: 医療法人社団くまくら柏木クリニック | G70: 熊倉 啓夫 | H70: 消，外，整，肛 | I70: 0138-31-7700
A71: 市立函館 | B71: 医療法人社団ごとう内科胃腸科 | C71: 042-0935 | D71: 函館市駒場町16番14号 | E71: 20 | F71: 医療法人社団ごとう内科胃腸科 | G71: 後藤 琢 | H71: 内，呼，胃，循 | I71: 0138-51-7389
A72: 市立函館 | B72: 医療法人社団守一会北美原クリニック | C72: 041-0802 | D72: 函館市石川町350番地18 | E72: 20 | F72: 医療法人社団守一会北美原クリニック | G72: 岡田 晋吾 | H72: 内，呼吸器内科，消化器内科，循環器内科，外，肛門外科，人工透析内科，乳腺外科 | I72: 0138-34-6677
A73: 市立函館 | B73: ゆのかわ温泉整形外科 | C73: 042-0932 | D73: 函館市湯川町1丁目6番4号 | E73: 26 | F73: 毛糠 優子 | G73: 毛糠 優子 | H73: リウ，整，リハ | I73: 0138-59-2925
A74: 市立函館 | B74: 医療法人社団やなづめ医院 | C74: 041-0841 | D74: 函館市日吉町3丁目43番20号 | E74: 20 | F74: 医療法人社団やなづめ医院 | G74: 簗詰 泰彦 | H74: 麻，ペインクリニック内科，内，リハ | I74: 0138-32-5000
A75: 市立函館 | B75: すどうスキンクリニック | C75: 040-0001 | D75: 函館市五稜郭町34番16号2Ｆ | E75: 26 | F75: 須藤 聡 | G75: 須藤 聡 | H75: 形，美，皮 | I75: 0138-33-0865
A76: 市立函館 | B76: 医療法人社団福徳整形外科 ・外科 | C76: 042-0932 | D76: 函館市湯川町2丁目37番7号 | E76: 20 | F76: 医療法人社団福徳整形外科・外科 | G76: 福徳 修治 | H76: リウ，外，整，皮泌，肛，リハ | I76: 0138-57-0897
A77: 市立函館 | B77: 医療法人社団榊原循環器科内科クリニック | C77: 040-0084 | D77: 函館市大川町12番22号 | E77: 20 | F77: 医療法人社団 榊原循環器科内科クリニック | G77: 榊原 亨 | H77: 内，循 | I77: 0138-43-1222
A78: 市立函館 | B78: 医療法人社団はこだてメンタルクリニック | C78: 041-0806 | D78: 函館市美原2丁目1番7号 | E78: 20 | F78: 医療法人社団 はこだてメンタルクリニック | G78: 大湯 広志 | H78: 心内，精，神内 | I78: 0138-47-6200
A79: 市立函館 | B79: 五稜郭ファミリークリニック小児科 | C79: 042-0942 | D79: 函館市柏木町11番10号 | E79: 20 | F79: 医療法人社団五稜郭ファミリークリニック | G79: 石坂 仁 | H79: アレ，小 | I79: 0138-31-6660
A80: 市立函館 | B80: はらだ内科消化器科クリニック | C80: 041-0812 | D80: 函館市昭和2丁目37番20号 | E80: 20 | F80: 医療法人社団くうら | G80: 原田 博幸 | H80: 内，消 | I80: 0138-40-6700
A81: 市立函館 | B81: みなとまち皮膚科菊地医院 | C81: 041-0822 | D81: 函館市亀田港町39番7号 | E81: 20 | F81: 医療法人優楽会 | G81: 菊地 誠一 | H81: 皮 | I81: 0138-40-3710
A82: 市立函館 | B82: 医療法人社団大裕会竹中内科消化器科 | C82: 042-0942 | D82: 函館市柏木町24番27号 | E82: 20 | F82: 医療法人社団 大裕会 竹中内科消化器科 | G82: 竹中 靖彦 | H82: 内，呼，消，循，リハ | I82: 0138-51-7700
A83: 市立函館 | B83: 医療法人社団関口内科医院 | C83: 041-0853 | D83: 函館市中道1丁目5番20号 | E83: 20 | F83: 医療法人社団関口内科医院 | G83: 関口 洋平 | H83: 内，呼，消，循，放 | I83: 0138-53-6252
A84: 市立函館 | B84: 山の手整形外科クリニック | C84: 041-0836 | D84: 函館市山の手2丁目10番1号 | E84: 26 | F84: 三井 敏文 | G84: 三井 敏文 | H84: リウ，整，リハ | I84: 0138-86-7111
A85: 市立函館 | B85: 函館市夜間急病センター | C85: 040-0001 | D85: 函館市五稜郭町23番1号 | E85: 9 | F85: 函館市 | G85: 塙 貞明 | H85: 内，小，外 | I85: 0138-30-1199
A86: 市立函館 | B86: ひやま耳鼻咽喉科クリニック | C86: 041-0802 | D86: 函館市石川町350番地8 | E86: 26 | F86: 檜山 繁樹 | G86: 檜山 繁樹 | H86: 耳 | I86: 0138-83-8783
A87: 市立函館 | B87: 医療法人社団江端整形外科医院 | C87: 041-0806 | D87: 函館市美原1丁目19番2号 | E87: 20 | F87: 医療法人社団江端整形外科医院 | G87: 江端 済 | H87: 整，リウ，リハ | I87: 0138-41-1311
A88: 市立函館 | B88: 医療法人雄心会函館おおてまちクリニック | C88: 040-0064 | D88: 函館市大手町1番21号 | E88: 20 | F88: 医療法人雄心会 | G88: 金野 則弘 | H88: 内，消化器内科，外，人工透析内科 | I88: 0138-23-1062
A89: 市立函館 | B89: 長谷川循環器内科クリニック | C89: 040-0012 | D89: 函館市時任町8番5号サンクリニック2階 | E89: 26 | F89: 長谷川 亨 | G89: 長谷川 亨 | H89: 循環器内科，内，消化器内科，呼吸器内科 | I89: 0138-54-1566
A90: 市立函館 | B90: みはら内科クリニック | C90: 041-0851 | D90: 函館市本通3丁目9番14号 | E90: 26 | F90: 三原 真美 | G90: 三原 真美 | H90: 内，胃腸内科 | I90: 0138-84-5866
A91: 市立函館 | B91: 日吉皮膚科クリニック | C91: 041-0841 | D91: 函館市日吉町1丁目1番13号 | E91: 20 | F91: 医療法人社団北萌会 | G91: 横田 浩一 | H91: 皮 | I91: 0138-30-3003 | J91: 令和5年3月11日から令和5年6月10日まで休止中
A92: 市立函館 | B92: 黒田クリニック | C92: 040-0073 | D92: 函館市宮前町20番3号 | E92: 20 | F92: 医療法人社団黒田クリニック | G92: 黒田 豪 | H92: 消化器内科，内視鏡内科，外 | I92: 0138-42-5566
A93: 市立函館 | B93: 成田内科医院 | C93: 040-0015 | D93: 函館市梁川町14番1号 | E93: 26 | F93: 成田 孝 | G93: 成田 孝 | H93: 内 | I93: 0138-51-5085
A94: 市立函館 | B94: あんざいクリニック | C94: 041-0851 | D94: 函館市本通3丁目27番6号 | E94: 20 | F94: 医療法人あそべの森あんざいクリニック | G94: 安齋 治一 | H94: 内，小 | I94: 内0138-31-2202 小0138-31-2212
A95: 市立函館 | B95: 医療法人社団藤紀会さいとう内科循環器内科医院 | C95: 040-0075 | D95: 函館市万代町1番13号 | E95: 20 | F95: 医療法人社団藤紀会さいとう内科循環器内科医院 | G95: 齊藤 誠一 | H95: 内，消化器内科，循環器内科，呼吸器内科 | I95: 0138-45-1118
A96: 市立函館 | B96: 医療法人社団弥生坂内科クリニック | C96: 040-0052 | D96: 函館市大町4番10号 | E96: 20 | F96: 医療法人社団弥生坂内科クリニック | G96: 渡邉 雅男 | H96: 内，消化器内科，循環器内科，呼吸器内科，糖尿病内科，脂質代謝内科，内視鏡内科 | I96: 0138-27-1555
A97: 市立函館 | B97: 医療法人たき整形外科クリニック | C97: 042-0941 | D97: 函館市深堀町1番3号 | E97: 20 | F97: 医療法人たき整形外科クリニック | G97: 滝 健児 | H97: 整，リハ | I97: 0138-30-8282
A98: 市立函館 | B98: 山本ひふクリニック | C98: 041-0806 | D98: 函館市美原1丁目7番1号ＭＥＧＡドン・キホーテ2Ｆ | E98: 26 | F98: 山本 美保 | G98: 山本 美保 | H98: 皮 | I98: 0138-45-4106
A99: 市立函館 | B99: アドバンス・クリニック函館 | C99: 040-0036 | D99: 函館市東雲町5番11号寺井ビル6階 | E99: 26 | F99: 平山 繁樹 | G99: 平山 繁樹 | H99: 内 | I99: 0138-76-9115
A100: 市立函館 | B100: やまだクリニック | C100: 042-0932 | D100: 函館市湯川町1丁目17番27号 | E100: 20 | F100: 医療法人社団やまだクリニック | G100: 山田 裕一 | H100: 内，泌，人工透析内科 | I100: 0138-59-5800
A101: 市立函館 | B101: 医療法人社団さいとう小児クリニック | C101: 041-0802 | D101: 函館市石川町163番地2 | E101: 20 | F101: 医療法人社団さいとう小児クリニック | G101: 斉藤 隆 | H101: 小 | I101: 0138-34-3355
A102: 市立函館 | B102: 医療法人社団向仁会函館ファミリークリニック | C102: 041-0808 | D102: 函館市桔梗1丁目14番1号 | E102: 20 | F102: 医療法人社団向仁会 | G102: 川上 恒生 | H102: 内，整 | I102: 0138-34-6600
A103: 市立函館 | B103: 医療法人社団ながさわ整形外科 | C103: 041-0802 | D103: 函館市石川町457番地2 | E103: 20 | F103: 医療法人社団ながさわ整形外科 | G103: 永澤 雷太 | H103: 整，リハ | I103: 0138-34-7538
A104: 市立函館 | B104: ピュアこころのクリニック | C104: 040-0084 | D104: 函館市大川町8番24号 | E104: 20 | F104: 医療法人社団愛祈の会 | G104: 下田 義和 | H104: 心内，精 | I104: 0138-83-8668
A105: 市立函館 | B105: アルファ皮膚科クリニック | C105: 041-0851 | D105: 函館市本通1丁目7番22号メディカルプレイス2Ｆ | E105: 26 | F105: 山田 透 | G105: 山田 透 | H105: 皮 | I105: 0138-33-7300
A106: 市立函館 | B106: 久保田内科医院 | C106: 040-0003 | D106: 函館市松陰町28番18号 | E106: 26 | F106: 久保田 達也 | G106: 久保田 達也 | H106: 内，消化器内科，漢方内科 | I106: 0138-51-5326
A107: 市立函館 | B107: 医療法人社団ひろかわ皮膚科クリニック | C107: 041-0851 | D107: 函館市本通2丁目39番22号 | E107: 20 | F107: 医療法人社団ひろかわ皮膚科クリニック | G107: 廣川 政己 | H107: 皮 | I107: 0138-51-2312
A108: 市立函館 | B108: ききょう内科クリニック | C108: 041-0801 | D108: 函館市桔梗3丁目30番7号 | E108: 20 | F108: 医療法人友晶会ききょう内科クリニック | G108: 蓮沼 晶子 | H108: 内，呼吸器内科，緩和ケア内科 | I108: 0138-46-0709
A109: 市立函館 | B109: 藤原眼科 | C109: 041-0806 | D109: 函館市美原2丁目1番25号 | E109: 20 | F109: 医療法人慶光会藤原眼科 | G109: 藤原 慎太郎 | H109: 眼 | I109: 0138-47-5700
A110: 市立函館 | B110: うめき皮膚科 | C110: 041-0801 | D110: 函館市桔梗町403番地356 | E110: 26 | F110: 梅木 薫 | G110: 梅木 薫 | H110: 皮 | I110: 0138-34-3311
A111: 市立函館 | B111: こにし内科・心臓血管クリニック | C111: 040-0053 | D111: 函館市末広町3番15号 | E111: 20 | F111: 医療法人社団函西会 | G111: 小西 宏明 | H111: 内，心外，循環器内科 | I111: 0138-83-2080
A112: 市立函館 | B112: 平野内科 | C112: 042-0932 | D112: 函館市湯川町1丁目40番15号 | E112: 20 | F112: 医療法人社団平野メディカルグループ | G112: 平野 一仁 | H112: 内，消化器内科，循環器内科，呼吸器内科，糖尿病内科，アレ | I112: 0138-36-6611
A113: 市立函館 | B113: 産婦人科ほんどおりクリニック | C113: 041-0851 | D113: 函館市本通1丁目44番10号 | E113: 20 | F113: 医療法人社団ＲＨＣ | G113: 工藤 隆之 | H113: 産婦 | I113: 0138-31-5855
A114: 市立函館 | B114: あかざわ耳鼻咽喉科クリニック | C114: 041-0853 | D114: 函館市中道2丁目17番16号 | E114: 26 | F114: 赤澤 茂 | G114: 赤澤 茂 | H114: 耳，アレ | I114: 0138-33-4187
A115: 市立函館 | B115: めや眼科 | C115: 040-0011 | D115: 函館市本町30番28号 | E115: 20 | F115: 医療法人千心会 | G115: 目谷 千聡 | H115: 眼 | I115: 0138-30-2211
A116: 市立函館 | B116: 医療法人社団三桜会むとう日吉が丘クリニック | C116: 041-0841 | D116: 函館市日吉町2丁目1番2号 | E116: 20 | F116: 医療法人社団三桜会 | G116: 武藤 雅俊 | H116: 内，泌，人工透析内科 | I116: 0138-30-6011
A117: 市立函館 | B117: 道南リウマチ・整形外科 | C117: 041-0802 | D117: 函館市石川町350番地17石川学園通りメディカルビル2号館1階 | E117: 26 | F117: 北村 公一 | G117: 北村 公一 | H117: リウ，整 | I117: 0138-34-2222
A118: 市立函館 | B118: おの内科呼吸器内科クリニック | C118: 041-0843 | D118: 函館市花園町10番2号 | E118: 26 | F118: 小野 貴広 | G118: 小野 貴広 | H118: 内，呼吸器内科 | I118: 0138-33-1818
A119: 市立函館 | B119: 社会医療法人高橋病院湯の川クリニック | C119: 042-0932 | D119: 函館市湯川町3丁目40番3号 | E119: 20 | F119: 社会医療法人高橋病院 | G119: 小野寺 秀 | H119: 内，消化器内科，循環器内科，呼吸器内科，内視鏡内科，リハ | I119: 0138-59-1231
A120: 市立函館 | B120: 内科・小児科・歯科 竹田クリニック | C120: 040-0054 | D120: 函館市元町29番21号 | E120: 20 | F120: 社団医療法人尚仁会 | G120: 竹田 公一 | H120: 内，小，歯 | I120: 0138-26-5811
A121: 市立函館 | B121: 協立内科クリニック | C121: 041-0806 | D121: 函館市美原3丁目13番15号 | E121: 26 | F121: 能戸 徹哉 | G121: 能戸 徹哉 | H121: 消化器内科，循環器内科，呼吸器内科，内 | I121: 0138-46-1300
A122: 市立函館 | B122: 函館あかまつ通り整形外科クリニック | C122: 041-0808 | D122: 函館市桔梗1丁目2番10号 | E122: 20 | F122: 医療法人社団恒信会 | G122: 森元 雅信 | H122: 整，リハ | I122: 0138-47-0007
A123: 市立函館 | B123: 医療法人社団函館脳神経セントラルクリニック | C123: 040-0015 | D123: 函館市梁川町16番5号 | E123: 20 | F123: 医療法人社団函館脳神経セントラルクリニック | G123: 加藤 功 | H123: 脳，神内 | I123: 0138-35-3355
A124: 市立函館 | B124: 函館野畔の花クリニック | C124: 040-0052 | D124: 函館市大町8番11号 | E124: 22 | F124: 社会福祉法人青雲の森 | G124: 塩澤 寛敏 | H124: 内 | I124: 0138-22-2700
A125: 市立函館 | B125: 港町こどもクリニック | C125: 041-0821 | D125: 函館市港町1丁目11番18号2Ｆ | E125: 26 | F125: 藤田 祥二 | G125: 藤田 祥二 | H125: 小，アレ | I125: 0138-85-8889
A126: 市立函館 | B126: 桐花通り呼吸器内科 | C126: 041-0812 | D126: 函館市昭和2丁目17番9号 | E126: 20 | F126: 医療法人社団桐花通り呼吸器内科 | G126: 髙橋 隆二 | H126: 内，呼吸器内科 | I126: 0138-84-1459
A127: 市立函館 | B127: YOKO CLINIC | C127: 041-0802 | D127: 函館市石川町188番地14 | E127: 26 | F127: 長池 陽子 | G127: 長池 陽子 | H127: 眼，美容皮膚科 | I127: 0138-47-4059
A128: 市立函館 | B128: 川添消化器内科クリニック | C128: 041-0806 | D128: 函館市美原5丁目19番2号 | E128: 20 | F128: 医療法人社団黒田クリニック | G128: 川添 一哉 | H128: 消化器内科，内 | I128: 0138-47-7011
A129: 市立函館 | B129: たかさわ糖尿病内科クリニック | C129: 041-0821 | D129: 函館市港町1丁目11番18号函館港町ビル3階 | E129: 26 | F129: 高澤 宏文 | G129: 高澤 宏文 | H129: 内，糖尿病内科 | I129: 0138-44-0100
A130: 市立函館 | B130: 医療法人社団おぐらクリニック | C130: 041-0813 | D130: 函館市亀田本町1番21号 | E130: 20 | F130: 医療法人社団おぐらクリニック | G130: 小椋 庸隆 | H130: 内，リウ | I130: 0138-62-6100
A131: 市立函館 | B131: 医療法人社団ほたてクリニック | C131: 041-0822 | D131: 函館市亀田港町39番43号 | E131: 20 | F131: 医療法人社団ほたてクリニック | G131: 保立 裕史 | H131: 耳 | I131: 0138-41-3387
A132: 市立函館 | B132: 医療法人社団ひらた皮フ科クリニック | C132: 040-0025 | D132: 函館市堀川町8番4号 | E132: 20 | F132: 医療法人社団ひらた皮フ科クリニック | G132: 平田 忍 | H132: 皮 | I132: 0138-51-6561
A133: 市立函館 | B133: 尾崎循環器内科クリニック | C133: 041-0805 | D133: 函館市赤川1丁目1番1号 | E133: 26 | F133: 尾崎 文武 | G133: 尾崎 文武 | H133: 内，循環器内科 | I133: 0138-83-8558
A134: 市立函館 | B134: 医療法人社団宗走会けいら耳鼻咽喉科 | C134: 042-0943 | D134: 函館市乃木町1番6－1号 | E134: 20 | F134: 医療法人社団宗走会 | G134: 計良 宗 | H134: 耳 | I134: 0138-30-3387
A135: 市立函館 | B135: 医療法人社団あすなろ会函館パートナークリニック | C135: 041-0802 | D135: 函館市石川町2番地61 | E135: 20 | F135: 医療法人社団あすなろ会 | G135: 臼田 俊二 | H135: 内 | I135: 0138-85-8233
A136: 市立函館 | B136: あおばクリニック函館院 | C136: 040-0011 | D136: 函館市本町25番13号五稜郭ビル3F | E136: 26 | F136: 森田 高史 | G136: 森田 高史 | H136: 眼，美容皮膚科 | I136: 0138-35-6250
A137: 市立函館 | B137: 医療法人社団碧水会みんなの函館クリニック | C137: 041-0841 | D137: 函館市日吉町4丁目16番21号コンテ日吉4号室 | E137: 20 | F137: 医療法人社団碧水会 | G137: 山下 晋 | H137: 内 | I137: 0138-83-7630
A138: 市立函館 | B138: アイビー函館クリニック | C138: 042-0914 | D138: 函館市上湯川町10番8号 | E138: 26 | F138: 波多野 治 | G138: 波多野 治 | H138: 内 | I138: 0138-36-3500
A139: 市立函館 | B139: ふくま内科 循環器内科クリニック | C139: 041-0851 | D139: 函館市本通2丁目37番18号 | E139: 26 | F139: 福眞 隆行 | G139: 福眞 隆行 | H139: 内，循環器内科 | I139: 0138-35-7301
A140: 市立函館 | B140: はこだて港町眼科 | C140: 041-0821 | D140: 函館市港町1丁目20番21号 | E140: 20 | F140: 医療法人社団松弘会 | G140: 松下 知弘 | H140: 眼 | I140: 0138-42-1000
A141: 市立函館 | B141: 一色クリニック | C141: 041-0802 | D141: 函館市石川町540番地14 | E141: 20 | F141: 医療法人社団一色医院 | G141: 一色 裕之 | H141: 内，消化器内科，肛門外科 | I141: 0138-86-5527
A142: 市立函館 | B142: 社会医療法人仁生会たけだクリニック | C142: 040-0073 | D142: 函館市宮前町27番11号 | E142: 20 | F142: 社会医療法人仁生会 | G142: 武田 良一 | H142: 内 | I142: 0138-62-3100
A143: 市立函館 | B143: おうちクリニック | C143: 041-0808 | D143: 函館市桔梗2丁目1番31号 | E143: 26 | F143: 横倉 基 | G143: 横倉 基 | H143: 内 | I143: 0138-34-5517
A144: 市立函館 | B144: 昭和皮膚科クリニック | C144: 041-0812 | D144: 函館市昭和１丁目２９番７号 昭和タウンプラザＡ館２階 | E144: 20 | F144: 医療法人社団昭和皮膚科クリニック | G144: 立石 八寿貴 | H144: 皮 | I144: 0138-42-6161
A145: 市立函館 | B145: 五稜郭ネフロクリニック | C145: 041-0851 | D145: 函館市本通１丁目７番２０号 | E145: 20 | F145: 医療法人社団五稜郭ネフロクリニック | G145: 鈴木 勝雄 | H145: 内，循環器内科，腎臓内科 | I145: 013831-1717
A146: 市立函館 | B146: 医療法人社団恵愛会函館クリニック | C146: 042-0953 | D146: 函館市戸倉町１５５番地１ | E146: 20 | F146: 医療法人社団恵愛会 | G146: 伊達 基 | H146: 内 | I146: 0138-83-5852
A147: 市立函館 | B147: (往診のみ） | C147: 040-0002 | D147: 函館市柳町7番19号柳町レジデンス409号室 | E147: 26 | F147: 石田 岳 | G147: 石田 岳 | H147: 麻，ペインクリニック内科 | I147: なし
A148: 市立函館 | B148: みどりの森さとう内科・こどもクリニック | C148: 041-0808 | D148: 函館市桔梗4丁目8番25号 | E148: 26 | F148: 中里 諭美 | G148: 中里 諭美 | H148: 内，小，消化器内科，呼吸器内科，内分泌・代謝内科 | I148: 0138-46－1212
A149: 市立函館 | B149: 昭和ごとう内科 | C149: 041-0812 | D149: 函館市昭和３丁目３６番１１号 | E149: 26 | F149: 後藤 洋平 | G149: 後藤 洋平 | H149: 内科 | I149: 0138-34-2221
A150: 市立函館 | B150: 北海道赤十字血液センター函館事業所 | C150: 040-0022 | D150: 函館市日乃出町23番8号 | E150: 11 | F150: 日本赤十字社 | G150: 森 文惠 | H150: 内 | I150: 0138-56-2211
A151: 市立函館 | B151: 財務省共済組合函館税関支部直営診療所 | C151: 040-0061 | D151: 函館市海岸町24番4号 | E151: 17 | F151: 財務省共済組合函館税関支部 | G151: 金谷 健一 | H151: 内 | I151: 0138-40-4213
A152: 市立函館 | B152: 厚生労働省第二共済組合函館病院診療部 | C152: 041-0844 | D152: 函館市川原町18番16号 | E152: 17 | F152: 厚生労働省第二共済組合函館病院所属所 | G152: 大原 正範 | H152: 内 | I152: 0138-51-6281
A153: 市立函館 | B153: 高丘寮診療所 | C153: 042-0955 | D153: 函館市高丘町3番1号援護施設高丘寮内 | E153: 22 | F153: 社会福祉法人函館厚生院 | G153: 森 裕二 | H153: 内，精 | I153: 0138-57-7038
A154: 市立函館 | B154: 明和園診療所 | C154: 040-0022 | D154: 函館市日乃出町21番17号 | E154: 22 | F154: 社会福祉法人函館市民生事業協会 | G154: 吉田 英敏 | H154: 内，小 | I154: 0138-51-5281
A155: 市立函館 | B155: 特別養護老人ホーム「旭ケ岡の家」診療所 | C155: 042-0916 | D155: 函館市旭岡町78番地 | E155: 22 | F155: 社会福祉法人函館カリタスの園 | G155: 福徳 雅章 | H155: 内 | I155: 0138-50-2121
A156: 市立函館 | B156: ゆうあい会石川診療所 | C156: 041-0802 | D156: 函館市石川町41番地2 | E156: 22 | F156: 社会福祉法人侑愛会 | G156: 高橋 和俊 | H156: 内，精，小，整，リハ | I156: 0138-46-6641
A157: 市立函館 | B157: 特別養護老人ホーム函館はくあい園診療所 | C157: 040-0077 | D157: 函館市吉川町3番16号 | E157: 22 | F157: 社会福祉法人函館松寿会 | G157: 芦野 良橘 | H157: 内 | I157: 0138-45-5250
A158: 市立函館 | B158: 函館厚生院函館百楽園 | C158: 042-0955 | D158: 函館市高丘町3番1号 | E158: 22 | F158: 社会福祉法人函館厚生院 | G158: 多田 智洋 | H158: 内 | I158: 0138-57-7418
A159: 市立函館 | B159: 社会福祉法人函館厚生院養護老人ホーム永楽荘診療所 | C159: 042-0955 | D159: 函館市高丘町3番1号 | E159: 22 | F159: 社会福祉法人函館厚生院 | G159: 目黒 英二 | H159: 内，精 | I159: 0138-57-1366
A160: 市立函館 | B160: 特別養護老人ホーム幸成園診療所 | C160: 041-0801 | D160: 函館市桔梗町435番地28 | E160: 22 | F160: 社会福祉法人函館幸成会 | G160: 戸澤 求馬 | H160: 内 | I160: 0138-47-1113
A161: 市立函館 | B161: 日本中央競馬会函館競馬場診療所 | C161: 042-0935 | D161: 函館市駒場町12番2号 | E161: 25 | F161: 日本中央競馬会 | G161: 本郷 友德 | H161: 外 | I161: 0138-53-1021
A162: 市立函館 | B162: 北海道渡島保健所 | C162: 041-0806 | D162: 函館市美原4丁目6番16号 | E162: 8 | F162: 北海道 | G162: 立花 理彦 | H162: 内，歯 | I162: 0138-47-9000
A163: 市立函館 | B163: 市営函館競輪場選手管理棟医務室 | C163: 042-0944 | D163: 函館市金堀町10番10号 | E163: 9 | F163: 函館市 | G163: 角田 敬一 | H163: 内 | I163: 0138-51-3121
A164: 市立函館 | B164: 特別養護老人ホームシンフォニー医務室 | C164: 042-0912 | D164: 函館市中野町74番地1 | E164: 22 | F164: 社会福祉法人禎人会 | G164: 松田 林 | H164: 内 | I164: 0138-58-2000
A165: 市立函館 | B165: 市立函館保健所 | C165: 040-0001 | D165: 函館市五稜郭町23番1号 | E165: 9 | F165: 函館市 | G165: 山田 隆良 | H165: 内，小 | I165: 0138-32-1512
A166: 市立函館 | B166: 特別養護老人ホーム松濤医務室 | C166: 040-0035 | D166: 函館市松風町18番15号 | E166: 22 | F166: 社会福祉法人函館大庚会 | G166: 石田 宏文 | H166: 内 | I166: 0138-27-0077
A167: 市立函館 | B167: 特別養護老人ホーム潮寿荘医務室 | C167: 041-0252 | D167: 函館市釜谷町605番地1 | E167: 22 | F167: 社会福祉法人戸井福祉会 | G167: 清水 鉄也 | H167: 内 | I167: 0138-82-3535
A168: 市立函館 | B168: 特別養護老人ホーム恵楽園医務室 | C168: 041-0523 | D168: 函館市柏野町117番地148 | E168: 22 | F168: 社会福祉法人恵山恵愛会 | G168: 小田桐 元 | H168: 内 | I168: 0138-85-2893
A169: 市立函館 | B169: みなみかやべ荘診療室 | C169: 041-1611 | D169: 函館市川汲町986番地13 | E169: 22 | F169: 社会福祉法人函館共愛会 | G169: 水島 豊 | H169: 内 | I169: 0138-25-5300
A170: 市立函館 | B170: 社会福祉法人函館愛育会特別養護老人ホームおおぞら医務室 | C170: 042-0908 | D170: 函館市銅山町12番2 | E170: 22 | F170: 社会福祉法人函館愛育会 | G170: 福徳 修治 | H170: 内 | I170: 0138-36-1100
A171: 市立函館 | B171: 函館共愛会愛泉寮医務室 | C171: 040-0014 | D171: 函館市中島町35番7号 | E171: 22 | F171: 社会福祉法人函館共愛会 | G171: 金子 登 | H171: 内 | I171: 0138-52-1065
A172: 市立函館 | B172: 福寿荘さくら館診療所 | C172: 041-0802 | D172: 函館市石川町189番地19 | E172: 22 | F172: 社会福祉法人函館仁愛会 | G172: 大橋 健児 | H172: 内 | I172: 0138-34-7101
A173: 市立函館 | B173: 救護施設函館共働宿泊所救護部医務室 | C173: 042-0921 | D173: 函館市新湊町261番地 | E173: 22 | F173: 社会福祉法人函館共働宿泊所 | G173: 坂口 和彦 | H173: 内 | I173: 0138-58-4040
A174: 市立函館 | B174: 株式会社函館丸井今井医務室 | C174: 040-0011 | D174: 函館市本町32番15号株式会社函館丸井今井4階 | E174: 24 | F174: 株式会社函館丸井今井 | G174: 多田 正人 | H174: 内 | I174: 0138-32-1040
A175: 市立函館 | B175: 特別養護老人ホームももハウス医務室 | C175: 041-0804 | D175: 函館市赤川町390番地の2 | E175: 22 | F175: 社会福祉法人函館厚生院 | G175: 能戸 久哉 | H175: 内 | I175: 0138-47-3335
A176: 市立函館 | B176: 養護老人ホームまろにえ医務室 | C176: 042-0915 | D176: 函館市西旭岡町3丁目239番地2 | E176: 22 | F176: 社会福祉法人函館共愛会 | G176: 岩井 公二 | H176: 内 | I176: 0138-84-6645
A177: 市立函館 | B177: はこだて療育・自立支援センター診療所 | C177: 042-0932 | D177: 函館市湯川町2丁目39番26号 | E177: 9 | F177: 函館市 | G177: 須佐 史信 | H177: 小，整，精，リハ | I177: 0138-36-0500
A178: 市立函館 | B178: 国土交通省共済組合北海道開発局函館開発建設部診療所 | C178: 040-0084 | D178: 函館市大川町1番27号 | E178: 17 | F178: 国土交通省共済組合 | G178: 矢和田 敦 | H178: 内 | I178: 0138-42-7111
A179: 市立函館 | B179: 特別養護老人ホームあい亀田港医務室 | C179: 041-0822 | D179: 函館市亀田港町56番12号 | E179: 22 | F179: 社会福祉法人心侑会 | G179: 小出 明知 | H179: 内 | I179: 0138-62-6300
A180: 市立函館 | B180: 地域密着型特別養護老人ホーム谷地頭緑蔭園医務室 | C180: 040-0046 | D180: 函館市谷地頭町23番5号 | E180: 22 | F180: 社会福祉法人純心福祉会 | G180: 中村 昌孝 | H180: 内 | I180: 0138-26-7771
A181: 市立函館 | B181: 桔梗みのりの里医務室 | C181: 041-0808 | D181: 函館市桔梗1丁目3番8号 | E181: 22 | F181: 社会福祉法人敬聖会 | G181: 森 敬 | H181: 内 | I181: 0138-46-5151
A182: 市立函館 | B182: 社会福祉法人函館大庚会特別養護老人ホーム倶有医務室 | C182: 040-0035 | D182: 函館市松風町19番18号 | E182: 22 | F182: 社会福祉法人函館大庚会 | G182: 中川 享 | H182: 内 | I182: 0138-24-2255
A183: 市立函館 | B183: 地域密着型特別養護老人ホームこうじゅ医務室 | C183: 040-0072 | D183: 函館市亀田町7番1号 | E183: 22 | F183: 社会福祉法人函館鴻寿会 | G183: 武田 浩貴 | H183: 内 | I183: 0138-41-5100
A184: 市立函館 | B184: 地域密着型特別養護老人ホーム志医務室 | C184: 041-0841 | D184: 函館市日吉町4丁目12番19号 | E184: 22 | F184: 社会福祉法人結絆の会 | G184: 大村 勇二 | H184: 内，皮 | I184: 0138-53-1121
A185: 市立函館 | B185: 公益社団法人函館市医師会函館市医師会健診検査センター | C185: 040-0081 | D185: 函館市田家町5番16号 | E185: 19 | F185: 公益社団法人函館市医師会 | G185: 濵出 直人 | H185: 内，外，放 | I185: 0138-43-8801
A186: 市立函館 | B186: 広域型特別養護老人ホームベルソーレ医務室 | C186: 041-0841 | D186: 函館市日吉町4丁目16番20号 | E186: 22 | F186: 社会福祉法人創生会 | G186: 山下 晋 | H186: 内 | I186: 0138-30-7777
A187: 市立函館 | B187: 市立函館保健所計 | D187: =COUNTA(D4:D186) -> 183
A188: 渡島 | B188: 特別養護老人ホーム松前南殿荘医務室 | C188: 049-1501 | D188: 松前郡松前町字建石２１６番地の１８４ | E188: 22 | F188: 社会福祉法人松前福祉会 | G188: 保脇 雄介 | H188: 内 | I188: 01394-2-2550
A189: 渡島 | B189: 医療法人社団よしだ整形外科 | C189: 049-1501 | D189: 松前郡松前町字建石４９番地の５４ | E189: 20 | F189: 医療法人社団よしだ整形外科 | G189: 吉田 顕 | H189: 整・内・皮・リハ・アレ・リウ | I189: 01394-2-5770
A190: 渡島 | B190: 特別養護老人ホーム陽光園医務室 | C190: 049-1331 | D190: 松前郡福島町字三岳１６０－１３ | E190: 22 | F190: 社会福祉法人福島幸愛会 | G190: 小笠原 実 | H190: 内 | I190: 01394-7-3551
A191: 渡島 | B191: 吉岡診療所小笠原内科消化器科クリニック | C191: 049-1454 | D191: 松前郡福島町字館崎３５０番地の２７ | E191: 26 | F191: 小笠原 実 | G191: 小笠原 実 | H191: 内・呼・消・循・小・放・外・皮 | I191: 01394-8-5231
A192: 渡島 | B192: 福島町国民健康保険診療所 やまゆりクリニック | C192: 049-1312 | D192: 松前郡福島町字福島１３９番地１ | E192: 9 | F192: 福島町 | G192: 光銭 健三 | H192: 内・消化器内科・小 | I192: 0139-47-3101
A193: 渡島 | B193: 知内しおさい園診療室 | C193: 049-1103 | D193: 上磯郡知内町字重内９７５番地 | E193: 22 | F193: 社会福祉法人函館共愛会 | G193: 佐藤 紀子 | H193: 内 | I193: 01392-5-6363
A194: 渡島 | B194: 知内町立湯の里診療所 | C194: 049-1221 | D194: 上磯郡知内町字湯ノ里156番地61 | E194: 9 | F194: 知内町 | G194: 原田 直樹 | H194: 内 | I194: 01392-6-2001
A195: 渡島 | B195: 知内診療所 | C195: 049-1103 | D195: 上磯郡知内町字重内３１番地１３０ | E195: 20 | F195: 社会医療法人文殊会 | G195: 岡藤 賢二 | H195: 内・整・精 | I195: 01392-5-3509
A196: 渡島 | B196: 知内町保健センター | C196: 049-1103 | D196: 上磯郡知内町字重内３１番地の１３０ | E196: 9 | F196: 知内町 | G196: 岡藤 賢二 | H196: 内 | I196: 01392-5-3506
A197: 渡島 | B197: 北海道渡島保健所木古内支所 | C197: 049-0431 | D197: 上磯郡木古内町字木古内２１４番５ | E197: 8 | F197: 北海道 | G197: 山本 長史 | H197: 内 | I197: 01392-2-2068
A198: 渡島 | B198: 木古内町健康管理センター | C198: 049-0422 | D198: 上磯郡木古内町字本町１５０番地の１ | E198: 9 | F198: 木古内町 | G198: 井上 大成 | H198: 内 | I198: 01392-2-2122
A199: 渡島 | B199: 医療法人社団秋悠会おおえ内科消化器科 | C199: 049-0422 | D199: 上磯郡木古内町字本町５５９番地 | E199: 20 | F199: 医療法人社団秋悠会 | G199: 大江 安男 | H199: 内・消 | I199: 01392-2-6080
A200: 渡島 | B200: 木古内町特別養護老人ホーム診療所 | C200: 049-0422 | D200: 上磯郡木古内町本町７０４番地 | E200: 9 | F200: 木古内町 | G200: 小澤 正則 | H200: 内・外 | I200: 01392-2-5700
A201: 渡島 | B201: 海老沢医院 | C201: 049-0161 | D201: 北斗市飯生３丁目１番３６号 | E201: 26 | F201: 久保田 裕哉 | G201: 久保田 裕哉 | H201: 内・消化器内科・漢方内科 | I201: 0138-73-2135
... 3002 more rows

Sheet 診療科名について (hidden)
A2: 診療科名について
B4: 診療科名は次のとおり略名で記載する。
B5: 略名 | C5: 診療科名
B6: アレ | C6: アレルギー科
B7: 胃 | C7: 胃腸科
B8: 眼 | C8: 眼科
B9: 気 | C9: 気管食道科
B10: 矯歯 | C10: 矯正歯科
B11: 形 | C11: 形成外科
B12: 外 | C12: 外科
B13: 肛 | C13: こう門科
B14: 呼 | C14: 呼吸器科
B15: 呼外 | C15: 呼吸器外科
B16: 産 | C16: 産科
B17: 産婦 | C17: 産婦人科
B18: 歯 | C18: 歯科
B19: 歯外 | C19: 歯科口腔外科
B20: 耳 | C20: 耳鼻いんこう科
B21: 循 | C21: 循環器科
B22: 消 | C22: 消化器科
B23: 小 | C23: 小児科
B24: 小外 | C24: 小児外科
B25: 小歯 | C25: 小児歯科
B26: 神 | C26: 神経科
B27: 神内 | C27: 神経内科
B28: 心外 | C28: 心臓血管外科
B29: 心内 | C29: 心療内科
B30: 整 | C30: 整形外科
B31: 精 | C31: 精神科
B32: 性 | C32: 性病科
B33: 内 | C33: 内科
B34: 脳 | C34: 脳神経外科
B35: 泌 | C35: 泌尿器科
B36: 皮 | C36: 皮膚科
B37: 皮泌 | C37: 皮膚泌尿器科
B38: 美 | C38: 美容外科
B39: 婦 | C39: 婦人科
B40: 放 | C40: 放射線科
B41: 麻 | C41: 麻酔科
B42: リウ | C42: リウマチ科
B43: リハ | C43: リハビリテーション科
B93: 診療科名は次のとおり略名で記載する。
B94: 略名 | C94: 診療科名
B95: アレ | C95: アレルギー科
B96: 胃 | C96: 胃腸科
B97: 眼 | C97: 眼科
B98: 気 | C98: 気管食道科
B99: 矯歯 | C99: 矯正歯科
B100: 形 | C100: 形成外科 | I100: 阿部 平八郎
B101: 外 | C101: 外科
B102: 肛 | C102: こう門科
B103: 呼 | C103: 呼吸器科
B104: 呼外 | C104: 呼吸器外科
B105: 産 | C105: 産科
B106: 産婦 | C106: 産婦人科 | I106: 垂水 泰
B107: 歯 | C107: 歯科
B108: 歯外 | C108: 歯科口腔外科
B109: 耳 | C109: 耳鼻いんこう科
B110: 循 | C110: 循環器科
B111: 消 | C111: 消化器科
B112: 小 | C112: 小児科
B113: 小外 | C113: 小児外科
B114: 小歯 | C114: 小児歯科
B410: 小歯 | C410: 小児歯科
B414: 診療科名は次のとおり略名で記載する。
B415: 略名 | C415: 診療科名
B416: アレ | C416: アレルギー科
B417: 胃 | C417: 胃腸科
B418: 眼 | C418: 眼科
B419: 気 | C419: 気管食道科
B420: 矯歯 | C420: 矯正歯科
B421: 形 | C421: 形成外科 | I421: 阿部 平八郎
B422: 外 | C422: 外科
B423: 肛 | C423: こう門科
B424: 呼 | C424: 呼吸器科
B425: 呼外 | C425: 呼吸器外科
B426: 産 | C426: 産科
B427: 産婦 | C427: 産婦人科 | I427: 垂水 泰
B428: 歯 | C428: 歯科
B429: 歯外 | C429: 歯科口腔外科
B430: 耳 | C430: 耳鼻いんこう科
B431: 循 | C431: 循環器科
B432: 消 | C432: 消化器科
B433: 小 | C433: 小児科
B434: 小外 | C434: 小児外科

Sheet 【変更！】開設者コードについて (hidden)
A1: 開設者コードについて
B3: 開設者コードは次のとおり分類する。
B4: 1.国（厚生労働省） | C4: 10.地方独立行政法人 | D4: 19.公益法人
B5: 2.国（（独）国立病院機構） | C5: 11.日赤 | D5: 20.医療法人
B6: 3.国（国立大学法人） | C6: 12.済生会 | D6: 21.私立学校法人
B7: 4.国（（独）労働者健康安全機構） | C7: 13.北海道社会事業協会 | D7: 22.社会福祉法人
B8: 5.国（（独）国立高度専門医療研究センター） | C8: 14.厚生連 | D8: 23.医療生協
B9: 6.国（（独）地域医療機能推進機構） | C9: 15.国民健康保険団体連合会 | D9: 24.会社
B10: 7.国（その他） | C10: 16.健康保険組合及びその連合会 | D10: 25.その他の法人
B11: 8.都道府県 | C11: 17.共済組合及びその連合会 | D11: 26.個人
B12: 9.市町村 | C12: 18.国民健康保険組合
B14: 各区分の説明
B15: ○「１．国（厚生労働省）」とは、厚生労働省が開設する病院をいう。
B16: ○「２．国（（独）国立病院機構）」とは、独立行政法人国立病院機構が開設する病院をいう。
B17: ○「３．国（国立大学法人）」とは、国立大学法人が開設する病院をいう。
B18: ○「４．国（（独）労働者健康安全機構）」とは、独立行政法人労働者健康安全機構が開設する病院をいう。
B19: ○「５．国（（独）国立高度専門医療研究センター）」とは、独立行政法人国立高度専門医療研究センターが開設する病院をいう。
B20: ○「６．国（（独）地域医療機能推進機構）」とは、独立行政法人地域医療機能推進機構が開設する病院をいう。
B21: ○「７．国(その他)」とは、国及び国に準ずるものが開設する病院で、上記「１．国（厚生労働省）」から「６．国（（独）地域医療機 能推進機構）」までのいずれも該当しない病院をいう。
B22: （例：財務省、総務省、法務省、防衛省等の病院）
B23: ○「８．都道府県」とは、
B24: 都道府県が開設する病院をいう。ここには地方自治法（昭和２２年法律第６７号）第２８４条第１項の規定により、総務大臣 の許可を受けて設立した都道府県一部事務組合が開設するものを含む。
B25: ○「９．市町村」とは、
B26: １ 市町村が開設する病院をいう。ここには地方自治法第２８４条第１項の規定により、都道府県知事の許可を受けて設立した 市町村一部事務組合が開設するものを含む。
B27: ２ 国民健康保険法施行法（昭和３３年法律第１９３号）第２条の規定により、国民健康保険法（昭和３３年法律第１９２号）の施 行後も引き続き国民健康保険を行う普通国民健康保険組合が開設する病院もこの区分に含む。
B28: ○「１０．地方独立行政法人」とは、
B29: 地方独立行政法人法（平成１５年法律第１１８号）に規定される地方公共団体が開設する病院をいう。
B30: ○「１１．日赤」とは、日本赤十字社が開設する病院をいう。
B31: ○「１２．済生会」とは、社会福祉法人恩賜財団済生会が開設する病院をいう。
B32: ○「１３．北海道社会事業協会」とは、社会福祉法人北海道社会事業協会が開設する病院をいう。
B33: ○「１４．厚生連」とは、全国厚生農業協同組合連合会の会員である厚生（医療）農業協同組合連合会が開設する病院をいう。
B34: ○「１５．国民健康保険団体連合会」とは、国民健康保険法第８３条の規定により設立した法人で、同法第８４条の規定により都 道府県知事又は厚生労働大臣の認可を受けた国民健康保険団体連合会が開設する病院をいう。
B35: ○「１６．健康保険組合及びその連合会」とは、健康保険法（大正１１年法律第７０号）の規定により設立した健康保険組合及び 健康保険組合連合会が開設する病院をいう。
B36: ○「１７．共済組合及びその連合会」とは、次に掲げる各共済組合及びその連合会が開設する病院をいう。
B37: １ 国家公務員共済組合法（昭和３３年法律第１２８号）第３条の規定により設立された国家公務員共済組合及び同法第２１条 の規定により設立された同連合会
B38: ２ 地方公務員等共済組合法（昭和３７年法律第１５２号）第３条の規定により設立された地方公務員等共済組合（地方職員共 済組合、公立学校共済組合、警察共済組合、都職員共済組合、指定都市職員共済組合、市町村職員共済組合等）及び同 法第２７条の規定により設立された全国市町村職員共済組合連合会
B39: ３ 私立学校教職員共済組合法（昭和２８年法律第２４５号）の規定により設立された私立学校教職員共済制度を管掌すること とされた日本私立学校振興・共済事業団
B40: ○「１８．国民健康保険組合」とは、国民健康保険法第１７条の規定により都道府県知事の認可を受けて設立され、同法第３条第 ２項の国民健康保険を行う国民健康保険組合が開設する病院をいう。
B41: (注) 国民健康保険法第３条第１項の規定により国民健康保険を行う市町村はこの区分には含めず､｢６．市町村」に分類する。
B42: ○「１９．公益法人」とは、公益社団法人及び公益財団法人の認定等に関する法律（平成１８年法律第４９号）第２条に規定する 公益社団法人及び公益財団法人が開設する病院をいう。
B43: (注) 一般社団法人及び一般財団法人に関する法律（平成１８年法律第４８号）により認可された一般社団法人及び一般財団 法人が開設する病院は、「２５．その他の法人」に分類する。
B44: ○「２０．医療法人」とは、医療法第３９条の規定に基づく医療法人が開設する病院をいう。
B45: ○「２１．私立学校法人」とは、
B46: 私立学校法（昭和２４年法律第２７０号）第３条に規定する学校法人が開設する病院をいう。
B47: ○「２２．社会福祉法人」とは、社会福祉法（昭和２６年法律第４号）第２２条の規定で、第３２条で許可された病院をいう。
B48: ○「２３．医療生協」とは、消費生活協同組合法（昭和２３年７月３０日法律第２００号）第４条の規定による法人で、第１０条第１項 第６号に定める事業を行う医療生協が開設する病院をいう。
B49: ○「２４．会社」とは、従業員及びその家族のために開設された病院で、都道府県知事から開設許可（医療法第７条）を受けたも のが会社である病院をいう。
B50: (注) 開設許可を受けたものが会社の健康保険組合である病院はこの区分に含めず、「１６．健康保険組合及びその連合会」 に分類する。
B51: ○「２５．その他の法人」とは、上記「１９．公益法人」から「２４．会社」までのいずれにも該当しない法人が開設する病院をいう。
B52: ○「２６．個人」とは、個人（法人格を有しない）が開設する病院をいう。
B96: 1.国（厚生労働省） | C96: 9.北社協 | D96: 17.国民健康保険組合
B97: 2.国（文部科学省） | C97: 10.厚生連 | D97: 18.公益法人
B98: 3.国 (独立行政法人労働者健康福祉機構) | C98: 11.国民健康保険団体連合会 | D98: 19.医療法人
B99: 4.国（その他） | C99: 12.全国社会保険協会連合会 | D99: 20.学校法人
B100: 5.都道府県 | C100: 13.厚生年金事業振興団 | D100: 21.会社
B101: 6.市町村 | C101: 14.船員保険会 | D101: 22.その他の法人
B102: 7.日赤 | C102: 15.健康保険組合及びその連合会 | D102: 23.個人
B103: 8.済生会 | C103: 16.共済組合及びその連合会 | I103: 阿部 平八郎
B105: 各区分の説明
B106: ○「１．国（厚生労働省）」とは、厚生労働省および独立行政法人国立病院機構が開設する病院をいう。
B107: ○「２．国（文部科学省）」とは、国立大学法人が開設する病院をいう。
B108: ○「３．国（独立行政法人労働者健康福祉機構）」とは、独立行政法人労働者健康福祉機構が開設する病院をいう。
B109: ○「４．国(その他)」とは、国及び国に準ずるものが開設する病院で、上記「１．国（厚生労働省）」から「３．国（独立行政法人労働 者健康福祉機構）」までのいずれも該当しない病院をいう。 | I109: 垂水 泰
B110: （例：財務省、総務省、法務省、防衛庁等の病院）
B111: ○「５．都道府県」とは、
B112: 都道府県が開設する病院をいう。ここには地方自治法（昭和２２年法律第６７号）第２８４条第１項の規定により、総務大臣 の許可を受けて設立した都道府県一部事務組合が開設するものを含む。
B113: ○「６．市町村」とは、
B114: １ 市町村が開設する病院をいう。ここには地方自治法第２８４条第１項の規定により、都道府県知事の許可を受けて設立した 市町村一部事務組合が開設するものを含む。
B115: ２ 国民健康保険法施行法（昭和３３年法律第１９３号）第２条の規定により、国民健康保険法（昭和３３年法律第１９２号）の施 行後も引き続き国民健康保険を行う普通国民健康保険組合が開設する病院もこの区分に含む。
B116: ○「７．日赤」とは、日本赤十字社が開設する病院をいう。
B117: ○「８．済生会」とは、社会福祉法人恩賜財団済生会が開設する病院をいう。
B413: ○「８．済生会」とは、社会福祉法人恩賜財団済生会が開設する病院をいう。
B417: 1.国（厚生労働省） | C417: 9.北社協 | D417: 17.国民健康保険組合
B418: 2.国（文部科学省） | C418: 10.厚生連 | D418: 18.公益法人
B419: 3.国 (独立行政法人労働者健康福祉機構) | C419: 11.国民健康保険団体連合会 | D419: 19.医療法人
B420: 4.国（その他） | C420: 12.全国社会保険協会連合会 | D420: 20.学校法人
B421: 5.都道府県 | C421: 13.厚生年金事業振興団 | D421: 21.会社
B422: 6.市町村 | C422: 14.船員保険会 | D422: 22.その他の法人
B423: 7.日赤 | C423: 15.健康保険組合及びその連合会 | D423: 23.個人
B424: 8.済生会 | C424: 16.共済組合及びその連合会 | I424: 阿部 平八郎
B426: 各区分の説明
B427: ○「１．国（厚生労働省）」とは、厚生労働省および独立行政法人国立病院機構が開設する病院をいう。
B428: ○「２．国（文部科学省）」とは、国立大学法人が開設する病院をいう。
B429: ○「３．国（独立行政法人労働者健康福祉機構）」とは、独立行政法人労働者健康福祉機構が開設する病院をいう。
B430: ○「４．国(その他)」とは、国及び国に準ずるものが開設する病院で、上記「１．国（厚生労働省）」から「３．国（独立行政法人労働 者健康福祉機構）」までのいずれも該当しない病院をいう。 | I430: 垂水 泰
B431: （例：財務省、総務省、法務省、防衛庁等の病院）
B432: ○「５．都道府県」とは、
B433: 都道府県が開設する病院をいう。ここには地方自治法（昭和２２年法律第６７号）第２８４条第１項の規定により、総務大臣 の許可を受けて設立した都道府県一部事務組合が開設するものを含む。
B434: ○「６．市町村」とは、
B435: １ 市町村が開設する病院をいう。ここには地方自治法第２８４条第１項の規定により、都道府県知事の許可を受けて設立した 市町村一部事務組合が開設するものを含む。
B436: ２ 国民健康保険法施行法（昭和３３年法律第１９３号）第２条の規定により、国民健康保険法（昭和３３年法律第１９２号）の施 行後も引き続き国民健康保険を行う普通国民健康保険組合が開設する病院もこの区分に含む。
B437: ○「７．日赤」とは、日本赤十字社が開設する病院をいう。
